{"text_format":"1","workbook":"xlsx","n_sheets":9,"sheets":["Read me","Bin Count Summary","Bin Count Data","Composition Audit Calculator","Data Comparison","Document the changes here","drop downs","MRS scores","Support"],"not_rendered":{"charts":0,"images":1,"macros":1,"external_links":4,"defined_names":199,"comments":0,"pivot_tables":0},"unopened":[],"bounds":{"document_bytes":16777216,"sheet_cells":100000,"rows_first":2000,"rows_last":500,"rows_between":2000,"halvings":0,"cell_chars":16384,"cell_head_chars":4096},"cells_cut":0,"cells_raw":0,"read":"whole","date_system":"1900"}

{"sheet":"Read me","index":0,"n_rows":34,"n_cols":7,"rows_kept":34,"cut":false,"hidden":false,"merged":[[25,1,25,2],[31,1,31,5],[33,1,33,5],[3,1,3,4],[14,1,14,5],[5,1,5,5],[8,1,8,5],[12,1,12,5],[13,1,13,5],[6,1,7,5],[10,1,10,5],[27,1,27,5],[30,1,30,5],[32,1,32,5],[29,1,29,5],[23,1,23,5],[24,1,24,5],[16,1,16,5],[17,1,17,5],[22,1,22,5],[21,1,21,5],[18,1,18,5],[19,1,19,5]]}
[]
[]
[null,null,null,null,"Department of Climate Change, Energy, the Environment and Water\n12 Darcy Street\nParramatta NSW 2150","T (02) 9995 5000\nE nabers@environment.nsw.gov.au nabers.gov.au "]
[null,"NABERS WASTE\nCalculations Spreadsheet"]
[null,"Version:","v3.3","Date:","2024-04-30"]
[]
[null,"This spreadsheet enables NABERS accredited assessors to fulfil the \"testing an independent data source\" requirements (section 8.3.4) and the data collection requirements for composition audits (section 7.10) of the NABERS Waste Rules. The completed spreadsheet must be uploaded to the Ratings page on the Waste Manager platform as part of the evidence for the rating."]
[]
[null,"How to use this calculator"]
[]
[null,"Testing an independent data source"]
[null,"In the Summary tab:"]
[null,"1. Indicate the premises address, the rating number and the rating period."]
[null,"2. Using the dropdown list, select the waste types you would like to check against a second source of data."]
[null,"3. For each waste type you selected:\n       a) Indicate the equipment type and the bin size (for the bin size choose the right unit of measurement - m³or L)\n       b) Select the month and the year you have chosen for the data verification check.",null,null,null,null," "]
[null,"In the Bin count Data tab:"]
[null,"4. You will find pre-filled tables for each bin service you have listed in the Summary tab. "]
[null,"5. Fill each table with the bin counts from the primary source and the secondary source of data.\n    Make sure to check the table headings to fill the correct column for primary and secondary sources - the order of the data matters.\n    Please do not cut and paste cells or drag them once you have filled the columns."]
[null,"The results of the data verification check will be available in the Summary tab for each waste type.\nResults tell you whether the data verification check has passed or failed."]
[null,"Further information about the NABERS procedures for collecting and assessing data can be found in the NABERS Waste Rules v2.0. \nDetails regarding the data verification check procedure are located in section 8.3.4 Testing an independent data source.\nContact the NABERS National Administrator if you have problems with this spreadsheet."]
[null,"Allowed data adjustments"]
[null,"To allow for a more realistic comparison with contractor collection data, NABERS will allow assessors to make specific adjustments to bin tally data when performing this test. If these practices happen on your site and you have altered any input data, highlight the changed data and describe how and why you did this in the comment field in the Bin Count Summary tab of this spreadsheet. "]
[null,"These situations are: "]
[null,"1.   Where bins are tallied before midnight, but collected the following morning before the building opens. In this situation, on-site bin tallies can be shifted forward a day so they match the date of the waste contractor bin counts they relate to."]
[null,"2.   Where bins are taken to the dock regardless of contents, but only presented for collection when full. In these cases, bin tallies for days between collections can be summed to the day they are collected."]
[null," View assessor comments"]
[]
[null,"Recording data for composition audits"]
[null,"In the Composition Audit calculator tab:"]
[null,"1. Use the top table to record the date of audit and auditor."]
[null,"2. Use the Material stream results tables to record details of each material stream and the total net weight of each component material type building found in any mixed content bin services."]
[null,"3. If you need to add extra rows to the calculation table, right-click on any green cell and select \"Insert--> Table Rows.\" If you need to calculate results for more than one material stream, then copy the Material stream results tables into the space below."]
[null,"4. Transfer these values to the Composition Audit page of the Waste Platform."]
[null,"5. To include a Material Recovery Score, on the Composition Audit page of the Waste Platform select a value for the recovery potential of each waste type within each stream, verified by your investigation of the downstream material outcomes for each waste stream. "]

{"sheet":"Bin Count Summary","index":1,"n_rows":29,"n_cols":10,"rows_kept":29,"cut":false,"hidden":false,"merged":[[26,1,26,9],[28,1,28,9],[29,1,38,9],[1,2,1,9],[2,2,2,9],[3,2,3,9],[27,1,27,2]]}
[]
[null,"Premises address:"]
[null,"Rating number:"]
[null,"Rating period:"]
[]
[null,"Waste type","Equipment","Size","Units","Dock","Month to check","Year \n(yyyy)","Weighted average","Verification check result"]
[null,null,null,null,null,null,null,null,{"$f":"IFERROR(IF(B7=\"\",\"\",(SUMPRODUCT('Data Comparison'!$E$4:$E$34,'Data Comparison'!$F$4:$F$34)/SUM('Data Comparison'!$F$4:$F$34))),\"\")","v":""},{"$f":"IF(B7=\"\",\"\",IF(I7=\"\",\"\",IF(I7>Support!$C$2,\"Fail\",\"Pass\")))","v":""}]
[null,null,null,null,null,null,null,null,{"$f":"IFERROR(IF(B8=\"\",\"\",(SUMPRODUCT('Data Comparison'!$K$4:$K$34,'Data Comparison'!$L$4:$L$34)/SUM('Data Comparison'!$L$4:$L$34))),\"\")","v":""},{"$f":"IF(B8=\"\",\"\",IF(I8=\"\",\"\",IF(I8>Support!$C$2,\"Fail\",\"Pass\")))","v":""}]
[null,null,null,null,null,null,null,null,{"$f":"IFERROR(IF(B9=\"\",\"\",(SUMPRODUCT('Data Comparison'!$Q$4:$Q$34,'Data Comparison'!$R$4:$R$34)/SUM('Data Comparison'!$R$4:$R$34))),\"\")","v":""},{"$f":"IF(B9=\"\",\"\",IF(I9=\"\",\"\",IF(I9>Support!$C$2,\"Fail\",\"Pass\")))","v":""}]
[null,null,null,null,null,null,null,null,{"$f":"IFERROR(IF(B10=\"\",\"\",(SUMPRODUCT('Data Comparison'!$W$4:$W$34,'Data Comparison'!$X$4:$X$34)/SUM('Data Comparison'!$X$4:$X$34))),\"\")","v":""},{"$f":"IF(B10=\"\",\"\",IF(I10=\"\",\"\",IF(I10>Support!$C$2,\"Fail\",\"Pass\")))","v":""}]
[null,null,null,null,null,null,null,null,{"$f":"IFERROR(IF(B11=\"\",\"\",(SUMPRODUCT('Data Comparison'!$AC$4:$AC$34,'Data Comparison'!$AD$4:$AD$34)/SUM('Data Comparison'!$AD$4:$AD$34))),\"\")","v":""},{"$f":"IF(B11=\"\",\"\",IF(I11=\"\",\"\",IF(I11>Support!$C$2,\"Fail\",\"Pass\")))","v":""}]
[null,null,null,null,null,null,null,null,{"$f":"IFERROR(IF(B12=\"\",\"\",(SUMPRODUCT('Data Comparison'!$AI$4:$AI$34,'Data Comparison'!$AJ$4:$AJ$34)/SUM('Data Comparison'!$AJ$4:$AJ$34))),\"\")","v":""},{"$f":"IF(B12=\"\",\"\",IF(I12=\"\",\"\",IF(I12>Support!$C$2,\"Fail\",\"Pass\")))","v":""}]
[null,null,null,null,null,null,null,null,{"$f":"IFERROR(IF(B13=\"\",\"\",(SUMPRODUCT('Data Comparison'!$AO$4:$AO$34,'Data Comparison'!$AP$4:$AP$34)/SUM('Data Comparison'!$AP$4:$AP$34))),\"\")","v":""},{"$f":"IF(B13=\"\",\"\",IF(I13=\"\",\"\",IF(I13>Support!$C$2,\"Fail\",\"Pass\")))","v":""}]
[null,null,null,null,null,null,null,null,{"$f":"IFERROR(IF(B14=\"\",\"\",(SUMPRODUCT('Data Comparison'!$AU$4:$AU$34,'Data Comparison'!$AV$4:$AV$34)/SUM('Data Comparison'!$AV$4:$AV$34))),\"\")","v":""},{"$f":"IF(B14=\"\",\"\",IF(I14=\"\",\"\",IF(I14>Support!$C$2,\"Fail\",\"Pass\")))","v":""}]
[null,null,null,null,null,null,null,null,{"$f":"IFERROR(IF(B15=\"\",\"\",(SUMPRODUCT('Data Comparison'!$BA$4:$BA$34,'Data Comparison'!$BB$4:$BB$34)/SUM('Data Comparison'!$BB$4:$BB$34))),\"\")","v":""},{"$f":"IF(B15=\"\",\"\",IF(I15=\"\",\"\",IF(I15>Support!$C$2,\"Fail\",\"Pass\")))","v":""}]
[null,null,null,null,null,null,null,null,{"$f":"IFERROR(IF(B16=\"\",\"\",(SUMPRODUCT('Data Comparison'!$BG$4:$BG$34,'Data Comparison'!$BH$4:$BH$34)/SUM('Data Comparison'!$BH$4:$BH$34))),\"\")","v":""},{"$f":"IF(B16=\"\",\"\",IF(I16=\"\",\"\",IF(I16>Support!$C$2,\"Fail\",\"Pass\")))","v":""}]
[null,null,null,null,null,null,null,null,{"$f":"IFERROR(IF(B17=\"\",\"\",(SUMPRODUCT('Data Comparison'!$BM$4:$BM$34,'Data Comparison'!$BN$4:$BN$34)/SUM('Data Comparison'!$BN$4:$BN$34))),\"\")","v":""},{"$f":"IF(B17=\"\",\"\",IF(I17=\"\",\"\",IF(I17>Support!$C$2,\"Fail\",\"Pass\")))","v":""}]
[null,null,null,null,null,null,null,null,{"$f":"IFERROR(IF(B18=\"\",\"\",(SUMPRODUCT('Data Comparison'!$BS$4:$BS$34,'Data Comparison'!$BT$4:$BT$34)/SUM('Data Comparison'!$BT$4:$BT$34))),\"\")","v":""},{"$f":"IF(B18=\"\",\"\",IF(I18=\"\",\"\",IF(I18>Support!$C$2,\"Fail\",\"Pass\")))","v":""}]
[null,null,null,null,null,null,null,null,{"$f":"IFERROR(IF(B19=\"\",\"\",(SUMPRODUCT('Data Comparison'!$BY$4:$BY$34,'Data Comparison'!$BZ$4:$BZ$34)/SUM('Data Comparison'!$BZ$4:$BZ$34))),\"\")","v":""},{"$f":"IF(B19=\"\",\"\",IF(I19=\"\",\"\",IF(I19>Support!$C$2,\"Fail\",\"Pass\")))","v":""}]
[null,null,null,null,null,null,null,null,{"$f":"IFERROR(IF(B20=\"\",\"\",(SUMPRODUCT('Data Comparison'!$CE$4:$CE$34,'Data Comparison'!$CF$4:$CF$34)/SUM('Data Comparison'!$CF$4:$CF$34))),\"\")","v":""},{"$f":"IF(B20=\"\",\"\",IF(I20=\"\",\"\",IF(I20>Support!$C$2,\"Fail\",\"Pass\")))","v":""}]
[null,null,null,null,null,null,null,null,{"$f":"IFERROR(IF(B21=\"\",\"\",(SUMPRODUCT('Data Comparison'!$CK$4:$CK$34,'Data Comparison'!$CL$4:$CL$34)/SUM('Data Comparison'!$CL$4:$CL$34))),\"\")","v":""},{"$f":"IF(B21=\"\",\"\",IF(I21=\"\",\"\",IF(I21>Support!$C$2,\"Fail\",\"Pass\")))","v":""}]
[null,null,null,null,null,null,null,null,{"$f":"IFERROR(IF(B22=\"\",\"\",(SUMPRODUCT('Data Comparison'!$CQ$4:$CQ$34,'Data Comparison'!$CR$4:$CR$34)/SUM('Data Comparison'!$CR$4:$CR$34))),\"\")","v":""},{"$f":"IF(B22=\"\",\"\",IF(I22=\"\",\"\",IF(I22>Support!$C$2,\"Fail\",\"Pass\")))","v":""}]
[null,null,null,null,null,null,null,null,{"$f":"IFERROR(IF(B23=\"\",\"\",(SUMPRODUCT('Data Comparison'!$CW$4:$CW$34,'Data Comparison'!$CX$4:$CX$34)/SUM('Data Comparison'!$CX$4:$CX$34))),\"\")","v":""},{"$f":"IF(B23=\"\",\"\",IF(I23=\"\",\"\",IF(I23>Support!$C$2,\"Fail\",\"Pass\")))","v":""}]
[null,null,null,null,null,null,null,null,{"$f":"IFERROR(IF(B24=\"\",\"\",(SUMPRODUCT('Data Comparison'!$DC$4:$DC$34,'Data Comparison'!$DD$4:$DD$34)/SUM('Data Comparison'!$DD$4:$DD$34))),\"\")","v":""},{"$f":"IF(B24=\"\",\"\",IF(I24=\"\",\"\",IF(I24>Support!$C$2,\"Fail\",\"Pass\")))","v":""}]
[null,null,null,null,null,null,null,null,{"$f":"IFERROR(IF(B25=\"\",\"\",(SUMPRODUCT('Data Comparison'!$DI$4:$DI$34,'Data Comparison'!$DJ$4:$DJ$34)/SUM('Data Comparison'!$DJ$4:$DJ$34))),\"\")","v":""},{"$f":"IF(B25=\"\",\"\",IF(I25=\"\",\"\",IF(I25>Support!$C$2,\"Fail\",\"Pass\")))","v":""}]
[null,null,null,null,null,null,null,null,{"$f":"IFERROR(IF(B26=\"\",\"\",(SUMPRODUCT('Data Comparison'!$DO$4:$DO$34,'Data Comparison'!$DP$4:$DP$34)/SUM('Data Comparison'!$DP$4:$DP$34))),\"\")","v":""},{"$f":"IF(B26=\"\",\"\",IF(I26=\"\",\"\",IF(I26>Support!$C$2,\"Fail\",\"Pass\")))","v":""}]
[null,"If you have made any allowed data adustments for the data verification check, highlight the adjustments in the Bin Count Data tab and enter details about the adjustments in the comment field below. Please also note the relevant section of the rules or the ruling used to make the adjustment."]
[null,"View allowed data adjustments"]
[null,"Assessor comments:\n"]

{"sheet":"Bin Count Data","index":2,"n_rows":35,"n_cols":118,"rows_kept":35,"cut":false,"hidden":false,"merged":[[1,103,1,105],[1,109,1,111],[1,115,1,117],[1,73,1,75],[1,79,1,81],[1,85,1,87],[1,91,1,93],[1,97,1,99],[1,31,1,33],[1,1,1,3],[1,7,1,9],[1,13,1,15],[1,19,1,21],[1,25,1,27],[1,67,1,69],[1,37,1,39],[1,43,1,45],[1,49,1,51],[1,55,1,57],[1,61,1,63]]}
[]
[null,{"$f":"IF('Bin Count Summary'!$B$7=\"\",\"\",_xlfn.CONCAT('Bin Count Summary'!$B$7,\" - \",'Bin Count Summary'!$C$7,\" - \",'Bin Count Summary'!$D$7,'Bin Count Summary'!$E$7,\" at Dock \",'Bin Count Summary'!$F$7))","v":""},null,null,null,null,null,{"$f":"IF('Bin Count Summary'!$B$8=\"\",\"\",_xlfn.CONCAT('Bin Count Summary'!$B$8,\" - \",'Bin Count Summary'!$C$8,\" - \",'Bin Count Summary'!$D$8,'Bin Count Summary'!$E$8,\" at Dock \",'Bin Count Summary'!$F$8))","v":""},null,null,null,null,null,{"$f":"IF('Bin Count Summary'!$B$9=\"\",\"\",_xlfn.CONCAT('Bin Count Summary'!$B$9,\" - \",'Bin Count Summary'!$C$9,\" - \",'Bin Count Summary'!$D$9,'Bin Count Summary'!$E$9,\" at Dock \",'Bin Count Summary'!$F$9))","v":""},null,null,null,null,null,{"$f":"IF('Bin Count Summary'!$B$10=\"\",\"\",_xlfn.CONCAT('Bin Count Summary'!$B$10,\" - \",'Bin Count Summary'!$C$10,\" - \",'Bin Count Summary'!$D$10,'Bin Count Summary'!$E$10,\" at Dock \",'Bin Count Summary'!$F$10))","v":""},null,null,null,null,null,{"$f":"IF('Bin Count Summary'!$B$11=\"\",\"\",_xlfn.CONCAT('Bin Count Summary'!$B$11,\" - \",'Bin Count Summary'!$C$11,\" - \",'Bin Count Summary'!$D$11,'Bin Count Summary'!$E$11,\" at Dock \",'Bin Count Summary'!$F$11))","v":""},null,null,null,null,null,{"$f":"IF('Bin Count Summary'!$B$12=\"\",\"\",_xlfn.CONCAT('Bin Count Summary'!$B$12,\" - \",'Bin Count Summary'!$C$12,\" - \",'Bin Count Summary'!$D$12,'Bin Count Summary'!$E$12,\" at Dock \",'Bin Count Summary'!$F$12))","v":""},null,null,null,null,null,{"$f":"IF('Bin Count Summary'!$B$13=\"\",\"\",_xlfn.CONCAT('Bin Count Summary'!$B$13,\" - \",'Bin Count Summary'!$C$13,\" - \",'Bin Count Summary'!$D$13,'Bin Count Summary'!$E$13,\" at Dock \",'Bin Count Summary'!$F$13))","v":""},null,null,null,null,null,{"$f":"IF('Bin Count Summary'!$B$14=\"\",\"\",_xlfn.CONCAT('Bin Count Summary'!$B$14,\" - \",'Bin Count Summary'!$C$14,\" - \",'Bin Count Summary'!$D$14,'Bin Count Summary'!$E$14,\" at Dock \",'Bin Count Summary'!$F$14))","v":""},null,null,null,null,null,{"$f":"IF('Bin Count Summary'!$B$15=\"\",\"\",_xlfn.CONCAT('Bin Count Summary'!$B$15,\" - \",'Bin Count Summary'!$C$15,\" - \",'Bin Count Summary'!$D$15,'Bin Count Summary'!$E$15,\" at Dock \",'Bin Count Summary'!$F$15))","v":""},null,null,null,null,null,{"$f":"IF('Bin Count Summary'!$B$16=\"\",\"\",_xlfn.CONCAT('Bin Count Summary'!$B$16,\" - \",'Bin Count Summary'!$C$16,\" - \",'Bin Count Summary'!$D$16,'Bin Count Summary'!$E$16,\" at Dock \",'Bin Count Summary'!$F$16))","v":""},null,null,null,null,null,{"$f":"IF('Bin Count Summary'!$B$17=\"\",\"\",_xlfn.CONCAT('Bin Count Summary'!$B$17,\" - \",'Bin Count Summary'!$C$17,\" - \",'Bin Count Summary'!$D$17,'Bin Count Summary'!$E$17,\" at Dock \",'Bin Count Summary'!$F$17))","v":""},null,null,null,null,null,{"$f":"IF('Bin Count Summary'!$B$18=\"\",\"\",_xlfn.CONCAT('Bin Count Summary'!$B$18,\" - \",'Bin Count Summary'!$C$18,\" - \",'Bin Count Summary'!$D$18,'Bin Count Summary'!$E$18,\" at Dock \",'Bin Count Summary'!$F$18))","v":""},null,null,null,null,null,{"$f":"IF('Bin Count Summary'!$B19=\"\",\"\",_xlfn.CONCAT('Bin Count Summary'!$B19,\" - \",'Bin Count Summary'!$C19,\" - \",'Bin Count Summary'!$D19,'Bin Count Summary'!$E19,\" at Dock \",'Bin Count Summary'!$F19))","v":""},null,null,null,null,null,{"$f":"IF('Bin Count Summary'!$B20=\"\",\"\",_xlfn.CONCAT('Bin Count Summary'!$B20,\" - \",'Bin Count Summary'!$C20,\" - \",'Bin Count Summary'!$D20,'Bin Count Summary'!$E20,\" at Dock \",'Bin Count Summary'!$F20))","v":""},null,null,null,null,null,{"$f":"IF('Bin Count Summary'!$B21=\"\",\"\",_xlfn.CONCAT('Bin Count Summary'!$B21,\" - \",'Bin Count Summary'!$C21,\" - \",'Bin Count Summary'!$D21,'Bin Count Summary'!$E21,\" at Dock \",'Bin Count Summary'!$F21))","v":""},null,null,null,null,null,{"$f":"IF('Bin Count Summary'!$B22=\"\",\"\",_xlfn.CONCAT('Bin Count Summary'!$B22,\" - \",'Bin Count Summary'!$C22,\" - \",'Bin Count Summary'!$D22,'Bin Count Summary'!$E22,\" at Dock \",'Bin Count Summary'!$F22))","v":""},null,null,null,null,null,{"$f":"IF('Bin Count Summary'!$B23=\"\",\"\",_xlfn.CONCAT('Bin Count Summary'!$B23,\" - \",'Bin Count Summary'!$C23,\" - \",'Bin Count Summary'!$D23,'Bin Count Summary'!$E23,\" at Dock \",'Bin Count Summary'!$F23))","v":""},null,null,null,null,null,{"$f":"IF('Bin Count Summary'!$B24=\"\",\"\",_xlfn.CONCAT('Bin Count Summary'!$B24,\" - \",'Bin Count Summary'!$C24,\" - \",'Bin Count Summary'!$D24,'Bin Count Summary'!$E24,\" at Dock \",'Bin Count Summary'!$F24))","v":""},null,null,null,null,null,{"$f":"IF('Bin Count Summary'!$B25=\"\",\"\",_xlfn.CONCAT('Bin Count Summary'!$B25,\" - \",'Bin Count Summary'!$C25,\" - \",'Bin Count Summary'!$D25,'Bin Count Summary'!$E25,\" at Dock \",'Bin Count Summary'!$F25))","v":""},null,null,null,null,null,{"$f":"IF('Bin Count Summary'!$B26=\"\",\"\",_xlfn.CONCAT('Bin Count Summary'!$B26,\" - \",'Bin Count Summary'!$C26,\" - \",'Bin Count Summary'!$D26,'Bin Count Summary'!$E26,\" at Dock \",'Bin Count Summary'!$F26))","v":""}]
[null,"Date","# Bins picked up\nPrimary source","# Bins picked up\nSecondary source",null,null,null,"Date","# Bins picked up\nPrimary source","# Bins picked up\nSecondary source",null,null,null,"Date","# Bins picked up\nPrimary source","# Bins picked up\nSecondary source",null,null,null,"Date","# Bins picked up\nPrimary source","# Bins picked up\nSecondary source",null,null,null,"Date","# Bins picked up\nPrimary source","# Bins picked up\nSecondary source",null,null,null,"Date","# Bins picked up\nPrimary source","# Bins picked up\nSecondary source",null,null,null,"Date","# Bins picked up\nPrimary source","# Bins picked up\nSecondary source",null,null,null,"Date","# Bins picked up\nPrimary source","# Bins picked up\nSecondary source",null,null,null,"Date","# Bins picked up\nPrimary source","# Bins picked up\nSecondary source",null,null,null,"Date","# Bins picked up\nPrimary source","# Bins picked up\nSecondary source",null,null,null,"Date","# Bins picked up\nPrimary source","# Bins picked up\nSecondary source",null,null,null,"Date","# Bins picked up\nPrimary source","# Bins picked up\nSecondary source",null,null,null,"Date","# Bins picked up\nPrimary source","# Bins picked up\nSecondary source",null,null,null,"Date","# Bins picked up\nPrimary source","# Bins picked up\nSecondary source",null,null,null,"Date","# Bins picked up\nPrimary source","# Bins picked up\nSecondary source",null,null,null,"Date","# Bins picked up\nPrimary source","# Bins picked up\nSecondary source",null,null,null,"Date","# Bins picked up\nPrimary source","# Bins picked up\nSecondary source",null,null,null,"Date","# Bins picked up\nPrimary source","# Bins picked up\nSecondary source",null,null,null,"Date","# Bins picked up\nPrimary source","# Bins picked up\nSecondary source",null,null,null,"Date","# Bins picked up\nPrimary source","# Bins picked up\nSecondary source"]
[null,{"$f":"IFERROR(IF($B$2=\"\",\"\",DATE('Bin Count Summary'!$H$7,MONTH(DATEVALUE('Bin Count Summary'!$G$7&\" 1\")),1)),\"Define month to check\")","v":""},null,null,null,null,null,{"$f":"IFERROR(IF($H$2=\"\",\"\",DATE('Bin Count Summary'!$H$8,MONTH(DATEVALUE('Bin Count Summary'!$G$8&\" 1\")),1)),\"Define month to check\")","v":""},null,null,null,null,null,{"$f":"IFERROR(IF($N$2=\"\",\"\",DATE('Bin Count Summary'!$H$9,MONTH(DATEVALUE('Bin Count Summary'!$G$9&\" 1\")),1)),\"Define month to check\")","v":""},null,null,null,null,null,{"$f":"IFERROR(IF($T$2=\"\",\"\",DATE('Bin Count Summary'!$H$10,MONTH(DATEVALUE('Bin Count Summary'!$G$10&\" 1\")),1)),\"Define month to check\")","v":""},null,null,null,null,null,{"$f":"IFERROR(IF($Z$2=\"\",\"\",DATE('Bin Count Summary'!$H$11,MONTH(DATEVALUE('Bin Count Summary'!$G$11&\" 1\")),1)),\"Define month to check\")","v":""},null,null,null,null,null,{"$f":"IFERROR(IF($AF$2=\"\",\"\",DATE('Bin Count Summary'!$H$12,MONTH(DATEVALUE('Bin Count Summary'!$G$12&\" 1\")),1)),\"Define month to check\")","v":""},null,null,null,null,null,{"$f":"IFERROR(IF($AL$2=\"\",\"\",DATE('Bin Count Summary'!$H$13,MONTH(DATEVALUE('Bin Count Summary'!$G$13&\" 1\")),1)),\"Define month to check\")","v":""},null,null,null,null,null,{"$f":"IFERROR(IF($AR$2=\"\",\"\",DATE('Bin Count Summary'!$H$14,MONTH(DATEVALUE('Bin Count Summary'!$G$14&\" 1\")),1)),\"Define month to check\")","v":""},null,null,null,null,null,{"$f":"IFERROR(IF($AX$2=\"\",\"\",DATE('Bin Count Summary'!$H$15,MONTH(DATEVALUE('Bin Count Summary'!$G$15&\" 1\")),1)),\"Define month to check\")","v":""},null,null,null,null,null,{"$f":"IFERROR(IF($BD$2=\"\",\"\",DATE('Bin Count Summary'!$H$16,MONTH(DATEVALUE('Bin Count Summary'!$G$16&\" 1\")),1)),\"Define month to check\")","v":""},null,null,null,null,null,{"$f":"IFERROR(IF($BJ$2=\"\",\"\",DATE('Bin Count Summary'!$H$18,MONTH(DATEVALUE('Bin Count Summary'!$G$18&\" 1\")),1)),\"Define month to check\")","v":""},null,null,null,null,null,{"$f":"IFERROR(IF($BJ$2=\"\",\"\",DATE('Bin Count Summary'!$H$18,MONTH(DATEVALUE('Bin Count Summary'!$G$18&\" 1\")),1)),\"Define month to check\")","v":""},null,null,null,null,null,{"$f":"IFERROR(IF($BJ$2=\"\",\"\",DATE('Bin Count Summary'!$H$18,MONTH(DATEVALUE('Bin Count Summary'!$G$18&\" 1\")),1)),\"Define month to check\")","v":""},null,null,null,null,null,{"$f":"IFERROR(IF($BJ$2=\"\",\"\",DATE('Bin Count Summary'!$H$18,MONTH(DATEVALUE('Bin Count Summary'!$G$18&\" 1\")),1)),\"Define month to check\")","v":""},null,null,null,null,null,{"$f":"IFERROR(IF($BJ$2=\"\",\"\",DATE('Bin Count Summary'!$H$18,MONTH(DATEVALUE('Bin Count Summary'!$G$18&\" 1\")),1)),\"Define month to check\")","v":""},null,null,null,null,null,{"$f":"IFERROR(IF($BJ$2=\"\",\"\",DATE('Bin Count Summary'!$H$18,MONTH(DATEVALUE('Bin Count Summary'!$G$18&\" 1\")),1)),\"Define month to check\")","v":""},null,null,null,null,null,{"$f":"IFERROR(IF($BJ$2=\"\",\"\",DATE('Bin Count Summary'!$H$18,MONTH(DATEVALUE('Bin Count Summary'!$G$18&\" 1\")),1)),\"Define month to check\")","v":""},null,null,null,null,null,{"$f":"IFERROR(IF($BJ$2=\"\",\"\",DATE('Bin Count Summary'!$H$18,MONTH(DATEVALUE('Bin Count Summary'!$G$18&\" 1\")),1)),\"Define month to check\")","v":""},null,null,null,null,null,{"$f":"IFERROR(IF($BJ$2=\"\",\"\",DATE('Bin Count Summary'!$H$18,MONTH(DATEVALUE('Bin Count Summary'!$G$18&\" 1\")),1)),\"Define month to check\")","v":""},null,null,null,null,null,{"$f":"IFERROR(IF($BJ$2=\"\",\"\",DATE('Bin Count Summary'!$H$18,MONTH(DATEVALUE('Bin Count Summary'!$G$18&\" 1\")),1)),\"Define month to check\")","v":""}]
[null,{"$f":"IFERROR(IF(B4=\"\",\"\",IF(B4=EOMONTH($B$4,0),\"\",B4+1)),\"Define month to check\")","v":""},null,null,null,null,null,{"$f":"IFERROR(IF(H4=\"\",\"\",IF(H4=EOMONTH($H$4,0),\"\",H4+1)),\"Define month to check\")","v":""},null,null,null,null,null,{"$f":"IFERROR(IF(N4=\"\",\"\",IF(N4=EOMONTH($N$4,0),\"\",N4+1)),\"Define month to check\")","v":""},null,null,null,null,null,{"$f":"IFERROR(IF(T4=\"\",\"\",IF(T4=EOMONTH($T$4,0),\"\",T4+1)),\"Define month to check\")","v":""},null,null,null,null,null,{"$f":"IFERROR(IF(Z4=\"\",\"\",IF(Z4=EOMONTH($Z$4,0),\"\",Z4+1)),\"Define month to check\")","v":""},null,null,null,null,null,{"$f":"IFERROR(IF(AF4=\"\",\"\",IF(AF4=EOMONTH($AF$4,0),\"\",AF4+1)),\"Define month to check\")","v":""},null,null,null,null,null,{"$f":"IFERROR(IF(AL4=\"\",\"\",IF(AL4=EOMONTH($AL$4,0),\"\",AL4+1)),\"Define month to check\")","v":""},null,null,null,null,null,{"$f":"IFERROR(IF(AR4=\"\",\"\",IF(AR4=EOMONTH($AR$4,0),\"\",AR4+1)),\"Define month to check\")","v":""},null,null,null,null,null,{"$f":"IFERROR(IF(AX4=\"\",\"\",IF(AX4=EOMONTH($AX$4,0),\"\",AX4+1)),\"Define month to check\")","v":""},null,null,null,null,null,{"$f":"IFERROR(IF(BD4=\"\",\"\",IF(BD4=EOMONTH($BD$4,0),\"\",BD4+1)),\"Define month to check\")","v":""},null,null,null,null,null,{"$f":"IFERROR(IF(BJ4=\"\",\"\",IF(BJ4=EOMONTH($BJ$4,0),\"\",BJ4+1)),\"Define month to check\")","v":""},null,null,null,null,null,{"$f":"IFERROR(IF(BP4=\"\",\"\",IF(BP4=EOMONTH($BJ$4,0),\"\",BP4+1)),\"Define month to check\")","v":""},null,null,null,null,null,{"$f":"IFERROR(IF(BV4=\"\",\"\",IF(BV4=EOMONTH($BJ$4,0),\"\",BV4+1)),\"Define month to check\")","v":""},null,null,null,null,null,{"$f":"IFERROR(IF(CB4=\"\",\"\",IF(CB4=EOMONTH($BJ$4,0),\"\",CB4+1)),\"Define month to check\")","v":""},null,null,null,null,null,{"$f":"IFERROR(IF(CH4=\"\",\"\",IF(CH4=EOMONTH($BJ$4,0),\"\",CH4+1)),\"Define month to check\")","v":""},null,null,null,null,null,{"$f":"IFERROR(IF(CN4=\"\",\"\",IF(CN4=EOMONTH($BJ$4,0),\"\",CN4+1)),\"Define month to check\")","v":""},null,null,null,null,null,{"$f":"IFERROR(IF(CT4=\"\",\"\",IF(CT4=EOMONTH($BJ$4,0),\"\",CT4+1)),\"Define month to check\")","v":""},null,null,null,null,null,{"$f":"IFERROR(IF(CZ4=\"\",\"\",IF(CZ4=EOMONTH($BJ$4,0),\"\",CZ4+1)),\"Define month to check\")","v":""},null,null,null,null,null,{"$f":"IFERROR(IF(DF4=\"\",\"\",IF(DF4=EOMONTH($BJ$4,0),\"\",DF4+1)),\"Define month to check\")","v":""},null,null,null,null,null,{"$f":"IFERROR(IF(DL4=\"\",\"\",IF(DL4=EOMONTH($BJ$4,0),\"\",DL4+1)),\"Define month to check\")","v":""}]
[null,{"$f":"IFERROR(IF(B5=\"\",\"\",IF(B5=EOMONTH($B$4,0),\"\",B5+1)),\"Define month to check\")","v":""},null,null,null,null,null,{"$f":"IFERROR(IF(H5=\"\",\"\",IF(H5=EOMONTH($H$4,0),\"\",H5+1)),\"Define month to check\")","v":""},null,null,null,null,null,{"$f":"IFERROR(IF(N5=\"\",\"\",IF(N5=EOMONTH($N$4,0),\"\",N5+1)),\"Define month to check\")","v":""},null,null,null,null,null,{"$f":"IFERROR(IF(T5=\"\",\"\",IF(T5=EOMONTH($T$4,0),\"\",T5+1)),\"Define month to check\")","v":""},null,null,null,null,null,{"$f":"IFERROR(IF(Z5=\"\",\"\",IF(Z5=EOMONTH($Z$4,0),\"\",Z5+1)),\"Define month to check\")","v":""},null,null,null,null,null,{"$f":"IFERROR(IF(AF5=\"\",\"\",IF(AF5=EOMONTH($AF$4,0),\"\",AF5+1)),\"Define month to check\")","v":""},null,null,null,null,null,{"$f":"IFERROR(IF(AL5=\"\",\"\",IF(AL5=EOMONTH($AL$4,0),\"\",AL5+1)),\"Define month to check\")","v":""},null,null,null,null,null,{"$f":"IFERROR(IF(AR5=\"\",\"\",IF(AR5=EOMONTH($AR$4,0),\"\",AR5+1)),\"Define month to check\")","v":""},null,null,null,null,null,{"$f":"IFERROR(IF(AX5=\"\",\"\",IF(AX5=EOMONTH($AX$4,0),\"\",AX5+1)),\"Define month to check\")","v":""},null,null,null,null,null,{"$f":"IFERROR(IF(BD5=\"\",\"\",IF(BD5=EOMONTH($BD$4,0),\"\",BD5+1)),\"Define month to check\")","v":""},null,null,null,null,null,{"$f":"IFERROR(IF(BJ5=\"\",\"\",IF(BJ5=EOMONTH($BJ$4,0),\"\",BJ5+1)),\"Define month to check\")","v":""},null,null,null,null,null,{"$f":"IFERROR(IF(BP5=\"\",\"\",IF(BP5=EOMONTH($BJ$4,0),\"\",BP5+1)),\"Define month to check\")","v":""},null,null,null,null,null,{"$f":"IFERROR(IF(BV5=\"\",\"\",IF(BV5=EOMONTH($BJ$4,0),\"\",BV5+1)),\"Define month to check\")","v":""},null,null,null,null,null,{"$f":"IFERROR(IF(CB5=\"\",\"\",IF(CB5=EOMONTH($BJ$4,0),\"\",CB5+1)),\"Define month to check\")","v":""},null,null,null,null,null,{"$f":"IFERROR(IF(CH5=\"\",\"\",IF(CH5=EOMONTH($BJ$4,0),\"\",CH5+1)),\"Define month to check\")","v":""},null,null,null,null,null,{"$f":"IFERROR(IF(CN5=\"\",\"\",IF(CN5=EOMONTH($BJ$4,0),\"\",CN5+1)),\"Define month to check\")","v":""},null,null,null,null,null,{"$f":"IFERROR(IF(CT5=\"\",\"\",IF(CT5=EOMONTH($BJ$4,0),\"\",CT5+1)),\"Define month to check\")","v":""},null,null,null,null,null,{"$f":"IFERROR(IF(CZ5=\"\",\"\",IF(CZ5=EOMONTH($BJ$4,0),\"\",CZ5+1)),\"Define month to check\")","v":""},null,null,null,null,null,{"$f":"IFERROR(IF(DF5=\"\",\"\",IF(DF5=EOMONTH($BJ$4,0),\"\",DF5+1)),\"Define month to check\")","v":""},null,null,null,null,null,{"$f":"IFERROR(IF(DL5=\"\",\"\",IF(DL5=EOMONTH($BJ$4,0),\"\",DL5+1)),\"Define month to check\")","v":""}]
[null,"",null,null,null,null,null,"",null,null,null,null,null,"",null,null,null,null,null,"",null,null,null,null,null,"",null,null,null,null,null,"",null,null,null,null,null,"",null,null,null,null,null,"",null,null,null,null,null,"",null,null,null,null,null,"",null,null,null,null,null,"",null,null,null,null,null,"",null,null,null,null,null,"",null,null,null,null,null,"",null,null,null,null,null,"",null,null,null,null,null,"",null,null,null,null,null,"",null,null,null,null,null,"",null,null,null,null,null,"",null,null,null,null,null,""]
[null,"",null,null,null,null,null,"",null,null,null,null,null,"",null,null,null,null,null,"",null,null,null,null,null,"",null,null,null,null,null,"",null,null,null,null,null,"",null,null,null,null,null,"",null,null,null,null,null,"",null,null,null,null,null,"",null,null,null,null,null,"",null,null,null,null,null,"",null,null,null,null,null,"",null,null,null,null,null,"",null,null,null,null,null,"",null,null,null,null,null,"",null,null,null,null,null,"",null,null,null,null,null,"",null,null,null,null,null,"",null,null,null,null,null,""]
[null,{"$f":"IFERROR(IF(B8=\"\",\"\",IF(B8=EOMONTH($B$4,0),\"\",B8+1)),\"Define month to check\")","v":""},null,null,null,null,null,"",null,null,null,null,null,"",null,null,null,null,null,"",null,null,null,null,null,"",null,null,null,null,null,"",null,null,null,null,null,"",null,null,null,null,null,"",null,null,null,null,null,"",null,null,null,null,null,"",null,null,null,null,null,"",null,null,null,null,null,"",null,null,null,null,null,"",null,null,null,null,null,"",null,null,null,null,null,"",null,null,null,null,null,"",null,null,null,null,null,"",null,null,null,null,null,"",null,null,null,null,null,"",null,null,null,null,null,""]
[null,"",null,null,null,null,null,"",null,null,null,null,null,"",null,null,null,null,null,"",null,null,null,null,null,"",null,null,null,null,null,"",null,null,null,null,null,"",null,null,null,null,null,"",null,null,null,null,null,"",null,null,null,null,null,"",null,null,null,null,null,"",null,null,null,null,null,"",null,null,null,null,null,"",null,null,null,null,null,"",null,null,null,null,null,"",null,null,null,null,null,"",null,null,null,null,null,"",null,null,null,null,null,"",null,null,null,null,null,"",null,null,null,null,null,""]
[null,"",null,null,null,null,null,"",null,null,null,null,null,"",null,null,null,null,null,"",null,null,null,null,null,"",null,null,null,null,null,"",null,null,null,null,null,"",null,null,null,null,null,"",null,null,null,null,null,"",null,null,null,null,null,"",null,null,null,null,null,"",null,null,null,null,null,"",null,null,null,null,null,"",null,null,null,null,null,"",null,null,null,null,null,"",null,null,null,null,null,"",null,null,null,null,null,"",null,null,null,null,null,"",null,null,null,null,null,"",null,null,null,null,null,""]
[null,"",null,null,null,null,null,"",null,null,null,null,null,"",null,null,null,null,null,"",null,null,null,null,null,"",null,null,null,null,null,"",null,null,null,null,null,"",null,null,null,null,null,"",null,null,null,null,null,"",null,null,null,null,null,"",null,null,null,null,null,"",null,null,null,null,null,"",null,null,null,null,null,"",null,null,null,null,null,"",null,null,null,null,null,"",null,null,null,null,null,"",null,null,null,null,null,"",null,null,null,null,null,"",null,null,null,null,null,"",null,null,null,null,null,""]
[null,"",null,null,null,null,null,"",null,null,null,null,null,"",null,null,null,null,null,"",null,null,null,null,null,"",null,null,null,null,null,"",null,null,null,null,null,"",null,null,null,null,null,"",null,null,null,null,null,"",null,null,null,null,null,"",null,null,null,null,null,"",null,null,null,null,null,"",null,null,null,null,null,"",null,null,null,null,null,"",null,null,null,null,null,"",null,null,null,null,null,"",null,null,null,null,null,"",null,null,null,null,null,"",null,null,null,null,null,"",null,null,null,null,null,""]
[null,"",null,null,null,null,null,"",null,null,null,null,null,"",null,null,null,null,null,"",null,null,null,null,null,"",null,null,null,null,null,"",null,null,null,null,null,"",null,null,null,null,null,"",null,null,null,null,null,"",null,null,null,null,null,"",null,null,null,null,null,"",null,null,null,null,null,"",null,null,null,null,null,"",null,null,null,null,null,"",null,null,null,null,null,"",null,null,null,null,null,"",null,null,null,null,null,"",null,null,null,null,null,"",null,null,null,null,null,"",null,null,null,null,null,""]
[null,"",null,null,null,null,null,"",null,null,null,null,null,"",null,null,null,null,null,"",null,null,null,null,null,"",null,null,null,null,null,"",null,null,null,null,null,"",null,null,null,null,null,"",null,null,null,null,null,"",null,null,null,null,null,"",null,null,null,null,null,"",null,null,null,null,null,"",null,null,null,null,null,"",null,null,null,null,null,"",null,null,null,null,null,"",null,null,null,null,null,"",null,null,null,null,null,"",null,null,null,null,null,"",null,null,null,null,null,"",null,null,null,null,null,""]
[null,"",null,null,null,null,null,"",null,null,null,null,null,"",null,null,null,null,null,"",null,null,null,null,null,"",null,null,null,null,null,"",null,null,null,null,null,"",null,null,null,null,null,"",null,null,null,null,null,"",null,null,null,null,null,"",null,null,null,null,null,"",null,null,null,null,null,"",null,null,null,null,null,"",null,null,null,null,null,"",null,null,null,null,null,"",null,null,null,null,null,"",null,null,null,null,null,"",null,null,null,null,null,"",null,null,null,null,null,"",null,null,null,null,null,""]
[null,"",null,null,null,null,null,"",null,null,null,null,null,"",null,null,null,null,null,"",null,null,null,null,null,"",null,null,null,null,null,"",null,null,null,null,null,"",null,null,null,null,null,"",null,null,null,null,null,"",null,null,null,null,null,"",null,null,null,null,null,"",null,null,null,null,null,"",null,null,null,null,null,"",null,null,null,null,null,"",null,null,null,null,null,"",null,null,null,null,null,"",null,null,null,null,null,"",null,null,null,null,null,"",null,null,null,null,null,"",null,null,null,null,null,""]
[null,"",null,null,null,null,null,"",null,null,null,null,null,"",null,null,null,null,null,"",null,null,null,null,null,"",null,null,null,null,null,"",null,null,null,null,null,"",null,null,null,null,null,"",null,null,null,null,null,"",null,null,null,null,null,"",null,null,null,null,null,"",null,null,null,null,null,"",null,null,null,null,null,"",null,null,null,null,null,"",null,null,null,null,null,"",null,null,null,null,null,"",null,null,null,null,null,"",null,null,null,null,null,"",null,null,null,null,null,"",null,null,null,null,null,""]
[null,"",null,null,null,null,null,"",null,null,null,null,null,"",null,null,null,null,null,"",null,null,null,null,null,"",null,null,null,null,null,"",null,null,null,null,null,"",null,null,null,null,null,"",null,null,null,null,null,"",null,null,null,null,null,"",null,null,null,null,null,"",null,null,null,null,null,"",null,null,null,null,null,"",null,null,null,null,null,"",null,null,null,null,null,"",null,null,null,null,null,"",null,null,null,null,null,"",null,null,null,null,null,"",null,null,null,null,null,"",null,null,null,null,null,""]
[null,"",null,null,null,null,null,"",null,null,null,null,null,"",null,null,null,null,null,"",null,null,null,null,null,"",null,null,null,null,null,"",null,null,null,null,null,"",null,null,null,null,null,"",null,null,null,null,null,"",null,null,null,null,null,"",null,null,null,null,null,"",null,null,null,null,null,"",null,null,null,null,null,"",null,null,null,null,null,"",null,null,null,null,null,"",null,null,null,null,null,"",null,null,null,null,null,"",null,null,null,null,null,"",null,null,null,null,null,"",null,null,null,null,null,""]
[null,"",null,null,null,null,null,"",null,null,null,null,null,"",null,null,null,null,null,"",null,null,null,null,null,"",null,null,null,null,null,"",null,null,null,null,null,"",null,null,null,null,null,"",null,null,null,null,null,"",null,null,null,null,null,"",null,null,null,null,null,"",null,null,null,null,null,"",null,null,null,null,null,"",null,null,null,null,null,"",null,null,null,null,null,"",null,null,null,null,null,"",null,null,null,null,null,"",null,null,null,null,null,"",null,null,null,null,null,"",null,null,null,null,null,""]
[null,"",null,null,null,null,null,"",null,null,null,null,null,"",null,null,null,null,null,"",null,null,null,null,null,"",null,null,null,null,null,"",null,null,null,null,null,"",null,null,null,null,null,"",null,null,null,null,null,"",null,null,null,null,null,"",null,null,null,null,null,"",null,null,null,null,null,"",null,null,null,null,null,"",null,null,null,null,null,"",null,null,null,null,null,"",null,null,null,null,null,"",null,null,null,null,null,"",null,null,null,null,null,"",null,null,null,null,null,"",null,null,null,null,null,""]
[null,"",null,null,null,null,null,"",null,null,null,null,null,"",null,null,null,null,null,"",null,null,null,null,null,"",null,null,null,null,null,"",null,null,null,null,null,"",null,null,null,null,null,"",null,null,null,null,null,"",null,null,null,null,null,"",null,null,null,null,null,"",null,null,null,null,null,"",null,null,null,null,null,"",null,null,null,null,null,"",null,null,null,null,null,"",null,null,null,null,null,"",null,null,null,null,null,"",null,null,null,null,null,"",null,null,null,null,null,"",null,null,null,null,null,""]
[null,"",null,null,null,null,null,"",null,null,null,null,null,"",null,null,null,null,null,"",null,null,null,null,null,"",null,null,null,null,null,"",null,null,null,null,null,"",null,null,null,null,null,"",null,null,null,null,null,"",null,null,null,null,null,"",null,null,null,null,null,"",null,null,null,null,null,"",null,null,null,null,null,"",null,null,null,null,null,"",null,null,null,null,null,"",null,null,null,null,null,"",null,null,null,null,null,"",null,null,null,null,null,"",null,null,null,null,null,"",null,null,null,null,null,""]
[null,"",null,null,null,null,null,"",null,null,null,null,null,"",null,null,null,null,null,"",null,null,null,null,null,"",null,null,null,null,null,"",null,null,null,null,null,"",null,null,null,null,null,"",null,null,null,null,null,"",null,null,null,null,null,"",null,null,null,null,null,"",null,null,null,null,null,"",null,null,null,null,null,"",null,null,null,null,null,"",null,null,null,null,null,"",null,null,null,null,null,"",null,null,null,null,null,"",null,null,null,null,null,"",null,null,null,null,null,"",null,null,null,null,null,""]
[null,"",null,null,null,null,null,"",null,null,null,null,null,"",null,null,null,null,null,"",null,null,null,null,null,"",null,null,null,null,null,"",null,null,null,null,null,"",null,null,null,null,null,"",null,null,null,null,null,"",null,null,null,null,null,"",null,null,null,null,null,"",null,null,null,null,null,"",null,null,null,null,null,"",null,null,null,null,null,"",null,null,null,null,null,"",null,null,null,null,null,"",null,null,null,null,null,"",null,null,null,null,null,"",null,null,null,null,null,"",null,null,null,null,null,""]
[null,"",null,null,null,null,null,"",null,null,null,null,null,"",null,null,null,null,null,"",null,null,null,null,null,"",null,null,null,null,null,"",null,null,null,null,null,"",null,null,null,null,null,"",null,null,null,null,null,"",null,null,null,null,null,"",null,null,null,null,null,"",null,null,null,null,null,"",null,null,null,null,null,"",null,null,null,null,null,"",null,null,null,null,null,"",null,null,null,null,null,"",null,null,null,null,null,"",null,null,null,null,null,"",null,null,null,null,null,"",null,null,null,null,null,""]
[null,"",null,null,null,null,null,"",null,null,null,null,null,"",null,null,null,null,null,"",null,null,null,null,null,"",null,null,null,null,null,"",null,null,null,null,null,"",null,null,null,null,null,"",null,null,null,null,null,"",null,null,null,null,null,"",null,null,null,null,null,"",null,null,null,null,null,"",null,null,null,null,null,"",null,null,null,null,null,"",null,null,null,null,null,"",null,null,null,null,null,"",null,null,null,null,null,"",null,null,null,null,null,"",null,null,null,null,null,"",null,null,null,null,null,""]
[null,"",null,null,null,null,null,"",null,null,null,null,null,"",null,null,null,null,null,"",null,null,null,null,null,"",null,null,null,null,null,"",null,null,null,null,null,"",null,null,null,null,null,"",null,null,null,null,null,"",null,null,null,null,null,"",null,null,null,null,null,"",null,null,null,null,null,"",null,null,null,null,null,"",null,null,null,null,null,"",null,null,null,null,null,"",null,null,null,null,null,"",null,null,null,null,null,"",null,null,null,null,null,"",null,null,null,null,null,"",null,null,null,null,null,""]
[null,"",null,null,null,null,null,"",null,null,null,null,null,"",null,null,null,null,null,"",null,null,null,null,null,"",null,null,null,null,null,"",null,null,null,null,null,"",null,null,null,null,null,"",null,null,null,null,null,"",null,null,null,null,null,"",null,null,null,null,null,"",null,null,null,null,null,"",null,null,null,null,null,"",null,null,null,null,null,"",null,null,null,null,null,"",null,null,null,null,null,"",null,null,null,null,null,"",null,null,null,null,null,"",null,null,null,null,null,"",null,null,null,null,null,""]
[null,"",null,null,null,null,null,"",null,null,null,null,null,"",null,null,null,null,null,"",null,null,null,null,null,"",null,null,null,null,null,"",null,null,null,null,null,"",null,null,null,null,null,"",null,null,null,null,null,"",null,null,null,null,null,"",null,null,null,null,null,"",null,null,null,null,null,"",null,null,null,null,null,"",null,null,null,null,null,"",null,null,null,null,null,"",null,null,null,null,null,"",null,null,null,null,null,"",null,null,null,null,null,"",null,null,null,null,null,"",null,null,null,null,null,""]
[null,"",null,null,null,null,null,"",null,null,null,null,null,"",null,null,null,null,null,"",null,null,null,null,null,"",null,null,null,null,null,"",null,null,null,null,null,"",null,null,null,null,null,"",null,null,null,null,null,"",null,null,null,null,null,"",null,null,null,null,null,"",null,null,null,null,null,"",null,null,null,null,null,"",null,null,null,null,null,"",null,null,null,null,null,"",null,null,null,null,null,"",null,null,null,null,null,"",null,null,null,null,null,"",null,null,null,null,null,"",null,null,null,null,null,""]
[null,"",null,null,null,null,null,"",null,null,null,null,null,"",null,null,null,null,null,"",null,null,null,null,null,"",null,null,null,null,null,"",null,null,null,null,null,"",null,null,null,null,null,"",null,null,null,null,null,"",null,null,null,null,null,"",null,null,null,null,null,"",null,null,null,null,null,"",null,null,null,null,null,"",null,null,null,null,null,"",null,null,null,null,null,"",null,null,null,null,null,"",null,null,null,null,null,"",null,null,null,null,null,"",null,null,null,null,null,"",null,null,null,null,null,""]
[null,"",null,null,null,null,null,"",null,null,null,null,null,"",null,null,null,null,null,"",null,null,null,null,null,"",null,null,null,null,null,"",null,null,null,null,null,"",null,null,null,null,null,"",null,null,null,null,null,"",null,null,null,null,null,"",null,null,null,null,null,"",null,null,null,null,null,"",null,null,null,null,null,"",null,null,null,null,null,"",null,null,null,null,null,"",null,null,null,null,null,"",null,null,null,null,null,"",null,null,null,null,null,"",null,null,null,null,null,"",null,null,null,null,null,""]
[null,null,null,null,null,null,null,""]

{"sheet":"Composition Audit Calculator","index":3,"n_rows":127,"n_cols":5,"rows_kept":127,"cut":false,"hidden":false,"merged":[[126,1,126,4],[127,1,130,4],[110,2,110,4],[111,2,111,4],[112,1,112,4],[101,1,101,4],[102,1,105,4],[108,1,108,4],[109,2,109,4],[84,2,84,4],[85,2,85,4],[86,2,86,4],[87,1,87,4],[76,1,76,4],[77,1,80,4],[83,1,83,4],[59,2,59,4],[60,2,60,4],[61,2,61,4],[62,1,62,4],[8,1,8,4],[33,1,33,4],[36,2,36,4],[37,1,37,4],[51,1,51,4],[52,1,55,4],[58,1,58,4],[27,1,30,4],[26,1,26,4],[34,2,34,4],[35,2,35,4],[3,1,3,4],[12,1,12,4],[1,1,1,5],[4,1,4,5],[6,2,6,4],[5,2,5,4],[9,2,9,4],[10,2,10,4],[11,2,11,4]]}
[]
[null,"Composition Audit results calculator"]
[]
[null,"The tables below may be used to help determine the percentage splits of materials from mixed material bins, as per section 7.10 of the Waste Rules v2.0. The percentage values can then be transferred to the Composition Audit page of the Waste Platform to calculate the MRS value for each material stream. All weights requested are Net weights."]
[null,"Audit details"]
[null,"Audit date: "]
[null,"Name of auditor: "]
[]
[null,"Material stream results"]
[null,"Material Stream audited: "]
[null,"Total pre-sorted contamination (kg): "]
[null,"Number and size of all bins audited: "]
[null,"The value in the Total Weight column below should be the combined net weight for that material type from all bins included in the audit of this material stream. "]
[null,"Material Category","Material Type","Total Weight (kg)","Percent"]
[null,null,null,null,{"$f":"IFERROR(IF(Table1[[#This Row],[Material Category]]>0,Table1[[#This Row],[Total Weight (kg)]]/SUBTOTAL(109,Table1[Total Weight (kg)]),\"\"),\"\")","v":""}]
[null,null,null,null,{"$f":"IFERROR(IF(Table1[[#This Row],[Material Category]]>0,Table1[[#This Row],[Total Weight (kg)]]/SUBTOTAL(109,Table1[Total Weight (kg)]),\"\"),\"\")","v":""}]
[null,null,null,null,{"$f":"IFERROR(IF(Table1[[#This Row],[Material Category]]>0,Table1[[#This Row],[Total Weight (kg)]]/SUBTOTAL(109,Table1[Total Weight (kg)]),\"\"),\"\")","v":""}]
[null,null,null,null,{"$f":"IFERROR(IF(Table1[[#This Row],[Material Category]]>0,Table1[[#This Row],[Total Weight (kg)]]/SUBTOTAL(109,Table1[Total Weight (kg)]),\"\"),\"\")","v":""}]
[null,null,null,null,{"$f":"IFERROR(IF(Table1[[#This Row],[Material Category]]>0,Table1[[#This Row],[Total Weight (kg)]]/SUBTOTAL(109,Table1[Total Weight (kg)]),\"\"),\"\")","v":""}]
[null,null,null,null,{"$f":"IFERROR(IF(Table1[[#This Row],[Material Category]]>0,Table1[[#This Row],[Total Weight (kg)]]/SUBTOTAL(109,Table1[Total Weight (kg)]),\"\"),\"\")","v":""}]
[null,null,null,null,{"$f":"IFERROR(IF(Table1[[#This Row],[Material Category]]>0,Table1[[#This Row],[Total Weight (kg)]]/SUBTOTAL(109,Table1[Total Weight (kg)]),\"\"),\"\")","v":""}]
[null,null,null,null,{"$f":"IFERROR(IF(Table1[[#This Row],[Material Category]]>0,Table1[[#This Row],[Total Weight (kg)]]/SUBTOTAL(109,Table1[Total Weight (kg)]),\"\"),\"\")","v":""}]
[null,null,null,null,{"$f":"IFERROR(IF(Table1[[#This Row],[Material Category]]>0,Table1[[#This Row],[Total Weight (kg)]]/SUBTOTAL(109,Table1[Total Weight (kg)]),\"\"),\"\")","v":""}]
[null,null,null,null,{"$f":"IFERROR(IF(Table1[[#This Row],[Material Category]]>0,Table1[[#This Row],[Total Weight (kg)]]/SUBTOTAL(109,Table1[Total Weight (kg)]),\"\"),\"\")","v":""}]
[null,{"$f":"\"\"","v":""},{"$f":"\"Total\"","v":"Total"},{"$f":"SUBTOTAL(109,Table1[Total Weight (kg)])","v":0},{"$f":"SUM(Table1[Percent])","v":0}]
[null,null,"Add extra rows to this table as needed by clicking the \"Add row\" button here -->"]
[null,"Assessor comments:\n"]
[]
[]
[]
[]
[]
[]
[null,"Material stream results"]
[null,"Material Stream audited: "]
[null,"Total pre-sorted contamination (kg): "]
[null,"Number and size of all bins audited: "]
[null,"The value in the Total Weight column below should be the combined net weight for that material type from all bins included in the audit of this material stream. "]
[null,"Material Category","Material Type","Total Weight (kg)","Percent"]
[null,null,null,null,{"$f":"IFERROR(IF(Table123[[#This Row],[Material Category]]>0,Table123[[#This Row],[Total Weight (kg)]]/SUBTOTAL(109,Table123[Total Weight (kg)]),\"\"),\"\")","v":""}]
[null,null,null,null,{"$f":"IFERROR(IF(Table123[[#This Row],[Material Category]]>0,Table123[[#This Row],[Total Weight (kg)]]/SUBTOTAL(109,Table123[Total Weight (kg)]),\"\"),\"\")","v":""}]
[null,null,null,null,{"$f":"IFERROR(IF(Table123[[#This Row],[Material Category]]>0,Table123[[#This Row],[Total Weight (kg)]]/SUBTOTAL(109,Table123[Total Weight (kg)]),\"\"),\"\")","v":""}]
[null,null,null,null,{"$f":"IFERROR(IF(Table123[[#This Row],[Material Category]]>0,Table123[[#This Row],[Total Weight (kg)]]/SUBTOTAL(109,Table123[Total Weight (kg)]),\"\"),\"\")","v":""}]
[null,null,null,null,{"$f":"IFERROR(IF(Table123[[#This Row],[Material Category]]>0,Table123[[#This Row],[Total Weight (kg)]]/SUBTOTAL(109,Table123[Total Weight (kg)]),\"\"),\"\")","v":""}]
[null,null,null,null,{"$f":"IFERROR(IF(Table123[[#This Row],[Material Category]]>0,Table123[[#This Row],[Total Weight (kg)]]/SUBTOTAL(109,Table123[Total Weight (kg)]),\"\"),\"\")","v":""}]
[null,null,null,null,{"$f":"IFERROR(IF(Table123[[#This Row],[Material Category]]>0,Table123[[#This Row],[Total Weight (kg)]]/SUBTOTAL(109,Table123[Total Weight (kg)]),\"\"),\"\")","v":""}]
[null,null,null,null,{"$f":"IFERROR(IF(Table123[[#This Row],[Material Category]]>0,Table123[[#This Row],[Total Weight (kg)]]/SUBTOTAL(109,Table123[Total Weight (kg)]),\"\"),\"\")","v":""}]
[null,null,null,null,{"$f":"IFERROR(IF(Table123[[#This Row],[Material Category]]>0,Table123[[#This Row],[Total Weight (kg)]]/SUBTOTAL(109,Table123[Total Weight (kg)]),\"\"),\"\")","v":""}]
[null,null,null,null,{"$f":"IFERROR(IF(Table123[[#This Row],[Material Category]]>0,Table123[[#This Row],[Total Weight (kg)]]/SUBTOTAL(109,Table123[Total Weight (kg)]),\"\"),\"\")","v":""}]
[null,{"$f":"\"\"","v":""},{"$f":"\"Total\"","v":"Total"},{"$f":"SUBTOTAL(109,Table123[Total Weight (kg)])","v":0},{"$f":"SUM(Table123[Percent])","v":0}]
[null,null,"Add extra rows to this table as needed by clicking the \"Add row\" button here -->"]
[null,"Assessor comments:\n"]
[]
[]
[]
[]
[]
[]
[null,"Material stream results"]
[null,"Material Stream audited: "]
[null,"Total pre-sorted contamination (kg): "]
[null,"Number and size of all bins audited: "]
[null,"The value in the Total Weight column below should be the combined net weight for that material type from all bins included in the audit of this material stream. "]
[null,"Material Category","Material Type","Total Weight (kg)","Percent"]
[null,null,null,null,{"$f":"IFERROR(IF(Table124[[#This Row],[Material Category]]>0,Table124[[#This Row],[Total Weight (kg)]]/SUBTOTAL(109,Table124[Total Weight (kg)]),\"\"),\"\")","v":""}]
[null,null,null,null,{"$f":"IFERROR(IF(Table124[[#This Row],[Material Category]]>0,Table124[[#This Row],[Total Weight (kg)]]/SUBTOTAL(109,Table124[Total Weight (kg)]),\"\"),\"\")","v":""}]
[null,null,null,null,{"$f":"IFERROR(IF(Table124[[#This Row],[Material Category]]>0,Table124[[#This Row],[Total Weight (kg)]]/SUBTOTAL(109,Table124[Total Weight (kg)]),\"\"),\"\")","v":""}]
[null,null,null,null,{"$f":"IFERROR(IF(Table124[[#This Row],[Material Category]]>0,Table124[[#This Row],[Total Weight (kg)]]/SUBTOTAL(109,Table124[Total Weight (kg)]),\"\"),\"\")","v":""}]
[null,null,null,null,{"$f":"IFERROR(IF(Table124[[#This Row],[Material Category]]>0,Table124[[#This Row],[Total Weight (kg)]]/SUBTOTAL(109,Table124[Total Weight (kg)]),\"\"),\"\")","v":""}]
[null,null,null,null,{"$f":"IFERROR(IF(Table124[[#This Row],[Material Category]]>0,Table124[[#This Row],[Total Weight (kg)]]/SUBTOTAL(109,Table124[Total Weight (kg)]),\"\"),\"\")","v":""}]
[null,null,null,null,{"$f":"IFERROR(IF(Table124[[#This Row],[Material Category]]>0,Table124[[#This Row],[Total Weight (kg)]]/SUBTOTAL(109,Table124[Total Weight (kg)]),\"\"),\"\")","v":""}]
[null,null,null,null,{"$f":"IFERROR(IF(Table124[[#This Row],[Material Category]]>0,Table124[[#This Row],[Total Weight (kg)]]/SUBTOTAL(109,Table124[Total Weight (kg)]),\"\"),\"\")","v":""}]
[null,null,null,null,{"$f":"IFERROR(IF(Table124[[#This Row],[Material Category]]>0,Table124[[#This Row],[Total Weight (kg)]]/SUBTOTAL(109,Table124[Total Weight (kg)]),\"\"),\"\")","v":""}]
[null,null,null,null,{"$f":"IFERROR(IF(Table124[[#This Row],[Material Category]]>0,Table124[[#This Row],[Total Weight (kg)]]/SUBTOTAL(109,Table124[Total Weight (kg)]),\"\"),\"\")","v":""}]
[null,{"$f":"\"\"","v":""},{"$f":"\"Total\"","v":"Total"},{"$f":"SUBTOTAL(109,Table124[Total Weight (kg)])","v":0},{"$f":"SUM(Table124[Percent])","v":0}]
[null,null,"Add extra rows to this table as needed by clicking the \"Add row\" button here -->"]
[null,"Assessor comments:\n"]
[]
[]
[]
[]
[]
[]
[null,"Material stream results"]
[null,"Material Stream audited: "]
[null,"Total pre-sorted contamination (kg): "]
[null,"Number and size of all bins audited: "]
[null,"The value in the Total Weight column below should be the combined net weight for that material type from all bins included in the audit of this material stream. "]
[null,"Material Category","Material Type","Total Weight (kg)","Percent"]
[null,null,null,null,{"$f":"IFERROR(IF(Table125[[#This Row],[Material Category]]>0,Table125[[#This Row],[Total Weight (kg)]]/SUBTOTAL(109,Table125[Total Weight (kg)]),\"\"),\"\")","v":""}]
[null,null,null,null,{"$f":"IFERROR(IF(Table125[[#This Row],[Material Category]]>0,Table125[[#This Row],[Total Weight (kg)]]/SUBTOTAL(109,Table125[Total Weight (kg)]),\"\"),\"\")","v":""}]
[null,null,null,null,{"$f":"IFERROR(IF(Table125[[#This Row],[Material Category]]>0,Table125[[#This Row],[Total Weight (kg)]]/SUBTOTAL(109,Table125[Total Weight (kg)]),\"\"),\"\")","v":""}]
[null,null,null,null,{"$f":"IFERROR(IF(Table125[[#This Row],[Material Category]]>0,Table125[[#This Row],[Total Weight (kg)]]/SUBTOTAL(109,Table125[Total Weight (kg)]),\"\"),\"\")","v":""}]
[null,null,null,null,{"$f":"IFERROR(IF(Table125[[#This Row],[Material Category]]>0,Table125[[#This Row],[Total Weight (kg)]]/SUBTOTAL(109,Table125[Total Weight (kg)]),\"\"),\"\")","v":""}]
[null,null,null,null,{"$f":"IFERROR(IF(Table125[[#This Row],[Material Category]]>0,Table125[[#This Row],[Total Weight (kg)]]/SUBTOTAL(109,Table125[Total Weight (kg)]),\"\"),\"\")","v":""}]
[null,null,null,null,{"$f":"IFERROR(IF(Table125[[#This Row],[Material Category]]>0,Table125[[#This Row],[Total Weight (kg)]]/SUBTOTAL(109,Table125[Total Weight (kg)]),\"\"),\"\")","v":""}]
[null,null,null,null,{"$f":"IFERROR(IF(Table125[[#This Row],[Material Category]]>0,Table125[[#This Row],[Total Weight (kg)]]/SUBTOTAL(109,Table125[Total Weight (kg)]),\"\"),\"\")","v":""}]
[null,null,null,null,{"$f":"IFERROR(IF(Table125[[#This Row],[Material Category]]>0,Table125[[#This Row],[Total Weight (kg)]]/SUBTOTAL(109,Table125[Total Weight (kg)]),\"\"),\"\")","v":""}]
[null,null,null,null,{"$f":"IFERROR(IF(Table125[[#This Row],[Material Category]]>0,Table125[[#This Row],[Total Weight (kg)]]/SUBTOTAL(109,Table125[Total Weight (kg)]),\"\"),\"\")","v":""}]
[null,{"$f":"\"\"","v":""},{"$f":"\"Total\"","v":"Total"},{"$f":"SUBTOTAL(109,Table125[Total Weight (kg)])","v":0},{"$f":"SUM(Table125[Percent])","v":0}]
[null,null,"Add extra rows to this table as needed by clicking the \"Add row\" button here -->"]
[null,"Assessor comments:\n"]
[]
[]
[]
[]
[]
[]
[null,"Material stream results"]
[null,"Material Stream audited: "]
[null,"Total pre-sorted contamination (kg): "]
[null,"Number and size of all bins audited: "]
[null,"The value in the Total Weight column below should be the combined net weight for that material type from all bins included in the audit of this material stream. "]
[null,"Material Category","Material Type","Total Weight (kg)","Percent"]
[null,null,null,null,{"$f":"IFERROR(IF(Table126[[#This Row],[Material Category]]>0,Table126[[#This Row],[Total Weight (kg)]]/SUBTOTAL(109,Table126[Total Weight (kg)]),\"\"),\"\")","v":""}]
[null,null,null,null,{"$f":"IFERROR(IF(Table126[[#This Row],[Material Category]]>0,Table126[[#This Row],[Total Weight (kg)]]/SUBTOTAL(109,Table126[Total Weight (kg)]),\"\"),\"\")","v":""}]
[null,null,null,null,{"$f":"IFERROR(IF(Table126[[#This Row],[Material Category]]>0,Table126[[#This Row],[Total Weight (kg)]]/SUBTOTAL(109,Table126[Total Weight (kg)]),\"\"),\"\")","v":""}]
[null,null,null,null,{"$f":"IFERROR(IF(Table126[[#This Row],[Material Category]]>0,Table126[[#This Row],[Total Weight (kg)]]/SUBTOTAL(109,Table126[Total Weight (kg)]),\"\"),\"\")","v":""}]
[null,null,null,null,{"$f":"IFERROR(IF(Table126[[#This Row],[Material Category]]>0,Table126[[#This Row],[Total Weight (kg)]]/SUBTOTAL(109,Table126[Total Weight (kg)]),\"\"),\"\")","v":""}]
[null,null,null,null,{"$f":"IFERROR(IF(Table126[[#This Row],[Material Category]]>0,Table126[[#This Row],[Total Weight (kg)]]/SUBTOTAL(109,Table126[Total Weight (kg)]),\"\"),\"\")","v":""}]
[null,null,null,null,{"$f":"IFERROR(IF(Table126[[#This Row],[Material Category]]>0,Table126[[#This Row],[Total Weight (kg)]]/SUBTOTAL(109,Table126[Total Weight (kg)]),\"\"),\"\")","v":""}]
[null,null,null,null,{"$f":"IFERROR(IF(Table126[[#This Row],[Material Category]]>0,Table126[[#This Row],[Total Weight (kg)]]/SUBTOTAL(109,Table126[Total Weight (kg)]),\"\"),\"\")","v":""}]
[null,null,null,null,{"$f":"IFERROR(IF(Table126[[#This Row],[Material Category]]>0,Table126[[#This Row],[Total Weight (kg)]]/SUBTOTAL(109,Table126[Total Weight (kg)]),\"\"),\"\")","v":""}]
[null,null,null,null,{"$f":"IFERROR(IF(Table126[[#This Row],[Material Category]]>0,Table126[[#This Row],[Total Weight (kg)]]/SUBTOTAL(109,Table126[Total Weight (kg)]),\"\"),\"\")","v":""}]
[null,{"$f":"\"\"","v":""},{"$f":"\"Total\"","v":"Total"},{"$f":"SUBTOTAL(109,Table126[Total Weight (kg)])","v":0},{"$f":"SUM(Table126[Percent])","v":0}]
[null,null,"Add extra rows to this table as needed by clicking the \"Add row\" button here -->"]
[null,"Assessor comments:\n"]

{"sheet":"Data Comparison","index":4,"n_rows":36,"n_cols":120,"rows_kept":36,"cut":false,"hidden":true,"merged":[[1,109,1,111],[1,115,1,117],[1,73,1,75],[1,79,1,81],[1,85,1,87],[1,91,1,93],[1,97,1,99],[1,103,1,105],[1,67,1,69],[1,1,1,3],[1,7,1,9],[1,13,1,15],[1,19,1,21],[1,25,1,27],[1,31,1,33],[1,37,1,39],[1,43,1,45],[1,49,1,51],[1,55,1,57],[1,61,1,63]]}
[]
[null,{"$f":"IF('Bin Count Summary'!$B$7=\"\",\"\",_xlfn.CONCAT('Bin Count Summary'!$B$7,\" - \",'Bin Count Summary'!$C$7,\" - \",'Bin Count Summary'!$D$7,'Bin Count Summary'!$E$7,\" at Dock \",'Bin Count Summary'!$F$7))","v":""},null,null,null,null,null,{"$f":"IF('Bin Count Summary'!$B$8=\"\",\"\",_xlfn.CONCAT('Bin Count Summary'!$B$8,\" - \",'Bin Count Summary'!$C$8,\" - \",'Bin Count Summary'!$D$8,'Bin Count Summary'!$E$8,\" at Dock \",'Bin Count Summary'!$F$8))","v":""},null,null,null,null,null,{"$f":"IF('Bin Count Summary'!$B$9=\"\",\"\",_xlfn.CONCAT('Bin Count Summary'!$B$9,\" - \",'Bin Count Summary'!$C$9,\" - \",'Bin Count Summary'!$D$9,'Bin Count Summary'!$E$9,\" at Dock \",'Bin Count Summary'!$F$9))","v":""},null,null,null,null,null,{"$f":"IF('Bin Count Summary'!$B$10=\"\",\"\",_xlfn.CONCAT('Bin Count Summary'!$B$10,\" - \",'Bin Count Summary'!$C$10,\" - \",'Bin Count Summary'!$D$10,'Bin Count Summary'!$E$10,\" at Dock \",'Bin Count Summary'!$F$10))","v":""},null,null,null,null,null,{"$f":"IF('Bin Count Summary'!$B$11=\"\",\"\",_xlfn.CONCAT('Bin Count Summary'!$B$11,\" - \",'Bin Count Summary'!$C$11,\" - \",'Bin Count Summary'!$D$11,'Bin Count Summary'!$E$11,\" at Dock \",'Bin Count Summary'!$F$11))","v":""},null,null,null,null,null,{"$f":"IF('Bin Count Summary'!$B$12=\"\",\"\",_xlfn.CONCAT('Bin Count Summary'!$B$12,\" - \",'Bin Count Summary'!$C$12,\" - \",'Bin Count Summary'!$D$12,'Bin Count Summary'!$E$12,\" at Dock \",'Bin Count Summary'!$F$12))","v":""},null,null,null,null,null,{"$f":"IF('Bin Count Summary'!$B$13=\"\",\"\",_xlfn.CONCAT('Bin Count Summary'!$B$13,\" - \",'Bin Count Summary'!$C$13,\" - \",'Bin Count Summary'!$D$13,'Bin Count Summary'!$E$13,\" at Dock \",'Bin Count Summary'!$F$13))","v":""},null,null,null,null,null,{"$f":"IF('Bin Count Summary'!$B$14=\"\",\"\",_xlfn.CONCAT('Bin Count Summary'!$B$14,\" - \",'Bin Count Summary'!$C$14,\" - \",'Bin Count Summary'!$D$14,'Bin Count Summary'!$E$14,\" at Dock \",'Bin Count Summary'!$F$14))","v":""},null,null,null,null,null,{"$f":"IF('Bin Count Summary'!$B$15=\"\",\"\",_xlfn.CONCAT('Bin Count Summary'!$B$15,\" - \",'Bin Count Summary'!$C$15,\" - \",'Bin Count Summary'!$D$15,'Bin Count Summary'!$E$15,\" at Dock \",'Bin Count Summary'!$F$15))","v":""},null,null,null,null,null,{"$f":"IF('Bin Count Summary'!$B$16=\"\",\"\",_xlfn.CONCAT('Bin Count Summary'!$B$16,\" - \",'Bin Count Summary'!$C$16,\" - \",'Bin Count Summary'!$D$16,'Bin Count Summary'!$E$16,\" at Dock \",'Bin Count Summary'!$F$16))","v":""},null,null,null,null,null,{"$f":"IF('Bin Count Summary'!$B$17=\"\",\"\",_xlfn.CONCAT('Bin Count Summary'!$B$17,\" - \",'Bin Count Summary'!$C$17,\" - \",'Bin Count Summary'!$D$17,'Bin Count Summary'!$E$17,\" at Dock \",'Bin Count Summary'!$F$17))","v":""},null,null,null,null,null,{"$f":"IF('Bin Count Summary'!$B$18=\"\",\"\",_xlfn.CONCAT('Bin Count Summary'!$B$18,\" - \",'Bin Count Summary'!$C$18,\" - \",'Bin Count Summary'!$D$18,'Bin Count Summary'!$E$18,\" at Dock \",'Bin Count Summary'!$F$18))","v":""},null,null,null,null,null,{"$f":"IF('Bin Count Summary'!$B19=\"\",\"\",_xlfn.CONCAT('Bin Count Summary'!$B19,\" - \",'Bin Count Summary'!$C19,\" - \",'Bin Count Summary'!$D19,'Bin Count Summary'!$E19,\" at Dock \",'Bin Count Summary'!$F19))","v":""},null,null,null,null,null,{"$f":"IF('Bin Count Summary'!$B20=\"\",\"\",_xlfn.CONCAT('Bin Count Summary'!$B20,\" - \",'Bin Count Summary'!$C20,\" - \",'Bin Count Summary'!$D20,'Bin Count Summary'!$E20,\" at Dock \",'Bin Count Summary'!$F20))","v":""},null,null,null,null,null,{"$f":"IF('Bin Count Summary'!$B21=\"\",\"\",_xlfn.CONCAT('Bin Count Summary'!$B21,\" - \",'Bin Count Summary'!$C21,\" - \",'Bin Count Summary'!$D21,'Bin Count Summary'!$E21,\" at Dock \",'Bin Count Summary'!$F21))","v":""},null,null,null,null,null,{"$f":"IF('Bin Count Summary'!$B22=\"\",\"\",_xlfn.CONCAT('Bin Count Summary'!$B22,\" - \",'Bin Count Summary'!$C22,\" - \",'Bin Count Summary'!$D22,'Bin Count Summary'!$E22,\" at Dock \",'Bin Count Summary'!$F22))","v":""},null,null,null,null,null,{"$f":"IF('Bin Count Summary'!$B23=\"\",\"\",_xlfn.CONCAT('Bin Count Summary'!$B23,\" - \",'Bin Count Summary'!$C23,\" - \",'Bin Count Summary'!$D23,'Bin Count Summary'!$E23,\" at Dock \",'Bin Count Summary'!$F23))","v":""},null,null,null,null,null,{"$f":"IF('Bin Count Summary'!$B24=\"\",\"\",_xlfn.CONCAT('Bin Count Summary'!$B24,\" - \",'Bin Count Summary'!$C24,\" - \",'Bin Count Summary'!$D24,'Bin Count Summary'!$E24,\" at Dock \",'Bin Count Summary'!$F24))","v":""},null,null,null,null,null,{"$f":"IF('Bin Count Summary'!$B25=\"\",\"\",_xlfn.CONCAT('Bin Count Summary'!$B25,\" - \",'Bin Count Summary'!$C25,\" - \",'Bin Count Summary'!$D25,'Bin Count Summary'!$E25,\" at Dock \",'Bin Count Summary'!$F25))","v":""},null,null,null,null,null,{"$f":"IF('Bin Count Summary'!$B26=\"\",\"\",_xlfn.CONCAT('Bin Count Summary'!$B26,\" - \",'Bin Count Summary'!$C26,\" - \",'Bin Count Summary'!$D26,'Bin Count Summary'!$E26,\" at Dock \",'Bin Count Summary'!$F26))","v":""}]
[null,"Date","# Bins picked up\nPrimary source","# Bins picked up\nSecondary source","Absolute variation","Weights for average",null,"Date","# Bins picked up\nPrimary source","# Bins picked up\nSecondary source","Absolute variation","Weights for average",null,"Date","# Bins picked up\nPrimary source","# Bins picked up\nSecondary source","Absolute variation","Weights for average",null,"Date","# Bins picked up\nPrimary source","# Bins picked up\nSecondary source","Absolute variation","Weights for average",null,"Date","# Bins picked up\nPrimary source","# Bins picked up\nSecondary source","Absolute variation","Weights for average",null,"Date","# Bins picked up\nPrimary source","# Bins picked up\nSecondary source","Absolute variation","Weights for average",null,"Date","# Bins picked up\nPrimary source","# Bins picked up\nSecondary source","Absolute variation","Weights for average",null,"Date","# Bins picked up\nPrimary source","# Bins picked up\nSecondary source","Absolute variation","Weights for average",null,"Date","# Bins picked up\nPrimary source","# Bins picked up\nSecondary source","Absolute variation","Weights for average",null,"Date","# Bins picked up\nPrimary source","# Bins picked up\nSecondary source","Absolute variation","Weights for average",null,"Date","# Bins picked up\nPrimary source","# Bins picked up\nSecondary source","Absolute variation","Weights for average",null,"Date","# Bins picked up\nPrimary source","# Bins picked up\nSecondary source","Absolute variation","Weights for average",null,"Date","# Bins picked up\nPrimary source","# Bins picked up\nSecondary source","Absolute variation","Weights for average",null,"Date","# Bins picked up\nPrimary source","# Bins picked up\nSecondary source","Absolute variation","Weights for average",null,"Date","# Bins picked up\nPrimary source","# Bins picked up\nSecondary source","Absolute variation","Weights for average",null,"Date","# Bins picked up\nPrimary source","# Bins picked up\nSecondary source","Absolute variation","Weights for average",null,"Date","# Bins picked up\nPrimary source","# Bins picked up\nSecondary source","Absolute variation","Weights for average",null,"Date","# Bins picked up\nPrimary source","# Bins picked up\nSecondary source","Absolute variation","Weights for average",null,"Date","# Bins picked up\nPrimary source","# Bins picked up\nSecondary source","Absolute variation","Weights for average",null,"Date","# Bins picked up\nPrimary source","# Bins picked up\nSecondary source","Absolute variation","Weights for average"]
[null,{"$f":"IFERROR(IF($B$2=\"\",\"\",DATE('Bin Count Summary'!$H$7,MONTH(DATEVALUE('Bin Count Summary'!$G$7&\" 1\")),1)),\"Define month to check\")","v":""},{"$f":"IF('Bin Count Data'!C4=\"\",0,VALUE('Bin Count Data'!C4))","v":0},{"$f":"IF('Bin Count Data'!D4=\"\",0,VALUE('Bin Count Data'!D4))","v":0},{"$f":"IFERROR(IF(C4/MAX($C$4:$D$34)>D4/MAX($C$4:$D$34),ABS((D4-C4)/C4),ABS((D4-C4)/D4)),0)","v":0},{"$f":"IFERROR(IF(AND(C4>0,C4=D4),1,MAX(C4,D4)/MAX($C$4:$D$34)),0)","v":0},null,{"$f":"IFERROR(IF($H$2=\"\",\"\",DATE('Bin Count Summary'!$H$8,MONTH(DATEVALUE('Bin Count Summary'!$G$8&\" 1\")),1)),\"Define month to check\")","v":""},{"$f":"IF('Bin Count Data'!I4=\"\",0,VALUE('Bin Count Data'!I4))","v":0},{"$f":"IF('Bin Count Data'!J4=\"\",0,VALUE('Bin Count Data'!J4))","v":0},{"$f":"IFERROR(IF(I4/MAX($I$4:$J$34)>J4/MAX($I$4:$J$34),ABS((J4-I4)/I4),ABS((J4-I4)/J4)),0)","v":0},{"$f":"IFERROR(IF(AND(I4>0,I4=J4),1,MAX(I4,J4)/MAX($I$4:$J$34)),0)","v":0},null,{"$f":"IFERROR(IF($N$2=\"\",\"\",DATE('Bin Count Summary'!$H$9,MONTH(DATEVALUE('Bin Count Summary'!$G$9&\" 1\")),1)),\"Define month to check\")","v":""},{"$f":"IF('Bin Count Data'!O4=\"\",0,VALUE('Bin Count Data'!O4))","v":0},{"$f":"IF('Bin Count Data'!P4=\"\",0,VALUE('Bin Count Data'!P4))","v":0},{"$f":"IFERROR(IF(O4/MAX($O$4:$P$34)>P4/MAX($O$4:$P$34),ABS((P4-O4)/O4),ABS((P4-O4)/P4)),0)","v":0},{"$f":"IFERROR(IF(AND(O4>0,O4=P4),1,MAX(O4,P4)/MAX($O$4:$P$34)),0)","v":0},null,{"$f":"IFERROR(IF($T$2=\"\",\"\",DATE('Bin Count Summary'!$H$10,MONTH(DATEVALUE('Bin Count Summary'!$G$10&\" 1\")),1)),\"Define month to check\")","v":""},{"$f":"IF('Bin Count Data'!U4=\"\",0,VALUE('Bin Count Data'!U4))","v":0},{"$f":"IF('Bin Count Data'!V4=\"\",0,VALUE('Bin Count Data'!V4))","v":0},{"$f":"IFERROR(IF(U4/MAX($U$4:$V$34)>V4/MAX($U$4:$V$34),ABS((V4-U4)/U4),ABS((V4-U4)/V4)),0)","v":0},{"$f":"IFERROR(IF(AND(U4>0,U4=V4),1,MAX(U4,V4)/MAX($U$4:$V$34)),0)","v":0},null,{"$f":"IFERROR(IF($Z$2=\"\",\"\",DATE('Bin Count Summary'!$H$11,MONTH(DATEVALUE('Bin Count Summary'!$G$11&\" 1\")),1)),\"Define month to check\")","v":""},{"$f":"IF('Bin Count Data'!AA4=\"\",0,VALUE('Bin Count Data'!AA4))","v":0},{"$f":"IF('Bin Count Data'!AB4=\"\",0,VALUE('Bin Count Data'!AB4))","v":0},{"$f":"IFERROR(IF(AA4/MAX($AA$4:$AB$34)>AB4/MAX($AA$4:$AB$34),ABS((AB4-AA4)/AA4),ABS((AB4-AA4)/AB4)),0)","v":0},{"$f":"IFERROR(IF(AND(AA4>0,AA4=AB4),1,MAX(AA4,AB4)/MAX($AA$4:$AB$34)),0)","v":0},null,{"$f":"IFERROR(IF($AF$2=\"\",\"\",DATE('Bin Count Summary'!$H$12,MONTH(DATEVALUE('Bin Count Summary'!$G$12&\" 1\")),1)),\"Define month to check\")","v":""},{"$f":"IF('Bin Count Data'!AG4=\"\",0,VALUE('Bin Count Data'!AG4))","v":0},{"$f":"IF('Bin Count Data'!AH4=\"\",0,VALUE('Bin Count Data'!AH4))","v":0},{"$f":"IFERROR(IF(AG4/MAX($AG$4:$AH$34)>AH4/MAX($AG$4:$AH$34),ABS((AH4-AG4)/AG4),ABS((AH4-AG4)/AH4)),0)","v":0},{"$f":"IFERROR(IF(AND(AG4>0,AG4=AH4),1,MAX(AG4,AH4)/MAX($AG$4:$AH$34)),0)","v":0},null,{"$f":"IFERROR(IF($AL$2=\"\",\"\",DATE('Bin Count Summary'!$H$13,MONTH(DATEVALUE('Bin Count Summary'!$G$13&\" 1\")),1)),\"Define month to check\")","v":""},{"$f":"IF('Bin Count Data'!AM4=\"\",0,VALUE('Bin Count Data'!AM4))","v":0},{"$f":"IF('Bin Count Data'!AN4=\"\",0,VALUE('Bin Count Data'!AN4))","v":0},{"$f":"IFERROR(IF(AM4/MAX($AM$4:$AN$34)>AN4/MAX($AM$4:$AN$34),ABS((AN4-AM4)/AM4),ABS((AN4-AM4)/AN4)),0)","v":0},{"$f":"IFERROR(IF(AND(AM4>0,AM4=AN4),1,MAX(AM4,AN4)/MAX($AM$4:$AN$34)),0)","v":0},null,{"$f":"IFERROR(IF($AR$2=\"\",\"\",DATE('Bin Count Summary'!$H$14,MONTH(DATEVALUE('Bin Count Summary'!$G$14&\" 1\")),1)),\"Define month to check\")","v":""},{"$f":"IF('Bin Count Data'!AS4=\"\",0,VALUE('Bin Count Data'!AS4))","v":0},{"$f":"IF('Bin Count Data'!AT4=\"\",0,VALUE('Bin Count Data'!AT4))","v":0},{"$f":"IFERROR(IF(AS4/MAX($AS$4:$AT$34)>AT4/MAX($AS$4:$AT$34),ABS((AT4-AS4)/AS4),ABS((AT4-AS4)/AT4)),0)","v":0},{"$f":"IFERROR(IF(AND(AS4>0,AS4=AT4),1,MAX(AS4,AT4)/MAX($AS$4:$AT$34)),0)","v":0},null,{"$f":"IFERROR(IF($AX$2=\"\",\"\",DATE('Bin Count Summary'!$H$15,MONTH(DATEVALUE('Bin Count Summary'!$G$15&\" 1\")),1)),\"Define month to check\")","v":""},{"$f":"IF('Bin Count Data'!AY4=\"\",0,VALUE('Bin Count Data'!AY4))","v":0},{"$f":"IF('Bin Count Data'!AZ4=\"\",0,VALUE('Bin Count Data'!AZ4))","v":0},{"$f":"IFERROR(IF(AY4/MAX($AY$4:$AZ$34)>AZ4/MAX($AY$4:$AZ$34),ABS((AZ4-AY4)/AY4),ABS((AZ4-AY4)/AZ4)),0)","v":0},{"$f":"IFERROR(IF(AND(AY4>0,AY4=AZ4),1,MAX(AY4,AZ4)/MAX($AY$4:$AZ$34)),0)","v":0},null,{"$f":"IFERROR(IF($BD$2=\"\",\"\",DATE('Bin Count Summary'!$H$16,MONTH(DATEVALUE('Bin Count Summary'!$G$16&\" 1\")),1)),\"Define month to check\")","v":""},{"$f":"IF('Bin Count Data'!BE4=\"\",0,VALUE('Bin Count Data'!BE4))","v":0},{"$f":"IF('Bin Count Data'!BF4=\"\",0,VALUE('Bin Count Data'!BF4))","v":0},{"$f":"IFERROR(IF(BE4/MAX($BE$4:$BF$34)>BF4/MAX($BE$4:$BF$34),ABS((BF4-BE4)/BE4),ABS((BF4-BE4)/BF4)),0)","v":0},{"$f":"IFERROR(IF(AND(BE4>0,BE4=BF4),1,MAX(BE4,BF4)/MAX($BE$4:$BF$34)),0)","v":0},null,{"$f":"IFERROR(IF($BJ$2=\"\",\"\",DATE('Bin Count Summary'!$H$18,MONTH(DATEVALUE('Bin Count Summary'!$G$18&\" 1\")),1)),\"Define month to check\")","v":""},{"$f":"IF('Bin Count Data'!BK4=\"\",0,VALUE('Bin Count Data'!BK4))","v":0},{"$f":"IF('Bin Count Data'!BL4=\"\",0,VALUE('Bin Count Data'!BL4))","v":0},{"$f":"IFERROR(IF(BK4/MAX($BK$4:$BL$34)>BL4/MAX($BK$4:$BL$34),ABS((BL4-BK4)/BK4),ABS((BL4-BK4)/BL4)),0)","v":0},{"$f":"IFERROR(IF(AND(BK4>0,BK4=BL4),1,MAX(BK4,BL4)/MAX($BK$4:$BL$34)),0)","v":0},null,{"$f":"IFERROR(IF($BJ$2=\"\",\"\",DATE('Bin Count Summary'!$H$18,MONTH(DATEVALUE('Bin Count Summary'!$G$18&\" 1\")),1)),\"Define month to check\")","v":""},{"$f":"IF('Bin Count Data'!BQ4=\"\",0,VALUE('Bin Count Data'!BQ4))","v":0},{"$f":"IF('Bin Count Data'!BR4=\"\",0,VALUE('Bin Count Data'!BR4))","v":0},{"$f":"IFERROR(IF(BQ4/MAX($BQ$4:$BR$34)>BR4/MAX($BQ$4:$BR$34),ABS((BR4-BQ4)/BQ4),ABS((BR4-BQ4)/BR4)),0)","v":0},{"$f":"IFERROR(IF(AND(BQ4>0,BQ4=BR4),1,MAX(BQ4,BR4)/MAX($BQ$4:$BR$34)),0)","v":0},null,{"$f":"IFERROR(IF($BJ$2=\"\",\"\",DATE('Bin Count Summary'!$H$18,MONTH(DATEVALUE('Bin Count Summary'!$G$18&\" 1\")),1)),\"Define month to check\")","v":""},{"$f":"IF('Bin Count Data'!BW4=\"\",0,VALUE('Bin Count Data'!BW4))","v":0},{"$f":"IF('Bin Count Data'!BX4=\"\",0,VALUE('Bin Count Data'!BX4))","v":0},{"$f":"IFERROR(IF(BW4/MAX($BW$4:$BX$34)>BX4/MAX($BW$4:$BX$34),ABS((BX4-BW4)/BW4),ABS((BX4-BW4)/BX4)),0)","v":0},{"$f":"IFERROR(IF(AND(BW4>0,BW4=BX4),1,MAX(BW4,BX4)/MAX($BW$4:$BX$34)),0)","v":0},null,{"$f":"IFERROR(IF($BJ$2=\"\",\"\",DATE('Bin Count Summary'!$H$18,MONTH(DATEVALUE('Bin Count Summary'!$G$18&\" 1\")),1)),\"Define month to check\")","v":""},{"$f":"IF('Bin Count Data'!CC4=\"\",0,VALUE('Bin Count Data'!CC4))","v":0},{"$f":"IF('Bin Count Data'!CD4=\"\",0,VALUE('Bin Count Data'!CD4))","v":0},{"$f":"IFERROR(IF(CC4/MAX($CC$4:$CD$34)>CD4/MAX($CC$4:$CD$34),ABS((CD4-CC4)/CC4),ABS((CD4-CC4)/CD4)),0)","v":0},{"$f":"IFERROR(IF(AND(CC4>0,CC4=CD4),1,MAX(CC4,CD4)/MAX($CC$4:$CD$34)),0)","v":0},null,{"$f":"IFERROR(IF($BJ$2=\"\",\"\",DATE('Bin Count Summary'!$H$18,MONTH(DATEVALUE('Bin Count Summary'!$G$18&\" 1\")),1)),\"Define month to check\")","v":""},{"$f":"IF('Bin Count Data'!CI4=\"\",0,VALUE('Bin Count Data'!CI4))","v":0},{"$f":"IF('Bin Count Data'!CJ4=\"\",0,VALUE('Bin Count Data'!CJ4))","v":0},{"$f":"IFERROR(IF(CI4/MAX($CI$4:$CJ$34)>CJ4/MAX($CI$4:$CJ$34),ABS((CJ4-CI4)/CI4),ABS((CJ4-CI4)/CJ4)),0)","v":0},{"$f":"IFERROR(IF(AND(CI4>0,CI4=CJ4),1,MAX(CI4,CJ4)/MAX($CI$4:$CJ$34)),0)","v":0},null,{"$f":"IFERROR(IF($BJ$2=\"\",\"\",DATE('Bin Count Summary'!$H$18,MONTH(DATEVALUE('Bin Count Summary'!$G$18&\" 1\")),1)),\"Define month to check\")","v":""},{"$f":"IF('Bin Count Data'!CO4=\"\",0,VALUE('Bin Count Data'!CO4))","v":0},{"$f":"IF('Bin Count Data'!CP4=\"\",0,VALUE('Bin Count Data'!CP4))","v":0},{"$f":"IFERROR(IF(CO4/MAX($CO$4:$CP$34)>CP4/MAX($CO$4:$CP$34),ABS((CP4-CO4)/CO4),ABS((CP4-CO4)/CP4)),0)","v":0},{"$f":"IFERROR(IF(AND(CO4>0,CO4=CP4),1,MAX(CO4,CP4)/MAX($CO$4:$CP$34)),0)","v":0},null,{"$f":"IFERROR(IF($BJ$2=\"\",\"\",DATE('Bin Count Summary'!$H$18,MONTH(DATEVALUE('Bin Count Summary'!$G$18&\" 1\")),1)),\"Define month to check\")","v":""},{"$f":"IF('Bin Count Data'!CU4=\"\",0,VALUE('Bin Count Data'!CU4))","v":0},{"$f":"IF('Bin Count Data'!CV4=\"\",0,VALUE('Bin Count Data'!CV4))","v":0},{"$f":"IFERROR(IF(CU4/MAX($CU$4:$CV$34)>CV4/MAX($CU$4:$CV$34),ABS((CV4-CU4)/CU4),ABS((CV4-CU4)/CV4)),0)","v":0},{"$f":"IFERROR(IF(AND(CU4>0,CU4=CV4),1,MAX(CU4,CV4)/MAX($CU$4:$CV$34)),0)","v":0},null,{"$f":"IFERROR(IF($BJ$2=\"\",\"\",DATE('Bin Count Summary'!$H$18,MONTH(DATEVALUE('Bin Count Summary'!$G$18&\" 1\")),1)),\"Define month to check\")","v":""},{"$f":"IF('Bin Count Data'!DA4=\"\",0,VALUE('Bin Count Data'!DA4))","v":0},{"$f":"IF('Bin Count Data'!DB4=\"\",0,VALUE('Bin Count Data'!DB4))","v":0},{"$f":"IFERROR(IF(DA4/MAX($DA$4:$DB$34)>DB4/MAX($DA$4:$DB$34),ABS((DB4-DA4)/DA4),ABS((DB4-DA4)/DB4)),0)","v":0},{"$f":"IFERROR(IF(AND(DA4>0,DA4=DB4),1,MAX(DA4,DB4)/MAX($DA$4:$DB$34)),0)","v":0},null,{"$f":"IFERROR(IF($BJ$2=\"\",\"\",DATE('Bin Count Summary'!$H$18,MONTH(DATEVALUE('Bin Count Summary'!$G$18&\" 1\")),1)),\"Define month to check\")","v":""},{"$f":"IF('Bin Count Data'!DG4=\"\",0,VALUE('Bin Count Data'!DG4))","v":0},{"$f":"IF('Bin Count Data'!DH4=\"\",0,VALUE('Bin Count Data'!DH4))","v":0},{"$f":"IFERROR(IF(DG4/MAX($DG$4:$DH$34)>DH4/MAX($DG$4:$DH$34),ABS((DH4-DG4)/DG4),ABS((DH4-DG4)/DH4)),0)","v":0},{"$f":"IFERROR(IF(AND(DG4>0,DG4=DH4),1,MAX(DG4,DH4)/MAX($DG$4:$DH$34)),0)","v":0},null,{"$f":"IFERROR(IF($BJ$2=\"\",\"\",DATE('Bin Count Summary'!$H$18,MONTH(DATEVALUE('Bin Count Summary'!$G$18&\" 1\")),1)),\"Define month to check\")","v":""},{"$f":"IF('Bin Count Data'!DM4=\"\",0,VALUE('Bin Count Data'!DM4))","v":0},{"$f":"IF('Bin Count Data'!DN4=\"\",0,VALUE('Bin Count Data'!DN4))","v":0},{"$f":"IFERROR(IF(DM4/MAX($DM$4:$DN$34)>DN4/MAX($DM$4:$DN$34),ABS((DN4-DM4)/DM4),ABS((DN4-DM4)/DN4)),0)","v":0},{"$f":"IFERROR(IF(AND(DM4>0,DM4=DN4),1,MAX(DM4,DN4)/MAX($DM$4:$DN$34)),0)","v":0}]
[null,{"$f":"IFERROR(IF(B4=\"\",\"\",IF(B4=EOMONTH($B$4,0),\"\",B4+1)),\"Define month to check\")","v":""},{"$f":"IF('Bin Count Data'!C5=\"\",0,VALUE('Bin Count Data'!C5))","v":0},{"$f":"IF('Bin Count Data'!D5=\"\",0,VALUE('Bin Count Data'!D5))","v":0},{"$f":"IFERROR(IF(C5/MAX($C$4:$D$34)>D5/MAX($C$4:$D$34),ABS((D5-C5)/C5),ABS((D5-C5)/D5)),0)","v":0},{"$f":"IFERROR(IF(AND(C5>0,C5=D5),1,MAX(C5,D5)/MAX($C$4:$D$34)),0)","v":0},null,{"$f":"IFERROR(IF(H4=\"\",\"\",IF(H4=EOMONTH($H$4,0),\"\",H4+1)),\"Define month to check\")","v":""},{"$f":"IF('Bin Count Data'!I5=\"\",0,VALUE('Bin Count Data'!I5))","v":0},{"$f":"IF('Bin Count Data'!J5=\"\",0,VALUE('Bin Count Data'!J5))","v":0},{"$f":"IFERROR(IF(I5/MAX($I$4:$J$34)>J5/MAX($I$4:$J$34),ABS((J5-I5)/I5),ABS((J5-I5)/J5)),0)","v":0},{"$f":"IFERROR(IF(AND(I5>0,I5=J5),1,MAX(I5,J5)/MAX($I$4:$J$34)),0)","v":0},null,{"$f":"IFERROR(IF(N4=\"\",\"\",IF(N4=EOMONTH($N$4,0),\"\",N4+1)),\"Define month to check\")","v":""},{"$f":"IF('Bin Count Data'!O5=\"\",0,VALUE('Bin Count Data'!O5))","v":0},{"$f":"IF('Bin Count Data'!P5=\"\",0,VALUE('Bin Count Data'!P5))","v":0},{"$f":"IFERROR(IF(O5/MAX($O$4:$P$34)>P5/MAX($O$4:$P$34),ABS((P5-O5)/O5),ABS((P5-O5)/P5)),0)","v":0},{"$f":"IFERROR(IF(AND(O5>0,O5=P5),1,MAX(O5,P5)/MAX($O$4:$P$34)),0)","v":0},null,{"$f":"IFERROR(IF(T4=\"\",\"\",IF(T4=EOMONTH($T$4,0),\"\",T4+1)),\"Define month to check\")","v":""},{"$f":"IF('Bin Count Data'!U5=\"\",0,VALUE('Bin Count Data'!U5))","v":0},{"$f":"IF('Bin Count Data'!V5=\"\",0,VALUE('Bin Count Data'!V5))","v":0},{"$f":"IFERROR(IF(U5/MAX($U$4:$V$34)>V5/MAX($U$4:$V$34),ABS((V5-U5)/U5),ABS((V5-U5)/V5)),0)","v":0},{"$f":"IFERROR(IF(AND(U5>0,U5=V5),1,MAX(U5,V5)/MAX($U$4:$V$34)),0)","v":0},null,{"$f":"IFERROR(IF(Z4=\"\",\"\",IF(Z4=EOMONTH($Z$4,0),\"\",Z4+1)),\"Define month to check\")","v":""},{"$f":"IF('Bin Count Data'!AA5=\"\",0,VALUE('Bin Count Data'!AA5))","v":0},{"$f":"IF('Bin Count Data'!AB5=\"\",0,VALUE('Bin Count Data'!AB5))","v":0},{"$f":"IFERROR(IF(AA5/MAX($AA$4:$AB$34)>AB5/MAX($AA$4:$AB$34),ABS((AB5-AA5)/AA5),ABS((AB5-AA5)/AB5)),0)","v":0},{"$f":"IFERROR(IF(AND(AA5>0,AA5=AB5),1,MAX(AA5,AB5)/MAX($AA$4:$AB$34)),0)","v":0},null,{"$f":"IFERROR(IF(AF4=\"\",\"\",IF(AF4=EOMONTH($AF$4,0),\"\",AF4+1)),\"Define month to check\")","v":""},{"$f":"IF('Bin Count Data'!AG5=\"\",0,VALUE('Bin Count Data'!AG5))","v":0},{"$f":"IF('Bin Count Data'!AH5=\"\",0,VALUE('Bin Count Data'!AH5))","v":0},{"$f":"IFERROR(IF(AG5/MAX($AG$4:$AH$34)>AH5/MAX($AG$4:$AH$34),ABS((AH5-AG5)/AG5),ABS((AH5-AG5)/AH5)),0)","v":0},{"$f":"IFERROR(IF(AND(AG5>0,AG5=AH5),1,MAX(AG5,AH5)/MAX($AG$4:$AH$34)),0)","v":0},null,{"$f":"IFERROR(IF(AL4=\"\",\"\",IF(AL4=EOMONTH($AL$4,0),\"\",AL4+1)),\"Define month to check\")","v":""},{"$f":"IF('Bin Count Data'!AM5=\"\",0,VALUE('Bin Count Data'!AM5))","v":0},{"$f":"IF('Bin Count Data'!AN5=\"\",0,VALUE('Bin Count Data'!AN5))","v":0},{"$f":"IFERROR(IF(AM5/MAX($AM$4:$AN$34)>AN5/MAX($AM$4:$AN$34),ABS((AN5-AM5)/AM5),ABS((AN5-AM5)/AN5)),0)","v":0},{"$f":"IFERROR(IF(AND(AM5>0,AM5=AN5),1,MAX(AM5,AN5)/MAX($AM$4:$AN$34)),0)","v":0},null,{"$f":"IFERROR(IF(AR4=\"\",\"\",IF(AR4=EOMONTH($AR$4,0),\"\",AR4+1)),\"Define month to check\")","v":""},{"$f":"IF('Bin Count Data'!AS5=\"\",0,VALUE('Bin Count Data'!AS5))","v":0},{"$f":"IF('Bin Count Data'!AT5=\"\",0,VALUE('Bin Count Data'!AT5))","v":0},{"$f":"IFERROR(IF(AS5/MAX($AS$4:$AT$34)>AT5/MAX($AS$4:$AT$34),ABS((AT5-AS5)/AS5),ABS((AT5-AS5)/AT5)),0)","v":0},{"$f":"IFERROR(IF(AND(AS5>0,AS5=AT5),1,MAX(AS5,AT5)/MAX($AS$4:$AT$34)),0)","v":0},null,{"$f":"IFERROR(IF(AX4=\"\",\"\",IF(AX4=EOMONTH($AX$4,0),\"\",AX4+1)),\"Define month to check\")","v":""},{"$f":"IF('Bin Count Data'!AY5=\"\",0,VALUE('Bin Count Data'!AY5))","v":0},{"$f":"IF('Bin Count Data'!AZ5=\"\",0,VALUE('Bin Count Data'!AZ5))","v":0},{"$f":"IFERROR(IF(AY5/MAX($AY$4:$AZ$34)>AZ5/MAX($AY$4:$AZ$34),ABS((AZ5-AY5)/AY5),ABS((AZ5-AY5)/AZ5)),0)","v":0},{"$f":"IFERROR(IF(AND(AY5>0,AY5=AZ5),1,MAX(AY5,AZ5)/MAX($AY$4:$AZ$34)),0)","v":0},null,{"$f":"IFERROR(IF(BD4=\"\",\"\",IF(BD4=EOMONTH($BD$4,0),\"\",BD4+1)),\"Define month to check\")","v":""},{"$f":"IF('Bin Count Data'!BE5=\"\",0,VALUE('Bin Count Data'!BE5))","v":0},{"$f":"IF('Bin Count Data'!BF5=\"\",0,VALUE('Bin Count Data'!BF5))","v":0},{"$f":"IFERROR(IF(BE5/MAX($BE$4:$BF$34)>BF5/MAX($BE$4:$BF$34),ABS((BF5-BE5)/BE5),ABS((BF5-BE5)/BF5)),0)","v":0},{"$f":"IFERROR(IF(AND(BE5>0,BE5=BF5),1,MAX(BE5,BF5)/MAX($BE$4:$BF$34)),0)","v":0},null,{"$f":"IFERROR(IF(BJ4=\"\",\"\",IF(BJ4=EOMONTH($BJ$4,0),\"\",BJ4+1)),\"Define month to check\")","v":""},{"$f":"IF('Bin Count Data'!BK5=\"\",0,VALUE('Bin Count Data'!BK5))","v":0},{"$f":"IF('Bin Count Data'!BL5=\"\",0,VALUE('Bin Count Data'!BL5))","v":0},{"$f":"IFERROR(IF(BK5/MAX($BK$4:$BL$34)>BL5/MAX($BK$4:$BL$34),ABS((BL5-BK5)/BK5),ABS((BL5-BK5)/BL5)),0)","v":0},{"$f":"IFERROR(IF(AND(BK5>0,BK5=BL5),1,MAX(BK5,BL5)/MAX($BK$4:$BL$34)),0)","v":0},null,{"$f":"IFERROR(IF(BP4=\"\",\"\",IF(BP4=EOMONTH($BJ$4,0),\"\",BP4+1)),\"Define month to check\")","v":""},{"$f":"IF('Bin Count Data'!BQ5=\"\",0,VALUE('Bin Count Data'!BQ5))","v":0},{"$f":"IF('Bin Count Data'!BR5=\"\",0,VALUE('Bin Count Data'!BR5))","v":0},{"$f":"IFERROR(IF(BQ5/MAX($BQ$4:$BR$34)>BR5/MAX($BQ$4:$BR$34),ABS((BR5-BQ5)/BQ5),ABS((BR5-BQ5)/BR5)),0)","v":0},{"$f":"IFERROR(IF(AND(BQ5>0,BQ5=BR5),1,MAX(BQ5,BR5)/MAX($BQ$4:$BR$34)),0)","v":0},null,{"$f":"IFERROR(IF(BV4=\"\",\"\",IF(BV4=EOMONTH($BJ$4,0),\"\",BV4+1)),\"Define month to check\")","v":""},{"$f":"IF('Bin Count Data'!BW5=\"\",0,VALUE('Bin Count Data'!BW5))","v":0},{"$f":"IF('Bin Count Data'!BX5=\"\",0,VALUE('Bin Count Data'!BX5))","v":0},{"$f":"IFERROR(IF(BW5/MAX($BW$4:$BX$34)>BX5/MAX($BW$4:$BX$34),ABS((BX5-BW5)/BW5),ABS((BX5-BW5)/BX5)),0)","v":0},{"$f":"IFERROR(IF(AND(BW5>0,BW5=BX5),1,MAX(BW5,BX5)/MAX($BW$4:$BX$34)),0)","v":0},null,{"$f":"IFERROR(IF(CB4=\"\",\"\",IF(CB4=EOMONTH($BJ$4,0),\"\",CB4+1)),\"Define month to check\")","v":""},{"$f":"IF('Bin Count Data'!CC5=\"\",0,VALUE('Bin Count Data'!CC5))","v":0},{"$f":"IF('Bin Count Data'!CD5=\"\",0,VALUE('Bin Count Data'!CD5))","v":0},{"$f":"IFERROR(IF(CC5/MAX($CC$4:$CD$34)>CD5/MAX($CC$4:$CD$34),ABS((CD5-CC5)/CC5),ABS((CD5-CC5)/CD5)),0)","v":0},{"$f":"IFERROR(IF(AND(CC5>0,CC5=CD5),1,MAX(CC5,CD5)/MAX($CC$4:$CD$34)),0)","v":0},null,{"$f":"IFERROR(IF(CH4=\"\",\"\",IF(CH4=EOMONTH($BJ$4,0),\"\",CH4+1)),\"Define month to check\")","v":""},{"$f":"IF('Bin Count Data'!CI5=\"\",0,VALUE('Bin Count Data'!CI5))","v":0},{"$f":"IF('Bin Count Data'!CJ5=\"\",0,VALUE('Bin Count Data'!CJ5))","v":0},{"$f":"IFERROR(IF(CI5/MAX($CI$4:$CJ$34)>CJ5/MAX($CI$4:$CJ$34),ABS((CJ5-CI5)/CI5),ABS((CJ5-CI5)/CJ5)),0)","v":0},{"$f":"IFERROR(IF(AND(CI5>0,CI5=CJ5),1,MAX(CI5,CJ5)/MAX($CI$4:$CJ$34)),0)","v":0},null,{"$f":"IFERROR(IF(CN4=\"\",\"\",IF(CN4=EOMONTH($BJ$4,0),\"\",CN4+1)),\"Define month to check\")","v":""},{"$f":"IF('Bin Count Data'!CO5=\"\",0,VALUE('Bin Count Data'!CO5))","v":0},{"$f":"IF('Bin Count Data'!CP5=\"\",0,VALUE('Bin Count Data'!CP5))","v":0},{"$f":"IFERROR(IF(CO5/MAX($CO$4:$CP$34)>CP5/MAX($CO$4:$CP$34),ABS((CP5-CO5)/CO5),ABS((CP5-CO5)/CP5)),0)","v":0},{"$f":"IFERROR(IF(AND(CO5>0,CO5=CP5),1,MAX(CO5,CP5)/MAX($CO$4:$CP$34)),0)","v":0},null,{"$f":"IFERROR(IF(CT4=\"\",\"\",IF(CT4=EOMONTH($BJ$4,0),\"\",CT4+1)),\"Define month to check\")","v":""},{"$f":"IF('Bin Count Data'!CU5=\"\",0,VALUE('Bin Count Data'!CU5))","v":0},{"$f":"IF('Bin Count Data'!CV5=\"\",0,VALUE('Bin Count Data'!CV5))","v":0},{"$f":"IFERROR(IF(CU5/MAX($CU$4:$CV$34)>CV5/MAX($CU$4:$CV$34),ABS((CV5-CU5)/CU5),ABS((CV5-CU5)/CV5)),0)","v":0},{"$f":"IFERROR(IF(AND(CU5>0,CU5=CV5),1,MAX(CU5,CV5)/MAX($CU$4:$CV$34)),0)","v":0},null,{"$f":"IFERROR(IF(CZ4=\"\",\"\",IF(CZ4=EOMONTH($BJ$4,0),\"\",CZ4+1)),\"Define month to check\")","v":""},{"$f":"IF('Bin Count Data'!DA5=\"\",0,VALUE('Bin Count Data'!DA5))","v":0},{"$f":"IF('Bin Count Data'!DB5=\"\",0,VALUE('Bin Count Data'!DB5))","v":0},{"$f":"IFERROR(IF(DA5/MAX($DA$4:$DB$34)>DB5/MAX($DA$4:$DB$34),ABS((DB5-DA5)/DA5),ABS((DB5-DA5)/DB5)),0)","v":0},{"$f":"IFERROR(IF(AND(DA5>0,DA5=DB5),1,MAX(DA5,DB5)/MAX($DA$4:$DB$34)),0)","v":0},null,{"$f":"IFERROR(IF(DF4=\"\",\"\",IF(DF4=EOMONTH($BJ$4,0),\"\",DF4+1)),\"Define month to check\")","v":""},{"$f":"IF('Bin Count Data'!DG5=\"\",0,VALUE('Bin Count Data'!DG5))","v":0},{"$f":"IF('Bin Count Data'!DH5=\"\",0,VALUE('Bin Count Data'!DH5))","v":0},{"$f":"IFERROR(IF(DG5/MAX($DG$4:$DH$34)>DH5/MAX($DG$4:$DH$34),ABS((DH5-DG5)/DG5),ABS((DH5-DG5)/DH5)),0)","v":0},{"$f":"IFERROR(IF(AND(DG5>0,DG5=DH5),1,MAX(DG5,DH5)/MAX($DG$4:$DH$34)),0)","v":0},null,{"$f":"IFERROR(IF(DL4=\"\",\"\",IF(DL4=EOMONTH($BJ$4,0),\"\",DL4+1)),\"Define month to check\")","v":""},{"$f":"IF('Bin Count Data'!DM5=\"\",0,VALUE('Bin Count Data'!DM5))","v":0},{"$f":"IF('Bin Count Data'!DN5=\"\",0,VALUE('Bin Count Data'!DN5))","v":0},{"$f":"IFERROR(IF(DM5/MAX($DM$4:$DN$34)>DN5/MAX($DM$4:$DN$34),ABS((DN5-DM5)/DM5),ABS((DN5-DM5)/DN5)),0)","v":0},{"$f":"IFERROR(IF(AND(DM5>0,DM5=DN5),1,MAX(DM5,DN5)/MAX($DM$4:$DN$34)),0)","v":0}]
[null,{"$f":"IFERROR(IF(B5=\"\",\"\",IF(B5=EOMONTH($B$4,0),\"\",B5+1)),\"Define month to check\")","v":""},{"$f":"IF('Bin Count Data'!C6=\"\",0,VALUE('Bin Count Data'!C6))","v":0},{"$f":"IF('Bin Count Data'!D6=\"\",0,VALUE('Bin Count Data'!D6))","v":0},0,0,null,{"$f":"IFERROR(IF(H5=\"\",\"\",IF(H5=EOMONTH($H$4,0),\"\",H5+1)),\"Define month to check\")","v":""},{"$f":"IF('Bin Count Data'!I6=\"\",0,VALUE('Bin Count Data'!I6))","v":0},{"$f":"IF('Bin Count Data'!J6=\"\",0,VALUE('Bin Count Data'!J6))","v":0},0,0,null,{"$f":"IFERROR(IF(N5=\"\",\"\",IF(N5=EOMONTH($N$4,0),\"\",N5+1)),\"Define month to check\")","v":""},{"$f":"IF('Bin Count Data'!O6=\"\",0,VALUE('Bin Count Data'!O6))","v":0},{"$f":"IF('Bin Count Data'!P6=\"\",0,VALUE('Bin Count Data'!P6))","v":0},0,0,null,{"$f":"IFERROR(IF(T5=\"\",\"\",IF(T5=EOMONTH($T$4,0),\"\",T5+1)),\"Define month to check\")","v":""},{"$f":"IF('Bin Count Data'!U6=\"\",0,VALUE('Bin Count Data'!U6))","v":0},{"$f":"IF('Bin Count Data'!V6=\"\",0,VALUE('Bin Count Data'!V6))","v":0},0,0,null,{"$f":"IFERROR(IF(Z5=\"\",\"\",IF(Z5=EOMONTH($Z$4,0),\"\",Z5+1)),\"Define month to check\")","v":""},{"$f":"IF('Bin Count Data'!AA6=\"\",0,VALUE('Bin Count Data'!AA6))","v":0},{"$f":"IF('Bin Count Data'!AB6=\"\",0,VALUE('Bin Count Data'!AB6))","v":0},0,0,null,{"$f":"IFERROR(IF(AF5=\"\",\"\",IF(AF5=EOMONTH($AF$4,0),\"\",AF5+1)),\"Define month to check\")","v":""},{"$f":"IF('Bin Count Data'!AG6=\"\",0,VALUE('Bin Count Data'!AG6))","v":0},{"$f":"IF('Bin Count Data'!AH6=\"\",0,VALUE('Bin Count Data'!AH6))","v":0},0,0,null,{"$f":"IFERROR(IF(AL5=\"\",\"\",IF(AL5=EOMONTH($AL$4,0),\"\",AL5+1)),\"Define month to check\")","v":""},{"$f":"IF('Bin Count Data'!AM6=\"\",0,VALUE('Bin Count Data'!AM6))","v":0},{"$f":"IF('Bin Count Data'!AN6=\"\",0,VALUE('Bin Count Data'!AN6))","v":0},0,0,null,{"$f":"IFERROR(IF(AR5=\"\",\"\",IF(AR5=EOMONTH($AR$4,0),\"\",AR5+1)),\"Define month to check\")","v":""},{"$f":"IF('Bin Count Data'!AS6=\"\",0,VALUE('Bin Count Data'!AS6))","v":0},{"$f":"IF('Bin Count Data'!AT6=\"\",0,VALUE('Bin Count Data'!AT6))","v":0},0,0,null,{"$f":"IFERROR(IF(AX5=\"\",\"\",IF(AX5=EOMONTH($AX$4,0),\"\",AX5+1)),\"Define month to check\")","v":""},{"$f":"IF('Bin Count Data'!AY6=\"\",0,VALUE('Bin Count Data'!AY6))","v":0},{"$f":"IF('Bin Count Data'!AZ6=\"\",0,VALUE('Bin Count Data'!AZ6))","v":0},0,0,null,{"$f":"IFERROR(IF(BD5=\"\",\"\",IF(BD5=EOMONTH($BD$4,0),\"\",BD5+1)),\"Define month to check\")","v":""},{"$f":"IF('Bin Count Data'!BE6=\"\",0,VALUE('Bin Count Data'!BE6))","v":0},{"$f":"IF('Bin Count Data'!BF6=\"\",0,VALUE('Bin Count Data'!BF6))","v":0},0,0,null,{"$f":"IFERROR(IF(BJ5=\"\",\"\",IF(BJ5=EOMONTH($BJ$4,0),\"\",BJ5+1)),\"Define month to check\")","v":""},{"$f":"IF('Bin Count Data'!BK6=\"\",0,VALUE('Bin Count Data'!BK6))","v":0},{"$f":"IF('Bin Count Data'!BL6=\"\",0,VALUE('Bin Count Data'!BL6))","v":0},0,0,null,{"$f":"IFERROR(IF(BP5=\"\",\"\",IF(BP5=EOMONTH($BJ$4,0),\"\",BP5+1)),\"Define month to check\")","v":""},{"$f":"IF('Bin Count Data'!BQ6=\"\",0,VALUE('Bin Count Data'!BQ6))","v":0},{"$f":"IF('Bin Count Data'!BR6=\"\",0,VALUE('Bin Count Data'!BR6))","v":0},0,0,null,{"$f":"IFERROR(IF(BV5=\"\",\"\",IF(BV5=EOMONTH($BJ$4,0),\"\",BV5+1)),\"Define month to check\")","v":""},{"$f":"IF('Bin Count Data'!BW6=\"\",0,VALUE('Bin Count Data'!BW6))","v":0},{"$f":"IF('Bin Count Data'!BX6=\"\",0,VALUE('Bin Count Data'!BX6))","v":0},0,0,null,{"$f":"IFERROR(IF(CB5=\"\",\"\",IF(CB5=EOMONTH($BJ$4,0),\"\",CB5+1)),\"Define month to check\")","v":""},{"$f":"IF('Bin Count Data'!CC6=\"\",0,VALUE('Bin Count Data'!CC6))","v":0},{"$f":"IF('Bin Count Data'!CD6=\"\",0,VALUE('Bin Count Data'!CD6))","v":0},0,0,null,{"$f":"IFERROR(IF(CH5=\"\",\"\",IF(CH5=EOMONTH($BJ$4,0),\"\",CH5+1)),\"Define month to check\")","v":""},{"$f":"IF('Bin Count Data'!CI6=\"\",0,VALUE('Bin Count Data'!CI6))","v":0},{"$f":"IF('Bin Count Data'!CJ6=\"\",0,VALUE('Bin Count Data'!CJ6))","v":0},0,0,null,{"$f":"IFERROR(IF(CN5=\"\",\"\",IF(CN5=EOMONTH($BJ$4,0),\"\",CN5+1)),\"Define month to check\")","v":""},{"$f":"IF('Bin Count Data'!CO6=\"\",0,VALUE('Bin Count Data'!CO6))","v":0},{"$f":"IF('Bin Count Data'!CP6=\"\",0,VALUE('Bin Count Data'!CP6))","v":0},0,0,null,{"$f":"IFERROR(IF(CT5=\"\",\"\",IF(CT5=EOMONTH($BJ$4,0),\"\",CT5+1)),\"Define month to check\")","v":""},{"$f":"IF('Bin Count Data'!CU6=\"\",0,VALUE('Bin Count Data'!CU6))","v":0},{"$f":"IF('Bin Count Data'!CV6=\"\",0,VALUE('Bin Count Data'!CV6))","v":0},0,0,null,{"$f":"IFERROR(IF(CZ5=\"\",\"\",IF(CZ5=EOMONTH($BJ$4,0),\"\",CZ5+1)),\"Define month to check\")","v":""},{"$f":"IF('Bin Count Data'!DA6=\"\",0,VALUE('Bin Count Data'!DA6))","v":0},{"$f":"IF('Bin Count Data'!DB6=\"\",0,VALUE('Bin Count Data'!DB6))","v":0},0,0,null,{"$f":"IFERROR(IF(DF5=\"\",\"\",IF(DF5=EOMONTH($BJ$4,0),\"\",DF5+1)),\"Define month to check\")","v":""},{"$f":"IF('Bin Count Data'!DG6=\"\",0,VALUE('Bin Count Data'!DG6))","v":0},{"$f":"IF('Bin Count Data'!DH6=\"\",0,VALUE('Bin Count Data'!DH6))","v":0},0,0,null,{"$f":"IFERROR(IF(DL5=\"\",\"\",IF(DL5=EOMONTH($BJ$4,0),\"\",DL5+1)),\"Define month to check\")","v":""},{"$f":"IF('Bin Count Data'!DM6=\"\",0,VALUE('Bin Count Data'!DM6))","v":0},{"$f":"IF('Bin Count Data'!DN6=\"\",0,VALUE('Bin Count Data'!DN6))","v":0},0,0]
[null,"",{"$f":"IF('Bin Count Data'!C7=\"\",0,VALUE('Bin Count Data'!C7))","v":0},{"$f":"IF('Bin Count Data'!D7=\"\",0,VALUE('Bin Count Data'!D7))","v":0},0,0,null,"",{"$f":"IF('Bin Count Data'!I7=\"\",0,VALUE('Bin Count Data'!I7))","v":0},{"$f":"IF('Bin Count Data'!J7=\"\",0,VALUE('Bin Count Data'!J7))","v":0},0,0,null,"",{"$f":"IF('Bin Count Data'!O7=\"\",0,VALUE('Bin Count Data'!O7))","v":0},{"$f":"IF('Bin Count Data'!P7=\"\",0,VALUE('Bin Count Data'!P7))","v":0},0,0,null,"",{"$f":"IF('Bin Count Data'!U7=\"\",0,VALUE('Bin Count Data'!U7))","v":0},{"$f":"IF('Bin Count Data'!V7=\"\",0,VALUE('Bin Count Data'!V7))","v":0},0,0,null,"",{"$f":"IF('Bin Count Data'!AA7=\"\",0,VALUE('Bin Count Data'!AA7))","v":0},{"$f":"IF('Bin Count Data'!AB7=\"\",0,VALUE('Bin Count Data'!AB7))","v":0},0,0,null,"",{"$f":"IF('Bin Count Data'!AG7=\"\",0,VALUE('Bin Count Data'!AG7))","v":0},{"$f":"IF('Bin Count Data'!AH7=\"\",0,VALUE('Bin Count Data'!AH7))","v":0},0,0,null,"",{"$f":"IF('Bin Count Data'!AM7=\"\",0,VALUE('Bin Count Data'!AM7))","v":0},{"$f":"IF('Bin Count Data'!AN7=\"\",0,VALUE('Bin Count Data'!AN7))","v":0},0,0,null,"",{"$f":"IF('Bin Count Data'!AS7=\"\",0,VALUE('Bin Count Data'!AS7))","v":0},{"$f":"IF('Bin Count Data'!AT7=\"\",0,VALUE('Bin Count Data'!AT7))","v":0},0,0,null,"",{"$f":"IF('Bin Count Data'!AY7=\"\",0,VALUE('Bin Count Data'!AY7))","v":0},{"$f":"IF('Bin Count Data'!AZ7=\"\",0,VALUE('Bin Count Data'!AZ7))","v":0},0,0,null,"",{"$f":"IF('Bin Count Data'!BE7=\"\",0,VALUE('Bin Count Data'!BE7))","v":0},{"$f":"IF('Bin Count Data'!BF7=\"\",0,VALUE('Bin Count Data'!BF7))","v":0},0,0,null,"",{"$f":"IF('Bin Count Data'!BK7=\"\",0,VALUE('Bin Count Data'!BK7))","v":0},{"$f":"IF('Bin Count Data'!BL7=\"\",0,VALUE('Bin Count Data'!BL7))","v":0},0,0,null,"",{"$f":"IF('Bin Count Data'!BQ7=\"\",0,VALUE('Bin Count Data'!BQ7))","v":0},{"$f":"IF('Bin Count Data'!BR7=\"\",0,VALUE('Bin Count Data'!BR7))","v":0},0,0,null,"",{"$f":"IF('Bin Count Data'!BW7=\"\",0,VALUE('Bin Count Data'!BW7))","v":0},{"$f":"IF('Bin Count Data'!BX7=\"\",0,VALUE('Bin Count Data'!BX7))","v":0},0,0,null,"",{"$f":"IF('Bin Count Data'!CC7=\"\",0,VALUE('Bin Count Data'!CC7))","v":0},{"$f":"IF('Bin Count Data'!CD7=\"\",0,VALUE('Bin Count Data'!CD7))","v":0},0,0,null,"",{"$f":"IF('Bin Count Data'!CI7=\"\",0,VALUE('Bin Count Data'!CI7))","v":0},{"$f":"IF('Bin Count Data'!CJ7=\"\",0,VALUE('Bin Count Data'!CJ7))","v":0},0,0,null,"",{"$f":"IF('Bin Count Data'!CO7=\"\",0,VALUE('Bin Count Data'!CO7))","v":0},{"$f":"IF('Bin Count Data'!CP7=\"\",0,VALUE('Bin Count Data'!CP7))","v":0},0,0,null,"",{"$f":"IF('Bin Count Data'!CU7=\"\",0,VALUE('Bin Count Data'!CU7))","v":0},{"$f":"IF('Bin Count Data'!CV7=\"\",0,VALUE('Bin Count Data'!CV7))","v":0},0,0,null,"",{"$f":"IF('Bin Count Data'!DA7=\"\",0,VALUE('Bin Count Data'!DA7))","v":0},{"$f":"IF('Bin Count Data'!DB7=\"\",0,VALUE('Bin Count Data'!DB7))","v":0},0,0,null,"",{"$f":"IF('Bin Count Data'!DG7=\"\",0,VALUE('Bin Count Data'!DG7))","v":0},{"$f":"IF('Bin Count Data'!DH7=\"\",0,VALUE('Bin Count Data'!DH7))","v":0},0,0,null,"",{"$f":"IF('Bin Count Data'!DM7=\"\",0,VALUE('Bin Count Data'!DM7))","v":0},{"$f":"IF('Bin Count Data'!DN7=\"\",0,VALUE('Bin Count Data'!DN7))","v":0},0,0]
[null,"",{"$f":"IF('Bin Count Data'!C8=\"\",0,VALUE('Bin Count Data'!C8))","v":0},{"$f":"IF('Bin Count Data'!D8=\"\",0,VALUE('Bin Count Data'!D8))","v":0},0,0,null,"",{"$f":"IF('Bin Count Data'!I8=\"\",0,VALUE('Bin Count Data'!I8))","v":0},{"$f":"IF('Bin Count Data'!J8=\"\",0,VALUE('Bin Count Data'!J8))","v":0},0,0,null,"",{"$f":"IF('Bin Count Data'!O8=\"\",0,VALUE('Bin Count Data'!O8))","v":0},{"$f":"IF('Bin Count Data'!P8=\"\",0,VALUE('Bin Count Data'!P8))","v":0},0,0,null,"",{"$f":"IF('Bin Count Data'!U8=\"\",0,VALUE('Bin Count Data'!U8))","v":0},{"$f":"IF('Bin Count Data'!V8=\"\",0,VALUE('Bin Count Data'!V8))","v":0},0,0,null,"",{"$f":"IF('Bin Count Data'!AA8=\"\",0,VALUE('Bin Count Data'!AA8))","v":0},{"$f":"IF('Bin Count Data'!AB8=\"\",0,VALUE('Bin Count Data'!AB8))","v":0},0,0,null,"",{"$f":"IF('Bin Count Data'!AG8=\"\",0,VALUE('Bin Count Data'!AG8))","v":0},{"$f":"IF('Bin Count Data'!AH8=\"\",0,VALUE('Bin Count Data'!AH8))","v":0},0,0,null,"",{"$f":"IF('Bin Count Data'!AM8=\"\",0,VALUE('Bin Count Data'!AM8))","v":0},{"$f":"IF('Bin Count Data'!AN8=\"\",0,VALUE('Bin Count Data'!AN8))","v":0},0,0,null,"",{"$f":"IF('Bin Count Data'!AS8=\"\",0,VALUE('Bin Count Data'!AS8))","v":0},{"$f":"IF('Bin Count Data'!AT8=\"\",0,VALUE('Bin Count Data'!AT8))","v":0},0,0,null,"",{"$f":"IF('Bin Count Data'!AY8=\"\",0,VALUE('Bin Count Data'!AY8))","v":0},{"$f":"IF('Bin Count Data'!AZ8=\"\",0,VALUE('Bin Count Data'!AZ8))","v":0},0,0,null,"",{"$f":"IF('Bin Count Data'!BE8=\"\",0,VALUE('Bin Count Data'!BE8))","v":0},{"$f":"IF('Bin Count Data'!BF8=\"\",0,VALUE('Bin Count Data'!BF8))","v":0},0,0,null,"",{"$f":"IF('Bin Count Data'!BK8=\"\",0,VALUE('Bin Count Data'!BK8))","v":0},{"$f":"IF('Bin Count Data'!BL8=\"\",0,VALUE('Bin Count Data'!BL8))","v":0},0,0,null,"",{"$f":"IF('Bin Count Data'!BQ8=\"\",0,VALUE('Bin Count Data'!BQ8))","v":0},{"$f":"IF('Bin Count Data'!BR8=\"\",0,VALUE('Bin Count Data'!BR8))","v":0},0,0,null,"",{"$f":"IF('Bin Count Data'!BW8=\"\",0,VALUE('Bin Count Data'!BW8))","v":0},{"$f":"IF('Bin Count Data'!BX8=\"\",0,VALUE('Bin Count Data'!BX8))","v":0},0,0,null,"",{"$f":"IF('Bin Count Data'!CC8=\"\",0,VALUE('Bin Count Data'!CC8))","v":0},{"$f":"IF('Bin Count Data'!CD8=\"\",0,VALUE('Bin Count Data'!CD8))","v":0},0,0,null,"",{"$f":"IF('Bin Count Data'!CI8=\"\",0,VALUE('Bin Count Data'!CI8))","v":0},{"$f":"IF('Bin Count Data'!CJ8=\"\",0,VALUE('Bin Count Data'!CJ8))","v":0},0,0,null,"",{"$f":"IF('Bin Count Data'!CO8=\"\",0,VALUE('Bin Count Data'!CO8))","v":0},{"$f":"IF('Bin Count Data'!CP8=\"\",0,VALUE('Bin Count Data'!CP8))","v":0},0,0,null,"",{"$f":"IF('Bin Count Data'!CU8=\"\",0,VALUE('Bin Count Data'!CU8))","v":0},{"$f":"IF('Bin Count Data'!CV8=\"\",0,VALUE('Bin Count Data'!CV8))","v":0},0,0,null,"",{"$f":"IF('Bin Count Data'!DA8=\"\",0,VALUE('Bin Count Data'!DA8))","v":0},{"$f":"IF('Bin Count Data'!DB8=\"\",0,VALUE('Bin Count Data'!DB8))","v":0},0,0,null,"",{"$f":"IF('Bin Count Data'!DG8=\"\",0,VALUE('Bin Count Data'!DG8))","v":0},{"$f":"IF('Bin Count Data'!DH8=\"\",0,VALUE('Bin Count Data'!DH8))","v":0},0,0,null,"",{"$f":"IF('Bin Count Data'!DM8=\"\",0,VALUE('Bin Count Data'!DM8))","v":0},{"$f":"IF('Bin Count Data'!DN8=\"\",0,VALUE('Bin Count Data'!DN8))","v":0},0,0]
[null,{"$f":"IFERROR(IF(B8=\"\",\"\",IF(B8=EOMONTH($B$4,0),\"\",B8+1)),\"Define month to check\")","v":""},{"$f":"IF('Bin Count Data'!C9=\"\",0,VALUE('Bin Count Data'!C9))","v":0},{"$f":"IF('Bin Count Data'!D9=\"\",0,VALUE('Bin Count Data'!D9))","v":0},0,0,null,"",{"$f":"IF('Bin Count Data'!I9=\"\",0,VALUE('Bin Count Data'!I9))","v":0},{"$f":"IF('Bin Count Data'!J9=\"\",0,VALUE('Bin Count Data'!J9))","v":0},0,0,null,"",{"$f":"IF('Bin Count Data'!O9=\"\",0,VALUE('Bin Count Data'!O9))","v":0},{"$f":"IF('Bin Count Data'!P9=\"\",0,VALUE('Bin Count Data'!P9))","v":0},0,0,null,"",{"$f":"IF('Bin Count Data'!U9=\"\",0,VALUE('Bin Count Data'!U9))","v":0},{"$f":"IF('Bin Count Data'!V9=\"\",0,VALUE('Bin Count Data'!V9))","v":0},0,0,null,"",{"$f":"IF('Bin Count Data'!AA9=\"\",0,VALUE('Bin Count Data'!AA9))","v":0},{"$f":"IF('Bin Count Data'!AB9=\"\",0,VALUE('Bin Count Data'!AB9))","v":0},0,0,null,"",{"$f":"IF('Bin Count Data'!AG9=\"\",0,VALUE('Bin Count Data'!AG9))","v":0},{"$f":"IF('Bin Count Data'!AH9=\"\",0,VALUE('Bin Count Data'!AH9))","v":0},0,0,null,"",{"$f":"IF('Bin Count Data'!AM9=\"\",0,VALUE('Bin Count Data'!AM9))","v":0},{"$f":"IF('Bin Count Data'!AN9=\"\",0,VALUE('Bin Count Data'!AN9))","v":0},0,0,null,"",{"$f":"IF('Bin Count Data'!AS9=\"\",0,VALUE('Bin Count Data'!AS9))","v":0},{"$f":"IF('Bin Count Data'!AT9=\"\",0,VALUE('Bin Count Data'!AT9))","v":0},0,0,null,"",{"$f":"IF('Bin Count Data'!AY9=\"\",0,VALUE('Bin Count Data'!AY9))","v":0},{"$f":"IF('Bin Count Data'!AZ9=\"\",0,VALUE('Bin Count Data'!AZ9))","v":0},0,0,null,"",{"$f":"IF('Bin Count Data'!BE9=\"\",0,VALUE('Bin Count Data'!BE9))","v":0},{"$f":"IF('Bin Count Data'!BF9=\"\",0,VALUE('Bin Count Data'!BF9))","v":0},0,0,null,"",{"$f":"IF('Bin Count Data'!BK9=\"\",0,VALUE('Bin Count Data'!BK9))","v":0},{"$f":"IF('Bin Count Data'!BL9=\"\",0,VALUE('Bin Count Data'!BL9))","v":0},0,0,null,"",{"$f":"IF('Bin Count Data'!BQ9=\"\",0,VALUE('Bin Count Data'!BQ9))","v":0},{"$f":"IF('Bin Count Data'!BR9=\"\",0,VALUE('Bin Count Data'!BR9))","v":0},0,0,null,"",{"$f":"IF('Bin Count Data'!BW9=\"\",0,VALUE('Bin Count Data'!BW9))","v":0},{"$f":"IF('Bin Count Data'!BX9=\"\",0,VALUE('Bin Count Data'!BX9))","v":0},0,0,null,"",{"$f":"IF('Bin Count Data'!CC9=\"\",0,VALUE('Bin Count Data'!CC9))","v":0},{"$f":"IF('Bin Count Data'!CD9=\"\",0,VALUE('Bin Count Data'!CD9))","v":0},0,0,null,"",{"$f":"IF('Bin Count Data'!CI9=\"\",0,VALUE('Bin Count Data'!CI9))","v":0},{"$f":"IF('Bin Count Data'!CJ9=\"\",0,VALUE('Bin Count Data'!CJ9))","v":0},0,0,null,"",{"$f":"IF('Bin Count Data'!CO9=\"\",0,VALUE('Bin Count Data'!CO9))","v":0},{"$f":"IF('Bin Count Data'!CP9=\"\",0,VALUE('Bin Count Data'!CP9))","v":0},0,0,null,"",{"$f":"IF('Bin Count Data'!CU9=\"\",0,VALUE('Bin Count Data'!CU9))","v":0},{"$f":"IF('Bin Count Data'!CV9=\"\",0,VALUE('Bin Count Data'!CV9))","v":0},0,0,null,"",{"$f":"IF('Bin Count Data'!DA9=\"\",0,VALUE('Bin Count Data'!DA9))","v":0},{"$f":"IF('Bin Count Data'!DB9=\"\",0,VALUE('Bin Count Data'!DB9))","v":0},0,0,null,"",{"$f":"IF('Bin Count Data'!DG9=\"\",0,VALUE('Bin Count Data'!DG9))","v":0},{"$f":"IF('Bin Count Data'!DH9=\"\",0,VALUE('Bin Count Data'!DH9))","v":0},0,0,null,"",{"$f":"IF('Bin Count Data'!DM9=\"\",0,VALUE('Bin Count Data'!DM9))","v":0},{"$f":"IF('Bin Count Data'!DN9=\"\",0,VALUE('Bin Count Data'!DN9))","v":0},0,0]
[null,"",{"$f":"IF('Bin Count Data'!C10=\"\",0,VALUE('Bin Count Data'!C10))","v":0},{"$f":"IF('Bin Count Data'!D10=\"\",0,VALUE('Bin Count Data'!D10))","v":0},0,0,null,"",{"$f":"IF('Bin Count Data'!I10=\"\",0,VALUE('Bin Count Data'!I10))","v":0},{"$f":"IF('Bin Count Data'!J10=\"\",0,VALUE('Bin Count Data'!J10))","v":0},0,0,null,"",{"$f":"IF('Bin Count Data'!O10=\"\",0,VALUE('Bin Count Data'!O10))","v":0},{"$f":"IF('Bin Count Data'!P10=\"\",0,VALUE('Bin Count Data'!P10))","v":0},0,0,null,"",{"$f":"IF('Bin Count Data'!U10=\"\",0,VALUE('Bin Count Data'!U10))","v":0},{"$f":"IF('Bin Count Data'!V10=\"\",0,VALUE('Bin Count Data'!V10))","v":0},0,0,null,"",{"$f":"IF('Bin Count Data'!AA10=\"\",0,VALUE('Bin Count Data'!AA10))","v":0},{"$f":"IF('Bin Count Data'!AB10=\"\",0,VALUE('Bin Count Data'!AB10))","v":0},0,0,null,"",{"$f":"IF('Bin Count Data'!AG10=\"\",0,VALUE('Bin Count Data'!AG10))","v":0},{"$f":"IF('Bin Count Data'!AH10=\"\",0,VALUE('Bin Count Data'!AH10))","v":0},0,0,null,"",{"$f":"IF('Bin Count Data'!AM10=\"\",0,VALUE('Bin Count Data'!AM10))","v":0},{"$f":"IF('Bin Count Data'!AN10=\"\",0,VALUE('Bin Count Data'!AN10))","v":0},0,0,null,"",{"$f":"IF('Bin Count Data'!AS10=\"\",0,VALUE('Bin Count Data'!AS10))","v":0},{"$f":"IF('Bin Count Data'!AT10=\"\",0,VALUE('Bin Count Data'!AT10))","v":0},0,0,null,"",{"$f":"IF('Bin Count Data'!AY10=\"\",0,VALUE('Bin Count Data'!AY10))","v":0},{"$f":"IF('Bin Count Data'!AZ10=\"\",0,VALUE('Bin Count Data'!AZ10))","v":0},0,0,null,"",{"$f":"IF('Bin Count Data'!BE10=\"\",0,VALUE('Bin Count Data'!BE10))","v":0},{"$f":"IF('Bin Count Data'!BF10=\"\",0,VALUE('Bin Count Data'!BF10))","v":0},0,0,null,"",{"$f":"IF('Bin Count Data'!BK10=\"\",0,VALUE('Bin Count Data'!BK10))","v":0},{"$f":"IF('Bin Count Data'!BL10=\"\",0,VALUE('Bin Count Data'!BL10))","v":0},0,0,null,"",{"$f":"IF('Bin Count Data'!BQ10=\"\",0,VALUE('Bin Count Data'!BQ10))","v":0},{"$f":"IF('Bin Count Data'!BR10=\"\",0,VALUE('Bin Count Data'!BR10))","v":0},0,0,null,"",{"$f":"IF('Bin Count Data'!BW10=\"\",0,VALUE('Bin Count Data'!BW10))","v":0},{"$f":"IF('Bin Count Data'!BX10=\"\",0,VALUE('Bin Count Data'!BX10))","v":0},0,0,null,"",{"$f":"IF('Bin Count Data'!CC10=\"\",0,VALUE('Bin Count Data'!CC10))","v":0},{"$f":"IF('Bin Count Data'!CD10=\"\",0,VALUE('Bin Count Data'!CD10))","v":0},0,0,null,"",{"$f":"IF('Bin Count Data'!CI10=\"\",0,VALUE('Bin Count Data'!CI10))","v":0},{"$f":"IF('Bin Count Data'!CJ10=\"\",0,VALUE('Bin Count Data'!CJ10))","v":0},0,0,null,"",{"$f":"IF('Bin Count Data'!CO10=\"\",0,VALUE('Bin Count Data'!CO10))","v":0},{"$f":"IF('Bin Count Data'!CP10=\"\",0,VALUE('Bin Count Data'!CP10))","v":0},0,0,null,"",{"$f":"IF('Bin Count Data'!CU10=\"\",0,VALUE('Bin Count Data'!CU10))","v":0},{"$f":"IF('Bin Count Data'!CV10=\"\",0,VALUE('Bin Count Data'!CV10))","v":0},0,0,null,"",{"$f":"IF('Bin Count Data'!DA10=\"\",0,VALUE('Bin Count Data'!DA10))","v":0},{"$f":"IF('Bin Count Data'!DB10=\"\",0,VALUE('Bin Count Data'!DB10))","v":0},0,0,null,"",{"$f":"IF('Bin Count Data'!DG10=\"\",0,VALUE('Bin Count Data'!DG10))","v":0},{"$f":"IF('Bin Count Data'!DH10=\"\",0,VALUE('Bin Count Data'!DH10))","v":0},0,0,null,"",{"$f":"IF('Bin Count Data'!DM10=\"\",0,VALUE('Bin Count Data'!DM10))","v":0},{"$f":"IF('Bin Count Data'!DN10=\"\",0,VALUE('Bin Count Data'!DN10))","v":0},0,0]
[null,"",{"$f":"IF('Bin Count Data'!C11=\"\",0,VALUE('Bin Count Data'!C11))","v":0},{"$f":"IF('Bin Count Data'!D11=\"\",0,VALUE('Bin Count Data'!D11))","v":0},0,0,null,"",{"$f":"IF('Bin Count Data'!I11=\"\",0,VALUE('Bin Count Data'!I11))","v":0},{"$f":"IF('Bin Count Data'!J11=\"\",0,VALUE('Bin Count Data'!J11))","v":0},0,0,null,"",{"$f":"IF('Bin Count Data'!O11=\"\",0,VALUE('Bin Count Data'!O11))","v":0},{"$f":"IF('Bin Count Data'!P11=\"\",0,VALUE('Bin Count Data'!P11))","v":0},0,0,null,"",{"$f":"IF('Bin Count Data'!U11=\"\",0,VALUE('Bin Count Data'!U11))","v":0},{"$f":"IF('Bin Count Data'!V11=\"\",0,VALUE('Bin Count Data'!V11))","v":0},0,0,null,"",{"$f":"IF('Bin Count Data'!AA11=\"\",0,VALUE('Bin Count Data'!AA11))","v":0},{"$f":"IF('Bin Count Data'!AB11=\"\",0,VALUE('Bin Count Data'!AB11))","v":0},0,0,null,"",{"$f":"IF('Bin Count Data'!AG11=\"\",0,VALUE('Bin Count Data'!AG11))","v":0},{"$f":"IF('Bin Count Data'!AH11=\"\",0,VALUE('Bin Count Data'!AH11))","v":0},0,0,null,"",{"$f":"IF('Bin Count Data'!AM11=\"\",0,VALUE('Bin Count Data'!AM11))","v":0},{"$f":"IF('Bin Count Data'!AN11=\"\",0,VALUE('Bin Count Data'!AN11))","v":0},0,0,null,"",{"$f":"IF('Bin Count Data'!AS11=\"\",0,VALUE('Bin Count Data'!AS11))","v":0},{"$f":"IF('Bin Count Data'!AT11=\"\",0,VALUE('Bin Count Data'!AT11))","v":0},0,0,null,"",{"$f":"IF('Bin Count Data'!AY11=\"\",0,VALUE('Bin Count Data'!AY11))","v":0},{"$f":"IF('Bin Count Data'!AZ11=\"\",0,VALUE('Bin Count Data'!AZ11))","v":0},0,0,null,"",{"$f":"IF('Bin Count Data'!BE11=\"\",0,VALUE('Bin Count Data'!BE11))","v":0},{"$f":"IF('Bin Count Data'!BF11=\"\",0,VALUE('Bin Count Data'!BF11))","v":0},0,0,null,"",{"$f":"IF('Bin Count Data'!BK11=\"\",0,VALUE('Bin Count Data'!BK11))","v":0},{"$f":"IF('Bin Count Data'!BL11=\"\",0,VALUE('Bin Count Data'!BL11))","v":0},0,0,null,"",{"$f":"IF('Bin Count Data'!BQ11=\"\",0,VALUE('Bin Count Data'!BQ11))","v":0},{"$f":"IF('Bin Count Data'!BR11=\"\",0,VALUE('Bin Count Data'!BR11))","v":0},0,0,null,"",{"$f":"IF('Bin Count Data'!BW11=\"\",0,VALUE('Bin Count Data'!BW11))","v":0},{"$f":"IF('Bin Count Data'!BX11=\"\",0,VALUE('Bin Count Data'!BX11))","v":0},0,0,null,"",{"$f":"IF('Bin Count Data'!CC11=\"\",0,VALUE('Bin Count Data'!CC11))","v":0},{"$f":"IF('Bin Count Data'!CD11=\"\",0,VALUE('Bin Count Data'!CD11))","v":0},0,0,null,"",{"$f":"IF('Bin Count Data'!CI11=\"\",0,VALUE('Bin Count Data'!CI11))","v":0},{"$f":"IF('Bin Count Data'!CJ11=\"\",0,VALUE('Bin Count Data'!CJ11))","v":0},0,0,null,"",{"$f":"IF('Bin Count Data'!CO11=\"\",0,VALUE('Bin Count Data'!CO11))","v":0},{"$f":"IF('Bin Count Data'!CP11=\"\",0,VALUE('Bin Count Data'!CP11))","v":0},0,0,null,"",{"$f":"IF('Bin Count Data'!CU11=\"\",0,VALUE('Bin Count Data'!CU11))","v":0},{"$f":"IF('Bin Count Data'!CV11=\"\",0,VALUE('Bin Count Data'!CV11))","v":0},0,0,null,"",{"$f":"IF('Bin Count Data'!DA11=\"\",0,VALUE('Bin Count Data'!DA11))","v":0},{"$f":"IF('Bin Count Data'!DB11=\"\",0,VALUE('Bin Count Data'!DB11))","v":0},0,0,null,"",{"$f":"IF('Bin Count Data'!DG11=\"\",0,VALUE('Bin Count Data'!DG11))","v":0},{"$f":"IF('Bin Count Data'!DH11=\"\",0,VALUE('Bin Count Data'!DH11))","v":0},0,0,null,"",{"$f":"IF('Bin Count Data'!DM11=\"\",0,VALUE('Bin Count Data'!DM11))","v":0},{"$f":"IF('Bin Count Data'!DN11=\"\",0,VALUE('Bin Count Data'!DN11))","v":0},0,0]
[null,"",{"$f":"IF('Bin Count Data'!C12=\"\",0,VALUE('Bin Count Data'!C12))","v":0},{"$f":"IF('Bin Count Data'!D12=\"\",0,VALUE('Bin Count Data'!D12))","v":0},0,0,null,"",{"$f":"IF('Bin Count Data'!I12=\"\",0,VALUE('Bin Count Data'!I12))","v":0},{"$f":"IF('Bin Count Data'!J12=\"\",0,VALUE('Bin Count Data'!J12))","v":0},0,0,null,"",{"$f":"IF('Bin Count Data'!O12=\"\",0,VALUE('Bin Count Data'!O12))","v":0},{"$f":"IF('Bin Count Data'!P12=\"\",0,VALUE('Bin Count Data'!P12))","v":0},0,0,null,"",{"$f":"IF('Bin Count Data'!U12=\"\",0,VALUE('Bin Count Data'!U12))","v":0},{"$f":"IF('Bin Count Data'!V12=\"\",0,VALUE('Bin Count Data'!V12))","v":0},0,0,null,"",{"$f":"IF('Bin Count Data'!AA12=\"\",0,VALUE('Bin Count Data'!AA12))","v":0},{"$f":"IF('Bin Count Data'!AB12=\"\",0,VALUE('Bin Count Data'!AB12))","v":0},0,0,null,"",{"$f":"IF('Bin Count Data'!AG12=\"\",0,VALUE('Bin Count Data'!AG12))","v":0},{"$f":"IF('Bin Count Data'!AH12=\"\",0,VALUE('Bin Count Data'!AH12))","v":0},0,0,null,"",{"$f":"IF('Bin Count Data'!AM12=\"\",0,VALUE('Bin Count Data'!AM12))","v":0},{"$f":"IF('Bin Count Data'!AN12=\"\",0,VALUE('Bin Count Data'!AN12))","v":0},0,0,null,"",{"$f":"IF('Bin Count Data'!AS12=\"\",0,VALUE('Bin Count Data'!AS12))","v":0},{"$f":"IF('Bin Count Data'!AT12=\"\",0,VALUE('Bin Count Data'!AT12))","v":0},0,0,null,"",{"$f":"IF('Bin Count Data'!AY12=\"\",0,VALUE('Bin Count Data'!AY12))","v":0},{"$f":"IF('Bin Count Data'!AZ12=\"\",0,VALUE('Bin Count Data'!AZ12))","v":0},0,0,null,"",{"$f":"IF('Bin Count Data'!BE12=\"\",0,VALUE('Bin Count Data'!BE12))","v":0},{"$f":"IF('Bin Count Data'!BF12=\"\",0,VALUE('Bin Count Data'!BF12))","v":0},0,0,null,"",{"$f":"IF('Bin Count Data'!BK12=\"\",0,VALUE('Bin Count Data'!BK12))","v":0},{"$f":"IF('Bin Count Data'!BL12=\"\",0,VALUE('Bin Count Data'!BL12))","v":0},0,0,null,"",{"$f":"IF('Bin Count Data'!BQ12=\"\",0,VALUE('Bin Count Data'!BQ12))","v":0},{"$f":"IF('Bin Count Data'!BR12=\"\",0,VALUE('Bin Count Data'!BR12))","v":0},0,0,null,"",{"$f":"IF('Bin Count Data'!BW12=\"\",0,VALUE('Bin Count Data'!BW12))","v":0},{"$f":"IF('Bin Count Data'!BX12=\"\",0,VALUE('Bin Count Data'!BX12))","v":0},0,0,null,"",{"$f":"IF('Bin Count Data'!CC12=\"\",0,VALUE('Bin Count Data'!CC12))","v":0},{"$f":"IF('Bin Count Data'!CD12=\"\",0,VALUE('Bin Count Data'!CD12))","v":0},0,0,null,"",{"$f":"IF('Bin Count Data'!CI12=\"\",0,VALUE('Bin Count Data'!CI12))","v":0},{"$f":"IF('Bin Count Data'!CJ12=\"\",0,VALUE('Bin Count Data'!CJ12))","v":0},0,0,null,"",{"$f":"IF('Bin Count Data'!CO12=\"\",0,VALUE('Bin Count Data'!CO12))","v":0},{"$f":"IF('Bin Count Data'!CP12=\"\",0,VALUE('Bin Count Data'!CP12))","v":0},0,0,null,"",{"$f":"IF('Bin Count Data'!CU12=\"\",0,VALUE('Bin Count Data'!CU12))","v":0},{"$f":"IF('Bin Count Data'!CV12=\"\",0,VALUE('Bin Count Data'!CV12))","v":0},0,0,null,"",{"$f":"IF('Bin Count Data'!DA12=\"\",0,VALUE('Bin Count Data'!DA12))","v":0},{"$f":"IF('Bin Count Data'!DB12=\"\",0,VALUE('Bin Count Data'!DB12))","v":0},0,0,null,"",{"$f":"IF('Bin Count Data'!DG12=\"\",0,VALUE('Bin Count Data'!DG12))","v":0},{"$f":"IF('Bin Count Data'!DH12=\"\",0,VALUE('Bin Count Data'!DH12))","v":0},0,0,null,"",{"$f":"IF('Bin Count Data'!DM12=\"\",0,VALUE('Bin Count Data'!DM12))","v":0},{"$f":"IF('Bin Count Data'!DN12=\"\",0,VALUE('Bin Count Data'!DN12))","v":0},0,0]
[null,"",{"$f":"IF('Bin Count Data'!C13=\"\",0,VALUE('Bin Count Data'!C13))","v":0},{"$f":"IF('Bin Count Data'!D13=\"\",0,VALUE('Bin Count Data'!D13))","v":0},0,0,null,"",{"$f":"IF('Bin Count Data'!I13=\"\",0,VALUE('Bin Count Data'!I13))","v":0},{"$f":"IF('Bin Count Data'!J13=\"\",0,VALUE('Bin Count Data'!J13))","v":0},0,0,null,"",{"$f":"IF('Bin Count Data'!O13=\"\",0,VALUE('Bin Count Data'!O13))","v":0},{"$f":"IF('Bin Count Data'!P13=\"\",0,VALUE('Bin Count Data'!P13))","v":0},0,0,null,"",{"$f":"IF('Bin Count Data'!U13=\"\",0,VALUE('Bin Count Data'!U13))","v":0},{"$f":"IF('Bin Count Data'!V13=\"\",0,VALUE('Bin Count Data'!V13))","v":0},0,0,null,"",{"$f":"IF('Bin Count Data'!AA13=\"\",0,VALUE('Bin Count Data'!AA13))","v":0},{"$f":"IF('Bin Count Data'!AB13=\"\",0,VALUE('Bin Count Data'!AB13))","v":0},0,0,null,"",{"$f":"IF('Bin Count Data'!AG13=\"\",0,VALUE('Bin Count Data'!AG13))","v":0},{"$f":"IF('Bin Count Data'!AH13=\"\",0,VALUE('Bin Count Data'!AH13))","v":0},0,0,null,"",{"$f":"IF('Bin Count Data'!AM13=\"\",0,VALUE('Bin Count Data'!AM13))","v":0},{"$f":"IF('Bin Count Data'!AN13=\"\",0,VALUE('Bin Count Data'!AN13))","v":0},0,0,null,"",{"$f":"IF('Bin Count Data'!AS13=\"\",0,VALUE('Bin Count Data'!AS13))","v":0},{"$f":"IF('Bin Count Data'!AT13=\"\",0,VALUE('Bin Count Data'!AT13))","v":0},0,0,null,"",{"$f":"IF('Bin Count Data'!AY13=\"\",0,VALUE('Bin Count Data'!AY13))","v":0},{"$f":"IF('Bin Count Data'!AZ13=\"\",0,VALUE('Bin Count Data'!AZ13))","v":0},0,0,null,"",{"$f":"IF('Bin Count Data'!BE13=\"\",0,VALUE('Bin Count Data'!BE13))","v":0},{"$f":"IF('Bin Count Data'!BF13=\"\",0,VALUE('Bin Count Data'!BF13))","v":0},0,0,null,"",{"$f":"IF('Bin Count Data'!BK13=\"\",0,VALUE('Bin Count Data'!BK13))","v":0},{"$f":"IF('Bin Count Data'!BL13=\"\",0,VALUE('Bin Count Data'!BL13))","v":0},0,0,null,"",{"$f":"IF('Bin Count Data'!BQ13=\"\",0,VALUE('Bin Count Data'!BQ13))","v":0},{"$f":"IF('Bin Count Data'!BR13=\"\",0,VALUE('Bin Count Data'!BR13))","v":0},0,0,null,"",{"$f":"IF('Bin Count Data'!BW13=\"\",0,VALUE('Bin Count Data'!BW13))","v":0},{"$f":"IF('Bin Count Data'!BX13=\"\",0,VALUE('Bin Count Data'!BX13))","v":0},0,0,null,"",{"$f":"IF('Bin Count Data'!CC13=\"\",0,VALUE('Bin Count Data'!CC13))","v":0},{"$f":"IF('Bin Count Data'!CD13=\"\",0,VALUE('Bin Count Data'!CD13))","v":0},0,0,null,"",{"$f":"IF('Bin Count Data'!CI13=\"\",0,VALUE('Bin Count Data'!CI13))","v":0},{"$f":"IF('Bin Count Data'!CJ13=\"\",0,VALUE('Bin Count Data'!CJ13))","v":0},0,0,null,"",{"$f":"IF('Bin Count Data'!CO13=\"\",0,VALUE('Bin Count Data'!CO13))","v":0},{"$f":"IF('Bin Count Data'!CP13=\"\",0,VALUE('Bin Count Data'!CP13))","v":0},0,0,null,"",{"$f":"IF('Bin Count Data'!CU13=\"\",0,VALUE('Bin Count Data'!CU13))","v":0},{"$f":"IF('Bin Count Data'!CV13=\"\",0,VALUE('Bin Count Data'!CV13))","v":0},0,0,null,"",{"$f":"IF('Bin Count Data'!DA13=\"\",0,VALUE('Bin Count Data'!DA13))","v":0},{"$f":"IF('Bin Count Data'!DB13=\"\",0,VALUE('Bin Count Data'!DB13))","v":0},0,0,null,"",{"$f":"IF('Bin Count Data'!DG13=\"\",0,VALUE('Bin Count Data'!DG13))","v":0},{"$f":"IF('Bin Count Data'!DH13=\"\",0,VALUE('Bin Count Data'!DH13))","v":0},0,0,null,"",{"$f":"IF('Bin Count Data'!DM13=\"\",0,VALUE('Bin Count Data'!DM13))","v":0},{"$f":"IF('Bin Count Data'!DN13=\"\",0,VALUE('Bin Count Data'!DN13))","v":0},0,0]
[null,"",{"$f":"IF('Bin Count Data'!C14=\"\",0,VALUE('Bin Count Data'!C14))","v":0},{"$f":"IF('Bin Count Data'!D14=\"\",0,VALUE('Bin Count Data'!D14))","v":0},0,0,null,"",{"$f":"IF('Bin Count Data'!I14=\"\",0,VALUE('Bin Count Data'!I14))","v":0},{"$f":"IF('Bin Count Data'!J14=\"\",0,VALUE('Bin Count Data'!J14))","v":0},0,0,null,"",{"$f":"IF('Bin Count Data'!O14=\"\",0,VALUE('Bin Count Data'!O14))","v":0},{"$f":"IF('Bin Count Data'!P14=\"\",0,VALUE('Bin Count Data'!P14))","v":0},0,0,null,"",{"$f":"IF('Bin Count Data'!U14=\"\",0,VALUE('Bin Count Data'!U14))","v":0},{"$f":"IF('Bin Count Data'!V14=\"\",0,VALUE('Bin Count Data'!V14))","v":0},0,0,null,"",{"$f":"IF('Bin Count Data'!AA14=\"\",0,VALUE('Bin Count Data'!AA14))","v":0},{"$f":"IF('Bin Count Data'!AB14=\"\",0,VALUE('Bin Count Data'!AB14))","v":0},0,0,null,"",{"$f":"IF('Bin Count Data'!AG14=\"\",0,VALUE('Bin Count Data'!AG14))","v":0},{"$f":"IF('Bin Count Data'!AH14=\"\",0,VALUE('Bin Count Data'!AH14))","v":0},0,0,null,"",{"$f":"IF('Bin Count Data'!AM14=\"\",0,VALUE('Bin Count Data'!AM14))","v":0},{"$f":"IF('Bin Count Data'!AN14=\"\",0,VALUE('Bin Count Data'!AN14))","v":0},0,0,null,"",{"$f":"IF('Bin Count Data'!AS14=\"\",0,VALUE('Bin Count Data'!AS14))","v":0},{"$f":"IF('Bin Count Data'!AT14=\"\",0,VALUE('Bin Count Data'!AT14))","v":0},0,0,null,"",{"$f":"IF('Bin Count Data'!AY14=\"\",0,VALUE('Bin Count Data'!AY14))","v":0},{"$f":"IF('Bin Count Data'!AZ14=\"\",0,VALUE('Bin Count Data'!AZ14))","v":0},0,0,null,"",{"$f":"IF('Bin Count Data'!BE14=\"\",0,VALUE('Bin Count Data'!BE14))","v":0},{"$f":"IF('Bin Count Data'!BF14=\"\",0,VALUE('Bin Count Data'!BF14))","v":0},0,0,null,"",{"$f":"IF('Bin Count Data'!BK14=\"\",0,VALUE('Bin Count Data'!BK14))","v":0},{"$f":"IF('Bin Count Data'!BL14=\"\",0,VALUE('Bin Count Data'!BL14))","v":0},0,0,null,"",{"$f":"IF('Bin Count Data'!BQ14=\"\",0,VALUE('Bin Count Data'!BQ14))","v":0},{"$f":"IF('Bin Count Data'!BR14=\"\",0,VALUE('Bin Count Data'!BR14))","v":0},0,0,null,"",{"$f":"IF('Bin Count Data'!BW14=\"\",0,VALUE('Bin Count Data'!BW14))","v":0},{"$f":"IF('Bin Count Data'!BX14=\"\",0,VALUE('Bin Count Data'!BX14))","v":0},0,0,null,"",{"$f":"IF('Bin Count Data'!CC14=\"\",0,VALUE('Bin Count Data'!CC14))","v":0},{"$f":"IF('Bin Count Data'!CD14=\"\",0,VALUE('Bin Count Data'!CD14))","v":0},0,0,null,"",{"$f":"IF('Bin Count Data'!CI14=\"\",0,VALUE('Bin Count Data'!CI14))","v":0},{"$f":"IF('Bin Count Data'!CJ14=\"\",0,VALUE('Bin Count Data'!CJ14))","v":0},0,0,null,"",{"$f":"IF('Bin Count Data'!CO14=\"\",0,VALUE('Bin Count Data'!CO14))","v":0},{"$f":"IF('Bin Count Data'!CP14=\"\",0,VALUE('Bin Count Data'!CP14))","v":0},0,0,null,"",{"$f":"IF('Bin Count Data'!CU14=\"\",0,VALUE('Bin Count Data'!CU14))","v":0},{"$f":"IF('Bin Count Data'!CV14=\"\",0,VALUE('Bin Count Data'!CV14))","v":0},0,0,null,"",{"$f":"IF('Bin Count Data'!DA14=\"\",0,VALUE('Bin Count Data'!DA14))","v":0},{"$f":"IF('Bin Count Data'!DB14=\"\",0,VALUE('Bin Count Data'!DB14))","v":0},0,0,null,"",{"$f":"IF('Bin Count Data'!DG14=\"\",0,VALUE('Bin Count Data'!DG14))","v":0},{"$f":"IF('Bin Count Data'!DH14=\"\",0,VALUE('Bin Count Data'!DH14))","v":0},0,0,null,"",{"$f":"IF('Bin Count Data'!DM14=\"\",0,VALUE('Bin Count Data'!DM14))","v":0},{"$f":"IF('Bin Count Data'!DN14=\"\",0,VALUE('Bin Count Data'!DN14))","v":0},0,0]
[null,"",{"$f":"IF('Bin Count Data'!C15=\"\",0,VALUE('Bin Count Data'!C15))","v":0},{"$f":"IF('Bin Count Data'!D15=\"\",0,VALUE('Bin Count Data'!D15))","v":0},0,0,null,"",{"$f":"IF('Bin Count Data'!I15=\"\",0,VALUE('Bin Count Data'!I15))","v":0},{"$f":"IF('Bin Count Data'!J15=\"\",0,VALUE('Bin Count Data'!J15))","v":0},0,0,null,"",{"$f":"IF('Bin Count Data'!O15=\"\",0,VALUE('Bin Count Data'!O15))","v":0},{"$f":"IF('Bin Count Data'!P15=\"\",0,VALUE('Bin Count Data'!P15))","v":0},0,0,null,"",{"$f":"IF('Bin Count Data'!U15=\"\",0,VALUE('Bin Count Data'!U15))","v":0},{"$f":"IF('Bin Count Data'!V15=\"\",0,VALUE('Bin Count Data'!V15))","v":0},0,0,null,"",{"$f":"IF('Bin Count Data'!AA15=\"\",0,VALUE('Bin Count Data'!AA15))","v":0},{"$f":"IF('Bin Count Data'!AB15=\"\",0,VALUE('Bin Count Data'!AB15))","v":0},0,0,null,"",{"$f":"IF('Bin Count Data'!AG15=\"\",0,VALUE('Bin Count Data'!AG15))","v":0},{"$f":"IF('Bin Count Data'!AH15=\"\",0,VALUE('Bin Count Data'!AH15))","v":0},0,0,null,"",{"$f":"IF('Bin Count Data'!AM15=\"\",0,VALUE('Bin Count Data'!AM15))","v":0},{"$f":"IF('Bin Count Data'!AN15=\"\",0,VALUE('Bin Count Data'!AN15))","v":0},0,0,null,"",{"$f":"IF('Bin Count Data'!AS15=\"\",0,VALUE('Bin Count Data'!AS15))","v":0},{"$f":"IF('Bin Count Data'!AT15=\"\",0,VALUE('Bin Count Data'!AT15))","v":0},0,0,null,"",{"$f":"IF('Bin Count Data'!AY15=\"\",0,VALUE('Bin Count Data'!AY15))","v":0},{"$f":"IF('Bin Count Data'!AZ15=\"\",0,VALUE('Bin Count Data'!AZ15))","v":0},0,0,null,"",{"$f":"IF('Bin Count Data'!BE15=\"\",0,VALUE('Bin Count Data'!BE15))","v":0},{"$f":"IF('Bin Count Data'!BF15=\"\",0,VALUE('Bin Count Data'!BF15))","v":0},0,0,null,"",{"$f":"IF('Bin Count Data'!BK15=\"\",0,VALUE('Bin Count Data'!BK15))","v":0},{"$f":"IF('Bin Count Data'!BL15=\"\",0,VALUE('Bin Count Data'!BL15))","v":0},0,0,null,"",{"$f":"IF('Bin Count Data'!BQ15=\"\",0,VALUE('Bin Count Data'!BQ15))","v":0},{"$f":"IF('Bin Count Data'!BR15=\"\",0,VALUE('Bin Count Data'!BR15))","v":0},0,0,null,"",{"$f":"IF('Bin Count Data'!BW15=\"\",0,VALUE('Bin Count Data'!BW15))","v":0},{"$f":"IF('Bin Count Data'!BX15=\"\",0,VALUE('Bin Count Data'!BX15))","v":0},0,0,null,"",{"$f":"IF('Bin Count Data'!CC15=\"\",0,VALUE('Bin Count Data'!CC15))","v":0},{"$f":"IF('Bin Count Data'!CD15=\"\",0,VALUE('Bin Count Data'!CD15))","v":0},0,0,null,"",{"$f":"IF('Bin Count Data'!CI15=\"\",0,VALUE('Bin Count Data'!CI15))","v":0},{"$f":"IF('Bin Count Data'!CJ15=\"\",0,VALUE('Bin Count Data'!CJ15))","v":0},0,0,null,"",{"$f":"IF('Bin Count Data'!CO15=\"\",0,VALUE('Bin Count Data'!CO15))","v":0},{"$f":"IF('Bin Count Data'!CP15=\"\",0,VALUE('Bin Count Data'!CP15))","v":0},0,0,null,"",{"$f":"IF('Bin Count Data'!CU15=\"\",0,VALUE('Bin Count Data'!CU15))","v":0},{"$f":"IF('Bin Count Data'!CV15=\"\",0,VALUE('Bin Count Data'!CV15))","v":0},0,0,null,"",{"$f":"IF('Bin Count Data'!DA15=\"\",0,VALUE('Bin Count Data'!DA15))","v":0},{"$f":"IF('Bin Count Data'!DB15=\"\",0,VALUE('Bin Count Data'!DB15))","v":0},0,0,null,"",{"$f":"IF('Bin Count Data'!DG15=\"\",0,VALUE('Bin Count Data'!DG15))","v":0},{"$f":"IF('Bin Count Data'!DH15=\"\",0,VALUE('Bin Count Data'!DH15))","v":0},0,0,null,"",{"$f":"IF('Bin Count Data'!DM15=\"\",0,VALUE('Bin Count Data'!DM15))","v":0},{"$f":"IF('Bin Count Data'!DN15=\"\",0,VALUE('Bin Count Data'!DN15))","v":0},0,0]
[null,"",{"$f":"IF('Bin Count Data'!C16=\"\",0,VALUE('Bin Count Data'!C16))","v":0},{"$f":"IF('Bin Count Data'!D16=\"\",0,VALUE('Bin Count Data'!D16))","v":0},0,0,null,"",{"$f":"IF('Bin Count Data'!I16=\"\",0,VALUE('Bin Count Data'!I16))","v":0},{"$f":"IF('Bin Count Data'!J16=\"\",0,VALUE('Bin Count Data'!J16))","v":0},0,0,null,"",{"$f":"IF('Bin Count Data'!O16=\"\",0,VALUE('Bin Count Data'!O16))","v":0},{"$f":"IF('Bin Count Data'!P16=\"\",0,VALUE('Bin Count Data'!P16))","v":0},0,0,null,"",{"$f":"IF('Bin Count Data'!U16=\"\",0,VALUE('Bin Count Data'!U16))","v":0},{"$f":"IF('Bin Count Data'!V16=\"\",0,VALUE('Bin Count Data'!V16))","v":0},0,0,null,"",{"$f":"IF('Bin Count Data'!AA16=\"\",0,VALUE('Bin Count Data'!AA16))","v":0},{"$f":"IF('Bin Count Data'!AB16=\"\",0,VALUE('Bin Count Data'!AB16))","v":0},0,0,null,"",{"$f":"IF('Bin Count Data'!AG16=\"\",0,VALUE('Bin Count Data'!AG16))","v":0},{"$f":"IF('Bin Count Data'!AH16=\"\",0,VALUE('Bin Count Data'!AH16))","v":0},0,0,null,"",{"$f":"IF('Bin Count Data'!AM16=\"\",0,VALUE('Bin Count Data'!AM16))","v":0},{"$f":"IF('Bin Count Data'!AN16=\"\",0,VALUE('Bin Count Data'!AN16))","v":0},0,0,null,"",{"$f":"IF('Bin Count Data'!AS16=\"\",0,VALUE('Bin Count Data'!AS16))","v":0},{"$f":"IF('Bin Count Data'!AT16=\"\",0,VALUE('Bin Count Data'!AT16))","v":0},0,0,null,"",{"$f":"IF('Bin Count Data'!AY16=\"\",0,VALUE('Bin Count Data'!AY16))","v":0},{"$f":"IF('Bin Count Data'!AZ16=\"\",0,VALUE('Bin Count Data'!AZ16))","v":0},0,0,null,"",{"$f":"IF('Bin Count Data'!BE16=\"\",0,VALUE('Bin Count Data'!BE16))","v":0},{"$f":"IF('Bin Count Data'!BF16=\"\",0,VALUE('Bin Count Data'!BF16))","v":0},0,0,null,"",{"$f":"IF('Bin Count Data'!BK16=\"\",0,VALUE('Bin Count Data'!BK16))","v":0},{"$f":"IF('Bin Count Data'!BL16=\"\",0,VALUE('Bin Count Data'!BL16))","v":0},0,0,null,"",{"$f":"IF('Bin Count Data'!BQ16=\"\",0,VALUE('Bin Count Data'!BQ16))","v":0},{"$f":"IF('Bin Count Data'!BR16=\"\",0,VALUE('Bin Count Data'!BR16))","v":0},0,0,null,"",{"$f":"IF('Bin Count Data'!BW16=\"\",0,VALUE('Bin Count Data'!BW16))","v":0},{"$f":"IF('Bin Count Data'!BX16=\"\",0,VALUE('Bin Count Data'!BX16))","v":0},0,0,null,"",{"$f":"IF('Bin Count Data'!CC16=\"\",0,VALUE('Bin Count Data'!CC16))","v":0},{"$f":"IF('Bin Count Data'!CD16=\"\",0,VALUE('Bin Count Data'!CD16))","v":0},0,0,null,"",{"$f":"IF('Bin Count Data'!CI16=\"\",0,VALUE('Bin Count Data'!CI16))","v":0},{"$f":"IF('Bin Count Data'!CJ16=\"\",0,VALUE('Bin Count Data'!CJ16))","v":0},0,0,null,"",{"$f":"IF('Bin Count Data'!CO16=\"\",0,VALUE('Bin Count Data'!CO16))","v":0},{"$f":"IF('Bin Count Data'!CP16=\"\",0,VALUE('Bin Count Data'!CP16))","v":0},0,0,null,"",{"$f":"IF('Bin Count Data'!CU16=\"\",0,VALUE('Bin Count Data'!CU16))","v":0},{"$f":"IF('Bin Count Data'!CV16=\"\",0,VALUE('Bin Count Data'!CV16))","v":0},0,0,null,"",{"$f":"IF('Bin Count Data'!DA16=\"\",0,VALUE('Bin Count Data'!DA16))","v":0},{"$f":"IF('Bin Count Data'!DB16=\"\",0,VALUE('Bin Count Data'!DB16))","v":0},0,0,null,"",{"$f":"IF('Bin Count Data'!DG16=\"\",0,VALUE('Bin Count Data'!DG16))","v":0},{"$f":"IF('Bin Count Data'!DH16=\"\",0,VALUE('Bin Count Data'!DH16))","v":0},0,0,null,"",{"$f":"IF('Bin Count Data'!DM16=\"\",0,VALUE('Bin Count Data'!DM16))","v":0},{"$f":"IF('Bin Count Data'!DN16=\"\",0,VALUE('Bin Count Data'!DN16))","v":0},0,0]
[null,"",{"$f":"IF('Bin Count Data'!C17=\"\",0,VALUE('Bin Count Data'!C17))","v":0},{"$f":"IF('Bin Count Data'!D17=\"\",0,VALUE('Bin Count Data'!D17))","v":0},0,0,null,"",{"$f":"IF('Bin Count Data'!I17=\"\",0,VALUE('Bin Count Data'!I17))","v":0},{"$f":"IF('Bin Count Data'!J17=\"\",0,VALUE('Bin Count Data'!J17))","v":0},0,0,null,"",{"$f":"IF('Bin Count Data'!O17=\"\",0,VALUE('Bin Count Data'!O17))","v":0},{"$f":"IF('Bin Count Data'!P17=\"\",0,VALUE('Bin Count Data'!P17))","v":0},0,0,null,"",{"$f":"IF('Bin Count Data'!U17=\"\",0,VALUE('Bin Count Data'!U17))","v":0},{"$f":"IF('Bin Count Data'!V17=\"\",0,VALUE('Bin Count Data'!V17))","v":0},0,0,null,"",{"$f":"IF('Bin Count Data'!AA17=\"\",0,VALUE('Bin Count Data'!AA17))","v":0},{"$f":"IF('Bin Count Data'!AB17=\"\",0,VALUE('Bin Count Data'!AB17))","v":0},0,0,null,"",{"$f":"IF('Bin Count Data'!AG17=\"\",0,VALUE('Bin Count Data'!AG17))","v":0},{"$f":"IF('Bin Count Data'!AH17=\"\",0,VALUE('Bin Count Data'!AH17))","v":0},0,0,null,"",{"$f":"IF('Bin Count Data'!AM17=\"\",0,VALUE('Bin Count Data'!AM17))","v":0},{"$f":"IF('Bin Count Data'!AN17=\"\",0,VALUE('Bin Count Data'!AN17))","v":0},0,0,null,"",{"$f":"IF('Bin Count Data'!AS17=\"\",0,VALUE('Bin Count Data'!AS17))","v":0},{"$f":"IF('Bin Count Data'!AT17=\"\",0,VALUE('Bin Count Data'!AT17))","v":0},0,0,null,"",{"$f":"IF('Bin Count Data'!AY17=\"\",0,VALUE('Bin Count Data'!AY17))","v":0},{"$f":"IF('Bin Count Data'!AZ17=\"\",0,VALUE('Bin Count Data'!AZ17))","v":0},0,0,null,"",{"$f":"IF('Bin Count Data'!BE17=\"\",0,VALUE('Bin Count Data'!BE17))","v":0},{"$f":"IF('Bin Count Data'!BF17=\"\",0,VALUE('Bin Count Data'!BF17))","v":0},0,0,null,"",{"$f":"IF('Bin Count Data'!BK17=\"\",0,VALUE('Bin Count Data'!BK17))","v":0},{"$f":"IF('Bin Count Data'!BL17=\"\",0,VALUE('Bin Count Data'!BL17))","v":0},0,0,null,"",{"$f":"IF('Bin Count Data'!BQ17=\"\",0,VALUE('Bin Count Data'!BQ17))","v":0},{"$f":"IF('Bin Count Data'!BR17=\"\",0,VALUE('Bin Count Data'!BR17))","v":0},0,0,null,"",{"$f":"IF('Bin Count Data'!BW17=\"\",0,VALUE('Bin Count Data'!BW17))","v":0},{"$f":"IF('Bin Count Data'!BX17=\"\",0,VALUE('Bin Count Data'!BX17))","v":0},0,0,null,"",{"$f":"IF('Bin Count Data'!CC17=\"\",0,VALUE('Bin Count Data'!CC17))","v":0},{"$f":"IF('Bin Count Data'!CD17=\"\",0,VALUE('Bin Count Data'!CD17))","v":0},0,0,null,"",{"$f":"IF('Bin Count Data'!CI17=\"\",0,VALUE('Bin Count Data'!CI17))","v":0},{"$f":"IF('Bin Count Data'!CJ17=\"\",0,VALUE('Bin Count Data'!CJ17))","v":0},0,0,null,"",{"$f":"IF('Bin Count Data'!CO17=\"\",0,VALUE('Bin Count Data'!CO17))","v":0},{"$f":"IF('Bin Count Data'!CP17=\"\",0,VALUE('Bin Count Data'!CP17))","v":0},0,0,null,"",{"$f":"IF('Bin Count Data'!CU17=\"\",0,VALUE('Bin Count Data'!CU17))","v":0},{"$f":"IF('Bin Count Data'!CV17=\"\",0,VALUE('Bin Count Data'!CV17))","v":0},0,0,null,"",{"$f":"IF('Bin Count Data'!DA17=\"\",0,VALUE('Bin Count Data'!DA17))","v":0},{"$f":"IF('Bin Count Data'!DB17=\"\",0,VALUE('Bin Count Data'!DB17))","v":0},0,0,null,"",{"$f":"IF('Bin Count Data'!DG17=\"\",0,VALUE('Bin Count Data'!DG17))","v":0},{"$f":"IF('Bin Count Data'!DH17=\"\",0,VALUE('Bin Count Data'!DH17))","v":0},0,0,null,"",{"$f":"IF('Bin Count Data'!DM17=\"\",0,VALUE('Bin Count Data'!DM17))","v":0},{"$f":"IF('Bin Count Data'!DN17=\"\",0,VALUE('Bin Count Data'!DN17))","v":0},0,0]
[null,"",{"$f":"IF('Bin Count Data'!C18=\"\",0,VALUE('Bin Count Data'!C18))","v":0},{"$f":"IF('Bin Count Data'!D18=\"\",0,VALUE('Bin Count Data'!D18))","v":0},0,0,null,"",{"$f":"IF('Bin Count Data'!I18=\"\",0,VALUE('Bin Count Data'!I18))","v":0},{"$f":"IF('Bin Count Data'!J18=\"\",0,VALUE('Bin Count Data'!J18))","v":0},0,0,null,"",{"$f":"IF('Bin Count Data'!O18=\"\",0,VALUE('Bin Count Data'!O18))","v":0},{"$f":"IF('Bin Count Data'!P18=\"\",0,VALUE('Bin Count Data'!P18))","v":0},0,0,null,"",{"$f":"IF('Bin Count Data'!U18=\"\",0,VALUE('Bin Count Data'!U18))","v":0},{"$f":"IF('Bin Count Data'!V18=\"\",0,VALUE('Bin Count Data'!V18))","v":0},0,0,null,"",{"$f":"IF('Bin Count Data'!AA18=\"\",0,VALUE('Bin Count Data'!AA18))","v":0},{"$f":"IF('Bin Count Data'!AB18=\"\",0,VALUE('Bin Count Data'!AB18))","v":0},0,0,null,"",{"$f":"IF('Bin Count Data'!AG18=\"\",0,VALUE('Bin Count Data'!AG18))","v":0},{"$f":"IF('Bin Count Data'!AH18=\"\",0,VALUE('Bin Count Data'!AH18))","v":0},0,0,null,"",{"$f":"IF('Bin Count Data'!AM18=\"\",0,VALUE('Bin Count Data'!AM18))","v":0},{"$f":"IF('Bin Count Data'!AN18=\"\",0,VALUE('Bin Count Data'!AN18))","v":0},0,0,null,"",{"$f":"IF('Bin Count Data'!AS18=\"\",0,VALUE('Bin Count Data'!AS18))","v":0},{"$f":"IF('Bin Count Data'!AT18=\"\",0,VALUE('Bin Count Data'!AT18))","v":0},0,0,null,"",{"$f":"IF('Bin Count Data'!AY18=\"\",0,VALUE('Bin Count Data'!AY18))","v":0},{"$f":"IF('Bin Count Data'!AZ18=\"\",0,VALUE('Bin Count Data'!AZ18))","v":0},0,0,null,"",{"$f":"IF('Bin Count Data'!BE18=\"\",0,VALUE('Bin Count Data'!BE18))","v":0},{"$f":"IF('Bin Count Data'!BF18=\"\",0,VALUE('Bin Count Data'!BF18))","v":0},0,0,null,"",{"$f":"IF('Bin Count Data'!BK18=\"\",0,VALUE('Bin Count Data'!BK18))","v":0},{"$f":"IF('Bin Count Data'!BL18=\"\",0,VALUE('Bin Count Data'!BL18))","v":0},0,0,null,"",{"$f":"IF('Bin Count Data'!BQ18=\"\",0,VALUE('Bin Count Data'!BQ18))","v":0},{"$f":"IF('Bin Count Data'!BR18=\"\",0,VALUE('Bin Count Data'!BR18))","v":0},0,0,null,"",{"$f":"IF('Bin Count Data'!BW18=\"\",0,VALUE('Bin Count Data'!BW18))","v":0},{"$f":"IF('Bin Count Data'!BX18=\"\",0,VALUE('Bin Count Data'!BX18))","v":0},0,0,null,"",{"$f":"IF('Bin Count Data'!CC18=\"\",0,VALUE('Bin Count Data'!CC18))","v":0},{"$f":"IF('Bin Count Data'!CD18=\"\",0,VALUE('Bin Count Data'!CD18))","v":0},0,0,null,"",{"$f":"IF('Bin Count Data'!CI18=\"\",0,VALUE('Bin Count Data'!CI18))","v":0},{"$f":"IF('Bin Count Data'!CJ18=\"\",0,VALUE('Bin Count Data'!CJ18))","v":0},0,0,null,"",{"$f":"IF('Bin Count Data'!CO18=\"\",0,VALUE('Bin Count Data'!CO18))","v":0},{"$f":"IF('Bin Count Data'!CP18=\"\",0,VALUE('Bin Count Data'!CP18))","v":0},0,0,null,"",{"$f":"IF('Bin Count Data'!CU18=\"\",0,VALUE('Bin Count Data'!CU18))","v":0},{"$f":"IF('Bin Count Data'!CV18=\"\",0,VALUE('Bin Count Data'!CV18))","v":0},0,0,null,"",{"$f":"IF('Bin Count Data'!DA18=\"\",0,VALUE('Bin Count Data'!DA18))","v":0},{"$f":"IF('Bin Count Data'!DB18=\"\",0,VALUE('Bin Count Data'!DB18))","v":0},0,0,null,"",{"$f":"IF('Bin Count Data'!DG18=\"\",0,VALUE('Bin Count Data'!DG18))","v":0},{"$f":"IF('Bin Count Data'!DH18=\"\",0,VALUE('Bin Count Data'!DH18))","v":0},0,0,null,"",{"$f":"IF('Bin Count Data'!DM18=\"\",0,VALUE('Bin Count Data'!DM18))","v":0},{"$f":"IF('Bin Count Data'!DN18=\"\",0,VALUE('Bin Count Data'!DN18))","v":0},0,0]
[null,"",{"$f":"IF('Bin Count Data'!C19=\"\",0,VALUE('Bin Count Data'!C19))","v":0},{"$f":"IF('Bin Count Data'!D19=\"\",0,VALUE('Bin Count Data'!D19))","v":0},0,0,null,"",{"$f":"IF('Bin Count Data'!I19=\"\",0,VALUE('Bin Count Data'!I19))","v":0},{"$f":"IF('Bin Count Data'!J19=\"\",0,VALUE('Bin Count Data'!J19))","v":0},0,0,null,"",{"$f":"IF('Bin Count Data'!O19=\"\",0,VALUE('Bin Count Data'!O19))","v":0},{"$f":"IF('Bin Count Data'!P19=\"\",0,VALUE('Bin Count Data'!P19))","v":0},0,0,null,"",{"$f":"IF('Bin Count Data'!U19=\"\",0,VALUE('Bin Count Data'!U19))","v":0},{"$f":"IF('Bin Count Data'!V19=\"\",0,VALUE('Bin Count Data'!V19))","v":0},0,0,null,"",{"$f":"IF('Bin Count Data'!AA19=\"\",0,VALUE('Bin Count Data'!AA19))","v":0},{"$f":"IF('Bin Count Data'!AB19=\"\",0,VALUE('Bin Count Data'!AB19))","v":0},0,0,null,"",{"$f":"IF('Bin Count Data'!AG19=\"\",0,VALUE('Bin Count Data'!AG19))","v":0},{"$f":"IF('Bin Count Data'!AH19=\"\",0,VALUE('Bin Count Data'!AH19))","v":0},0,0,null,"",{"$f":"IF('Bin Count Data'!AM19=\"\",0,VALUE('Bin Count Data'!AM19))","v":0},{"$f":"IF('Bin Count Data'!AN19=\"\",0,VALUE('Bin Count Data'!AN19))","v":0},0,0,null,"",{"$f":"IF('Bin Count Data'!AS19=\"\",0,VALUE('Bin Count Data'!AS19))","v":0},{"$f":"IF('Bin Count Data'!AT19=\"\",0,VALUE('Bin Count Data'!AT19))","v":0},0,0,null,"",{"$f":"IF('Bin Count Data'!AY19=\"\",0,VALUE('Bin Count Data'!AY19))","v":0},{"$f":"IF('Bin Count Data'!AZ19=\"\",0,VALUE('Bin Count Data'!AZ19))","v":0},0,0,null,"",{"$f":"IF('Bin Count Data'!BE19=\"\",0,VALUE('Bin Count Data'!BE19))","v":0},{"$f":"IF('Bin Count Data'!BF19=\"\",0,VALUE('Bin Count Data'!BF19))","v":0},0,0,null,"",{"$f":"IF('Bin Count Data'!BK19=\"\",0,VALUE('Bin Count Data'!BK19))","v":0},{"$f":"IF('Bin Count Data'!BL19=\"\",0,VALUE('Bin Count Data'!BL19))","v":0},0,0,null,"",{"$f":"IF('Bin Count Data'!BQ19=\"\",0,VALUE('Bin Count Data'!BQ19))","v":0},{"$f":"IF('Bin Count Data'!BR19=\"\",0,VALUE('Bin Count Data'!BR19))","v":0},0,0,null,"",{"$f":"IF('Bin Count Data'!BW19=\"\",0,VALUE('Bin Count Data'!BW19))","v":0},{"$f":"IF('Bin Count Data'!BX19=\"\",0,VALUE('Bin Count Data'!BX19))","v":0},0,0,null,"",{"$f":"IF('Bin Count Data'!CC19=\"\",0,VALUE('Bin Count Data'!CC19))","v":0},{"$f":"IF('Bin Count Data'!CD19=\"\",0,VALUE('Bin Count Data'!CD19))","v":0},0,0,null,"",{"$f":"IF('Bin Count Data'!CI19=\"\",0,VALUE('Bin Count Data'!CI19))","v":0},{"$f":"IF('Bin Count Data'!CJ19=\"\",0,VALUE('Bin Count Data'!CJ19))","v":0},0,0,null,"",{"$f":"IF('Bin Count Data'!CO19=\"\",0,VALUE('Bin Count Data'!CO19))","v":0},{"$f":"IF('Bin Count Data'!CP19=\"\",0,VALUE('Bin Count Data'!CP19))","v":0},0,0,null,"",{"$f":"IF('Bin Count Data'!CU19=\"\",0,VALUE('Bin Count Data'!CU19))","v":0},{"$f":"IF('Bin Count Data'!CV19=\"\",0,VALUE('Bin Count Data'!CV19))","v":0},0,0,null,"",{"$f":"IF('Bin Count Data'!DA19=\"\",0,VALUE('Bin Count Data'!DA19))","v":0},{"$f":"IF('Bin Count Data'!DB19=\"\",0,VALUE('Bin Count Data'!DB19))","v":0},0,0,null,"",{"$f":"IF('Bin Count Data'!DG19=\"\",0,VALUE('Bin Count Data'!DG19))","v":0},{"$f":"IF('Bin Count Data'!DH19=\"\",0,VALUE('Bin Count Data'!DH19))","v":0},0,0,null,"",{"$f":"IF('Bin Count Data'!DM19=\"\",0,VALUE('Bin Count Data'!DM19))","v":0},{"$f":"IF('Bin Count Data'!DN19=\"\",0,VALUE('Bin Count Data'!DN19))","v":0},0,0]
[null,"",{"$f":"IF('Bin Count Data'!C20=\"\",0,VALUE('Bin Count Data'!C20))","v":0},{"$f":"IF('Bin Count Data'!D20=\"\",0,VALUE('Bin Count Data'!D20))","v":0},0,0,null,"",{"$f":"IF('Bin Count Data'!I20=\"\",0,VALUE('Bin Count Data'!I20))","v":0},{"$f":"IF('Bin Count Data'!J20=\"\",0,VALUE('Bin Count Data'!J20))","v":0},0,0,null,"",{"$f":"IF('Bin Count Data'!O20=\"\",0,VALUE('Bin Count Data'!O20))","v":0},{"$f":"IF('Bin Count Data'!P20=\"\",0,VALUE('Bin Count Data'!P20))","v":0},0,0,null,"",{"$f":"IF('Bin Count Data'!U20=\"\",0,VALUE('Bin Count Data'!U20))","v":0},{"$f":"IF('Bin Count Data'!V20=\"\",0,VALUE('Bin Count Data'!V20))","v":0},0,0,null,"",{"$f":"IF('Bin Count Data'!AA20=\"\",0,VALUE('Bin Count Data'!AA20))","v":0},{"$f":"IF('Bin Count Data'!AB20=\"\",0,VALUE('Bin Count Data'!AB20))","v":0},0,0,null,"",{"$f":"IF('Bin Count Data'!AG20=\"\",0,VALUE('Bin Count Data'!AG20))","v":0},{"$f":"IF('Bin Count Data'!AH20=\"\",0,VALUE('Bin Count Data'!AH20))","v":0},0,0,null,"",{"$f":"IF('Bin Count Data'!AM20=\"\",0,VALUE('Bin Count Data'!AM20))","v":0},{"$f":"IF('Bin Count Data'!AN20=\"\",0,VALUE('Bin Count Data'!AN20))","v":0},0,0,null,"",{"$f":"IF('Bin Count Data'!AS20=\"\",0,VALUE('Bin Count Data'!AS20))","v":0},{"$f":"IF('Bin Count Data'!AT20=\"\",0,VALUE('Bin Count Data'!AT20))","v":0},0,0,null,"",{"$f":"IF('Bin Count Data'!AY20=\"\",0,VALUE('Bin Count Data'!AY20))","v":0},{"$f":"IF('Bin Count Data'!AZ20=\"\",0,VALUE('Bin Count Data'!AZ20))","v":0},0,0,null,"",{"$f":"IF('Bin Count Data'!BE20=\"\",0,VALUE('Bin Count Data'!BE20))","v":0},{"$f":"IF('Bin Count Data'!BF20=\"\",0,VALUE('Bin Count Data'!BF20))","v":0},0,0,null,"",{"$f":"IF('Bin Count Data'!BK20=\"\",0,VALUE('Bin Count Data'!BK20))","v":0},{"$f":"IF('Bin Count Data'!BL20=\"\",0,VALUE('Bin Count Data'!BL20))","v":0},0,0,null,"",{"$f":"IF('Bin Count Data'!BQ20=\"\",0,VALUE('Bin Count Data'!BQ20))","v":0},{"$f":"IF('Bin Count Data'!BR20=\"\",0,VALUE('Bin Count Data'!BR20))","v":0},0,0,null,"",{"$f":"IF('Bin Count Data'!BW20=\"\",0,VALUE('Bin Count Data'!BW20))","v":0},{"$f":"IF('Bin Count Data'!BX20=\"\",0,VALUE('Bin Count Data'!BX20))","v":0},0,0,null,"",{"$f":"IF('Bin Count Data'!CC20=\"\",0,VALUE('Bin Count Data'!CC20))","v":0},{"$f":"IF('Bin Count Data'!CD20=\"\",0,VALUE('Bin Count Data'!CD20))","v":0},0,0,null,"",{"$f":"IF('Bin Count Data'!CI20=\"\",0,VALUE('Bin Count Data'!CI20))","v":0},{"$f":"IF('Bin Count Data'!CJ20=\"\",0,VALUE('Bin Count Data'!CJ20))","v":0},0,0,null,"",{"$f":"IF('Bin Count Data'!CO20=\"\",0,VALUE('Bin Count Data'!CO20))","v":0},{"$f":"IF('Bin Count Data'!CP20=\"\",0,VALUE('Bin Count Data'!CP20))","v":0},0,0,null,"",{"$f":"IF('Bin Count Data'!CU20=\"\",0,VALUE('Bin Count Data'!CU20))","v":0},{"$f":"IF('Bin Count Data'!CV20=\"\",0,VALUE('Bin Count Data'!CV20))","v":0},0,0,null,"",{"$f":"IF('Bin Count Data'!DA20=\"\",0,VALUE('Bin Count Data'!DA20))","v":0},{"$f":"IF('Bin Count Data'!DB20=\"\",0,VALUE('Bin Count Data'!DB20))","v":0},0,0,null,"",{"$f":"IF('Bin Count Data'!DG20=\"\",0,VALUE('Bin Count Data'!DG20))","v":0},{"$f":"IF('Bin Count Data'!DH20=\"\",0,VALUE('Bin Count Data'!DH20))","v":0},0,0,null,"",{"$f":"IF('Bin Count Data'!DM20=\"\",0,VALUE('Bin Count Data'!DM20))","v":0},{"$f":"IF('Bin Count Data'!DN20=\"\",0,VALUE('Bin Count Data'!DN20))","v":0},0,0]
[null,"",{"$f":"IF('Bin Count Data'!C21=\"\",0,VALUE('Bin Count Data'!C21))","v":0},{"$f":"IF('Bin Count Data'!D21=\"\",0,VALUE('Bin Count Data'!D21))","v":0},0,0,null,"",{"$f":"IF('Bin Count Data'!I21=\"\",0,VALUE('Bin Count Data'!I21))","v":0},{"$f":"IF('Bin Count Data'!J21=\"\",0,VALUE('Bin Count Data'!J21))","v":0},0,0,null,"",{"$f":"IF('Bin Count Data'!O21=\"\",0,VALUE('Bin Count Data'!O21))","v":0},{"$f":"IF('Bin Count Data'!P21=\"\",0,VALUE('Bin Count Data'!P21))","v":0},0,0,null,"",{"$f":"IF('Bin Count Data'!U21=\"\",0,VALUE('Bin Count Data'!U21))","v":0},{"$f":"IF('Bin Count Data'!V21=\"\",0,VALUE('Bin Count Data'!V21))","v":0},0,0,null,"",{"$f":"IF('Bin Count Data'!AA21=\"\",0,VALUE('Bin Count Data'!AA21))","v":0},{"$f":"IF('Bin Count Data'!AB21=\"\",0,VALUE('Bin Count Data'!AB21))","v":0},0,0,null,"",{"$f":"IF('Bin Count Data'!AG21=\"\",0,VALUE('Bin Count Data'!AG21))","v":0},{"$f":"IF('Bin Count Data'!AH21=\"\",0,VALUE('Bin Count Data'!AH21))","v":0},0,0,null,"",{"$f":"IF('Bin Count Data'!AM21=\"\",0,VALUE('Bin Count Data'!AM21))","v":0},{"$f":"IF('Bin Count Data'!AN21=\"\",0,VALUE('Bin Count Data'!AN21))","v":0},0,0,null,"",{"$f":"IF('Bin Count Data'!AS21=\"\",0,VALUE('Bin Count Data'!AS21))","v":0},{"$f":"IF('Bin Count Data'!AT21=\"\",0,VALUE('Bin Count Data'!AT21))","v":0},0,0,null,"",{"$f":"IF('Bin Count Data'!AY21=\"\",0,VALUE('Bin Count Data'!AY21))","v":0},{"$f":"IF('Bin Count Data'!AZ21=\"\",0,VALUE('Bin Count Data'!AZ21))","v":0},0,0,null,"",{"$f":"IF('Bin Count Data'!BE21=\"\",0,VALUE('Bin Count Data'!BE21))","v":0},{"$f":"IF('Bin Count Data'!BF21=\"\",0,VALUE('Bin Count Data'!BF21))","v":0},0,0,null,"",{"$f":"IF('Bin Count Data'!BK21=\"\",0,VALUE('Bin Count Data'!BK21))","v":0},{"$f":"IF('Bin Count Data'!BL21=\"\",0,VALUE('Bin Count Data'!BL21))","v":0},0,0,null,"",{"$f":"IF('Bin Count Data'!BQ21=\"\",0,VALUE('Bin Count Data'!BQ21))","v":0},{"$f":"IF('Bin Count Data'!BR21=\"\",0,VALUE('Bin Count Data'!BR21))","v":0},0,0,null,"",{"$f":"IF('Bin Count Data'!BW21=\"\",0,VALUE('Bin Count Data'!BW21))","v":0},{"$f":"IF('Bin Count Data'!BX21=\"\",0,VALUE('Bin Count Data'!BX21))","v":0},0,0,null,"",{"$f":"IF('Bin Count Data'!CC21=\"\",0,VALUE('Bin Count Data'!CC21))","v":0},{"$f":"IF('Bin Count Data'!CD21=\"\",0,VALUE('Bin Count Data'!CD21))","v":0},0,0,null,"",{"$f":"IF('Bin Count Data'!CI21=\"\",0,VALUE('Bin Count Data'!CI21))","v":0},{"$f":"IF('Bin Count Data'!CJ21=\"\",0,VALUE('Bin Count Data'!CJ21))","v":0},0,0,null,"",{"$f":"IF('Bin Count Data'!CO21=\"\",0,VALUE('Bin Count Data'!CO21))","v":0},{"$f":"IF('Bin Count Data'!CP21=\"\",0,VALUE('Bin Count Data'!CP21))","v":0},0,0,null,"",{"$f":"IF('Bin Count Data'!CU21=\"\",0,VALUE('Bin Count Data'!CU21))","v":0},{"$f":"IF('Bin Count Data'!CV21=\"\",0,VALUE('Bin Count Data'!CV21))","v":0},0,0,null,"",{"$f":"IF('Bin Count Data'!DA21=\"\",0,VALUE('Bin Count Data'!DA21))","v":0},{"$f":"IF('Bin Count Data'!DB21=\"\",0,VALUE('Bin Count Data'!DB21))","v":0},0,0,null,"",{"$f":"IF('Bin Count Data'!DG21=\"\",0,VALUE('Bin Count Data'!DG21))","v":0},{"$f":"IF('Bin Count Data'!DH21=\"\",0,VALUE('Bin Count Data'!DH21))","v":0},0,0,null,"",{"$f":"IF('Bin Count Data'!DM21=\"\",0,VALUE('Bin Count Data'!DM21))","v":0},{"$f":"IF('Bin Count Data'!DN21=\"\",0,VALUE('Bin Count Data'!DN21))","v":0},0,0]
[null,"",{"$f":"IF('Bin Count Data'!C22=\"\",0,VALUE('Bin Count Data'!C22))","v":0},{"$f":"IF('Bin Count Data'!D22=\"\",0,VALUE('Bin Count Data'!D22))","v":0},0,0,null,"",{"$f":"IF('Bin Count Data'!I22=\"\",0,VALUE('Bin Count Data'!I22))","v":0},{"$f":"IF('Bin Count Data'!J22=\"\",0,VALUE('Bin Count Data'!J22))","v":0},0,0,null,"",{"$f":"IF('Bin Count Data'!O22=\"\",0,VALUE('Bin Count Data'!O22))","v":0},{"$f":"IF('Bin Count Data'!P22=\"\",0,VALUE('Bin Count Data'!P22))","v":0},0,0,null,"",{"$f":"IF('Bin Count Data'!U22=\"\",0,VALUE('Bin Count Data'!U22))","v":0},{"$f":"IF('Bin Count Data'!V22=\"\",0,VALUE('Bin Count Data'!V22))","v":0},0,0,null,"",{"$f":"IF('Bin Count Data'!AA22=\"\",0,VALUE('Bin Count Data'!AA22))","v":0},{"$f":"IF('Bin Count Data'!AB22=\"\",0,VALUE('Bin Count Data'!AB22))","v":0},0,0,null,"",{"$f":"IF('Bin Count Data'!AG22=\"\",0,VALUE('Bin Count Data'!AG22))","v":0},{"$f":"IF('Bin Count Data'!AH22=\"\",0,VALUE('Bin Count Data'!AH22))","v":0},0,0,null,"",{"$f":"IF('Bin Count Data'!AM22=\"\",0,VALUE('Bin Count Data'!AM22))","v":0},{"$f":"IF('Bin Count Data'!AN22=\"\",0,VALUE('Bin Count Data'!AN22))","v":0},0,0,null,"",{"$f":"IF('Bin Count Data'!AS22=\"\",0,VALUE('Bin Count Data'!AS22))","v":0},{"$f":"IF('Bin Count Data'!AT22=\"\",0,VALUE('Bin Count Data'!AT22))","v":0},0,0,null,"",{"$f":"IF('Bin Count Data'!AY22=\"\",0,VALUE('Bin Count Data'!AY22))","v":0},{"$f":"IF('Bin Count Data'!AZ22=\"\",0,VALUE('Bin Count Data'!AZ22))","v":0},0,0,null,"",{"$f":"IF('Bin Count Data'!BE22=\"\",0,VALUE('Bin Count Data'!BE22))","v":0},{"$f":"IF('Bin Count Data'!BF22=\"\",0,VALUE('Bin Count Data'!BF22))","v":0},0,0,null,"",{"$f":"IF('Bin Count Data'!BK22=\"\",0,VALUE('Bin Count Data'!BK22))","v":0},{"$f":"IF('Bin Count Data'!BL22=\"\",0,VALUE('Bin Count Data'!BL22))","v":0},0,0,null,"",{"$f":"IF('Bin Count Data'!BQ22=\"\",0,VALUE('Bin Count Data'!BQ22))","v":0},{"$f":"IF('Bin Count Data'!BR22=\"\",0,VALUE('Bin Count Data'!BR22))","v":0},0,0,null,"",{"$f":"IF('Bin Count Data'!BW22=\"\",0,VALUE('Bin Count Data'!BW22))","v":0},{"$f":"IF('Bin Count Data'!BX22=\"\",0,VALUE('Bin Count Data'!BX22))","v":0},0,0,null,"",{"$f":"IF('Bin Count Data'!CC22=\"\",0,VALUE('Bin Count Data'!CC22))","v":0},{"$f":"IF('Bin Count Data'!CD22=\"\",0,VALUE('Bin Count Data'!CD22))","v":0},0,0,null,"",{"$f":"IF('Bin Count Data'!CI22=\"\",0,VALUE('Bin Count Data'!CI22))","v":0},{"$f":"IF('Bin Count Data'!CJ22=\"\",0,VALUE('Bin Count Data'!CJ22))","v":0},0,0,null,"",{"$f":"IF('Bin Count Data'!CO22=\"\",0,VALUE('Bin Count Data'!CO22))","v":0},{"$f":"IF('Bin Count Data'!CP22=\"\",0,VALUE('Bin Count Data'!CP22))","v":0},0,0,null,"",{"$f":"IF('Bin Count Data'!CU22=\"\",0,VALUE('Bin Count Data'!CU22))","v":0},{"$f":"IF('Bin Count Data'!CV22=\"\",0,VALUE('Bin Count Data'!CV22))","v":0},0,0,null,"",{"$f":"IF('Bin Count Data'!DA22=\"\",0,VALUE('Bin Count Data'!DA22))","v":0},{"$f":"IF('Bin Count Data'!DB22=\"\",0,VALUE('Bin Count Data'!DB22))","v":0},0,0,null,"",{"$f":"IF('Bin Count Data'!DG22=\"\",0,VALUE('Bin Count Data'!DG22))","v":0},{"$f":"IF('Bin Count Data'!DH22=\"\",0,VALUE('Bin Count Data'!DH22))","v":0},0,0,null,"",{"$f":"IF('Bin Count Data'!DM22=\"\",0,VALUE('Bin Count Data'!DM22))","v":0},{"$f":"IF('Bin Count Data'!DN22=\"\",0,VALUE('Bin Count Data'!DN22))","v":0},0,0]
[null,"",{"$f":"IF('Bin Count Data'!C23=\"\",0,VALUE('Bin Count Data'!C23))","v":0},{"$f":"IF('Bin Count Data'!D23=\"\",0,VALUE('Bin Count Data'!D23))","v":0},0,0,null,"",{"$f":"IF('Bin Count Data'!I23=\"\",0,VALUE('Bin Count Data'!I23))","v":0},{"$f":"IF('Bin Count Data'!J23=\"\",0,VALUE('Bin Count Data'!J23))","v":0},0,0,null,"",{"$f":"IF('Bin Count Data'!O23=\"\",0,VALUE('Bin Count Data'!O23))","v":0},{"$f":"IF('Bin Count Data'!P23=\"\",0,VALUE('Bin Count Data'!P23))","v":0},0,0,null,"",{"$f":"IF('Bin Count Data'!U23=\"\",0,VALUE('Bin Count Data'!U23))","v":0},{"$f":"IF('Bin Count Data'!V23=\"\",0,VALUE('Bin Count Data'!V23))","v":0},0,0,null,"",{"$f":"IF('Bin Count Data'!AA23=\"\",0,VALUE('Bin Count Data'!AA23))","v":0},{"$f":"IF('Bin Count Data'!AB23=\"\",0,VALUE('Bin Count Data'!AB23))","v":0},0,0,null,"",{"$f":"IF('Bin Count Data'!AG23=\"\",0,VALUE('Bin Count Data'!AG23))","v":0},{"$f":"IF('Bin Count Data'!AH23=\"\",0,VALUE('Bin Count Data'!AH23))","v":0},0,0,null,"",{"$f":"IF('Bin Count Data'!AM23=\"\",0,VALUE('Bin Count Data'!AM23))","v":0},{"$f":"IF('Bin Count Data'!AN23=\"\",0,VALUE('Bin Count Data'!AN23))","v":0},0,0,null,"",{"$f":"IF('Bin Count Data'!AS23=\"\",0,VALUE('Bin Count Data'!AS23))","v":0},{"$f":"IF('Bin Count Data'!AT23=\"\",0,VALUE('Bin Count Data'!AT23))","v":0},0,0,null,"",{"$f":"IF('Bin Count Data'!AY23=\"\",0,VALUE('Bin Count Data'!AY23))","v":0},{"$f":"IF('Bin Count Data'!AZ23=\"\",0,VALUE('Bin Count Data'!AZ23))","v":0},0,0,null,"",{"$f":"IF('Bin Count Data'!BE23=\"\",0,VALUE('Bin Count Data'!BE23))","v":0},{"$f":"IF('Bin Count Data'!BF23=\"\",0,VALUE('Bin Count Data'!BF23))","v":0},0,0,null,"",{"$f":"IF('Bin Count Data'!BK23=\"\",0,VALUE('Bin Count Data'!BK23))","v":0},{"$f":"IF('Bin Count Data'!BL23=\"\",0,VALUE('Bin Count Data'!BL23))","v":0},0,0,null,"",{"$f":"IF('Bin Count Data'!BQ23=\"\",0,VALUE('Bin Count Data'!BQ23))","v":0},{"$f":"IF('Bin Count Data'!BR23=\"\",0,VALUE('Bin Count Data'!BR23))","v":0},0,0,null,"",{"$f":"IF('Bin Count Data'!BW23=\"\",0,VALUE('Bin Count Data'!BW23))","v":0},{"$f":"IF('Bin Count Data'!BX23=\"\",0,VALUE('Bin Count Data'!BX23))","v":0},0,0,null,"",{"$f":"IF('Bin Count Data'!CC23=\"\",0,VALUE('Bin Count Data'!CC23))","v":0},{"$f":"IF('Bin Count Data'!CD23=\"\",0,VALUE('Bin Count Data'!CD23))","v":0},0,0,null,"",{"$f":"IF('Bin Count Data'!CI23=\"\",0,VALUE('Bin Count Data'!CI23))","v":0},{"$f":"IF('Bin Count Data'!CJ23=\"\",0,VALUE('Bin Count Data'!CJ23))","v":0},0,0,null,"",{"$f":"IF('Bin Count Data'!CO23=\"\",0,VALUE('Bin Count Data'!CO23))","v":0},{"$f":"IF('Bin Count Data'!CP23=\"\",0,VALUE('Bin Count Data'!CP23))","v":0},0,0,null,"",{"$f":"IF('Bin Count Data'!CU23=\"\",0,VALUE('Bin Count Data'!CU23))","v":0},{"$f":"IF('Bin Count Data'!CV23=\"\",0,VALUE('Bin Count Data'!CV23))","v":0},0,0,null,"",{"$f":"IF('Bin Count Data'!DA23=\"\",0,VALUE('Bin Count Data'!DA23))","v":0},{"$f":"IF('Bin Count Data'!DB23=\"\",0,VALUE('Bin Count Data'!DB23))","v":0},0,0,null,"",{"$f":"IF('Bin Count Data'!DG23=\"\",0,VALUE('Bin Count Data'!DG23))","v":0},{"$f":"IF('Bin Count Data'!DH23=\"\",0,VALUE('Bin Count Data'!DH23))","v":0},0,0,null,"",{"$f":"IF('Bin Count Data'!DM23=\"\",0,VALUE('Bin Count Data'!DM23))","v":0},{"$f":"IF('Bin Count Data'!DN23=\"\",0,VALUE('Bin Count Data'!DN23))","v":0},0,0]
[null,"",{"$f":"IF('Bin Count Data'!C24=\"\",0,VALUE('Bin Count Data'!C24))","v":0},{"$f":"IF('Bin Count Data'!D24=\"\",0,VALUE('Bin Count Data'!D24))","v":0},0,0,null,"",{"$f":"IF('Bin Count Data'!I24=\"\",0,VALUE('Bin Count Data'!I24))","v":0},{"$f":"IF('Bin Count Data'!J24=\"\",0,VALUE('Bin Count Data'!J24))","v":0},0,0,null,"",{"$f":"IF('Bin Count Data'!O24=\"\",0,VALUE('Bin Count Data'!O24))","v":0},{"$f":"IF('Bin Count Data'!P24=\"\",0,VALUE('Bin Count Data'!P24))","v":0},0,0,null,"",{"$f":"IF('Bin Count Data'!U24=\"\",0,VALUE('Bin Count Data'!U24))","v":0},{"$f":"IF('Bin Count Data'!V24=\"\",0,VALUE('Bin Count Data'!V24))","v":0},0,0,null,"",{"$f":"IF('Bin Count Data'!AA24=\"\",0,VALUE('Bin Count Data'!AA24))","v":0},{"$f":"IF('Bin Count Data'!AB24=\"\",0,VALUE('Bin Count Data'!AB24))","v":0},0,0,null,"",{"$f":"IF('Bin Count Data'!AG24=\"\",0,VALUE('Bin Count Data'!AG24))","v":0},{"$f":"IF('Bin Count Data'!AH24=\"\",0,VALUE('Bin Count Data'!AH24))","v":0},0,0,null,"",{"$f":"IF('Bin Count Data'!AM24=\"\",0,VALUE('Bin Count Data'!AM24))","v":0},{"$f":"IF('Bin Count Data'!AN24=\"\",0,VALUE('Bin Count Data'!AN24))","v":0},0,0,null,"",{"$f":"IF('Bin Count Data'!AS24=\"\",0,VALUE('Bin Count Data'!AS24))","v":0},{"$f":"IF('Bin Count Data'!AT24=\"\",0,VALUE('Bin Count Data'!AT24))","v":0},0,0,null,"",{"$f":"IF('Bin Count Data'!AY24=\"\",0,VALUE('Bin Count Data'!AY24))","v":0},{"$f":"IF('Bin Count Data'!AZ24=\"\",0,VALUE('Bin Count Data'!AZ24))","v":0},0,0,null,"",{"$f":"IF('Bin Count Data'!BE24=\"\",0,VALUE('Bin Count Data'!BE24))","v":0},{"$f":"IF('Bin Count Data'!BF24=\"\",0,VALUE('Bin Count Data'!BF24))","v":0},0,0,null,"",{"$f":"IF('Bin Count Data'!BK24=\"\",0,VALUE('Bin Count Data'!BK24))","v":0},{"$f":"IF('Bin Count Data'!BL24=\"\",0,VALUE('Bin Count Data'!BL24))","v":0},0,0,null,"",{"$f":"IF('Bin Count Data'!BQ24=\"\",0,VALUE('Bin Count Data'!BQ24))","v":0},{"$f":"IF('Bin Count Data'!BR24=\"\",0,VALUE('Bin Count Data'!BR24))","v":0},0,0,null,"",{"$f":"IF('Bin Count Data'!BW24=\"\",0,VALUE('Bin Count Data'!BW24))","v":0},{"$f":"IF('Bin Count Data'!BX24=\"\",0,VALUE('Bin Count Data'!BX24))","v":0},0,0,null,"",{"$f":"IF('Bin Count Data'!CC24=\"\",0,VALUE('Bin Count Data'!CC24))","v":0},{"$f":"IF('Bin Count Data'!CD24=\"\",0,VALUE('Bin Count Data'!CD24))","v":0},0,0,null,"",{"$f":"IF('Bin Count Data'!CI24=\"\",0,VALUE('Bin Count Data'!CI24))","v":0},{"$f":"IF('Bin Count Data'!CJ24=\"\",0,VALUE('Bin Count Data'!CJ24))","v":0},0,0,null,"",{"$f":"IF('Bin Count Data'!CO24=\"\",0,VALUE('Bin Count Data'!CO24))","v":0},{"$f":"IF('Bin Count Data'!CP24=\"\",0,VALUE('Bin Count Data'!CP24))","v":0},0,0,null,"",{"$f":"IF('Bin Count Data'!CU24=\"\",0,VALUE('Bin Count Data'!CU24))","v":0},{"$f":"IF('Bin Count Data'!CV24=\"\",0,VALUE('Bin Count Data'!CV24))","v":0},0,0,null,"",{"$f":"IF('Bin Count Data'!DA24=\"\",0,VALUE('Bin Count Data'!DA24))","v":0},{"$f":"IF('Bin Count Data'!DB24=\"\",0,VALUE('Bin Count Data'!DB24))","v":0},0,0,null,"",{"$f":"IF('Bin Count Data'!DG24=\"\",0,VALUE('Bin Count Data'!DG24))","v":0},{"$f":"IF('Bin Count Data'!DH24=\"\",0,VALUE('Bin Count Data'!DH24))","v":0},0,0,null,"",{"$f":"IF('Bin Count Data'!DM24=\"\",0,VALUE('Bin Count Data'!DM24))","v":0},{"$f":"IF('Bin Count Data'!DN24=\"\",0,VALUE('Bin Count Data'!DN24))","v":0},0,0]
[null,"",{"$f":"IF('Bin Count Data'!C25=\"\",0,VALUE('Bin Count Data'!C25))","v":0},{"$f":"IF('Bin Count Data'!D25=\"\",0,VALUE('Bin Count Data'!D25))","v":0},0,0,null,"",{"$f":"IF('Bin Count Data'!I25=\"\",0,VALUE('Bin Count Data'!I25))","v":0},{"$f":"IF('Bin Count Data'!J25=\"\",0,VALUE('Bin Count Data'!J25))","v":0},0,0,null,"",{"$f":"IF('Bin Count Data'!O25=\"\",0,VALUE('Bin Count Data'!O25))","v":0},{"$f":"IF('Bin Count Data'!P25=\"\",0,VALUE('Bin Count Data'!P25))","v":0},0,0,null,"",{"$f":"IF('Bin Count Data'!U25=\"\",0,VALUE('Bin Count Data'!U25))","v":0},{"$f":"IF('Bin Count Data'!V25=\"\",0,VALUE('Bin Count Data'!V25))","v":0},0,0,null,"",{"$f":"IF('Bin Count Data'!AA25=\"\",0,VALUE('Bin Count Data'!AA25))","v":0},{"$f":"IF('Bin Count Data'!AB25=\"\",0,VALUE('Bin Count Data'!AB25))","v":0},0,0,null,"",{"$f":"IF('Bin Count Data'!AG25=\"\",0,VALUE('Bin Count Data'!AG25))","v":0},{"$f":"IF('Bin Count Data'!AH25=\"\",0,VALUE('Bin Count Data'!AH25))","v":0},0,0,null,"",{"$f":"IF('Bin Count Data'!AM25=\"\",0,VALUE('Bin Count Data'!AM25))","v":0},{"$f":"IF('Bin Count Data'!AN25=\"\",0,VALUE('Bin Count Data'!AN25))","v":0},0,0,null,"",{"$f":"IF('Bin Count Data'!AS25=\"\",0,VALUE('Bin Count Data'!AS25))","v":0},{"$f":"IF('Bin Count Data'!AT25=\"\",0,VALUE('Bin Count Data'!AT25))","v":0},0,0,null,"",{"$f":"IF('Bin Count Data'!AY25=\"\",0,VALUE('Bin Count Data'!AY25))","v":0},{"$f":"IF('Bin Count Data'!AZ25=\"\",0,VALUE('Bin Count Data'!AZ25))","v":0},0,0,null,"",{"$f":"IF('Bin Count Data'!BE25=\"\",0,VALUE('Bin Count Data'!BE25))","v":0},{"$f":"IF('Bin Count Data'!BF25=\"\",0,VALUE('Bin Count Data'!BF25))","v":0},0,0,null,"",{"$f":"IF('Bin Count Data'!BK25=\"\",0,VALUE('Bin Count Data'!BK25))","v":0},{"$f":"IF('Bin Count Data'!BL25=\"\",0,VALUE('Bin Count Data'!BL25))","v":0},0,0,null,"",{"$f":"IF('Bin Count Data'!BQ25=\"\",0,VALUE('Bin Count Data'!BQ25))","v":0},{"$f":"IF('Bin Count Data'!BR25=\"\",0,VALUE('Bin Count Data'!BR25))","v":0},0,0,null,"",{"$f":"IF('Bin Count Data'!BW25=\"\",0,VALUE('Bin Count Data'!BW25))","v":0},{"$f":"IF('Bin Count Data'!BX25=\"\",0,VALUE('Bin Count Data'!BX25))","v":0},0,0,null,"",{"$f":"IF('Bin Count Data'!CC25=\"\",0,VALUE('Bin Count Data'!CC25))","v":0},{"$f":"IF('Bin Count Data'!CD25=\"\",0,VALUE('Bin Count Data'!CD25))","v":0},0,0,null,"",{"$f":"IF('Bin Count Data'!CI25=\"\",0,VALUE('Bin Count Data'!CI25))","v":0},{"$f":"IF('Bin Count Data'!CJ25=\"\",0,VALUE('Bin Count Data'!CJ25))","v":0},0,0,null,"",{"$f":"IF('Bin Count Data'!CO25=\"\",0,VALUE('Bin Count Data'!CO25))","v":0},{"$f":"IF('Bin Count Data'!CP25=\"\",0,VALUE('Bin Count Data'!CP25))","v":0},0,0,null,"",{"$f":"IF('Bin Count Data'!CU25=\"\",0,VALUE('Bin Count Data'!CU25))","v":0},{"$f":"IF('Bin Count Data'!CV25=\"\",0,VALUE('Bin Count Data'!CV25))","v":0},0,0,null,"",{"$f":"IF('Bin Count Data'!DA25=\"\",0,VALUE('Bin Count Data'!DA25))","v":0},{"$f":"IF('Bin Count Data'!DB25=\"\",0,VALUE('Bin Count Data'!DB25))","v":0},0,0,null,"",{"$f":"IF('Bin Count Data'!DG25=\"\",0,VALUE('Bin Count Data'!DG25))","v":0},{"$f":"IF('Bin Count Data'!DH25=\"\",0,VALUE('Bin Count Data'!DH25))","v":0},0,0,null,"",{"$f":"IF('Bin Count Data'!DM25=\"\",0,VALUE('Bin Count Data'!DM25))","v":0},{"$f":"IF('Bin Count Data'!DN25=\"\",0,VALUE('Bin Count Data'!DN25))","v":0},0,0]
[null,"",{"$f":"IF('Bin Count Data'!C26=\"\",0,VALUE('Bin Count Data'!C26))","v":0},{"$f":"IF('Bin Count Data'!D26=\"\",0,VALUE('Bin Count Data'!D26))","v":0},0,0,null,"",{"$f":"IF('Bin Count Data'!I26=\"\",0,VALUE('Bin Count Data'!I26))","v":0},{"$f":"IF('Bin Count Data'!J26=\"\",0,VALUE('Bin Count Data'!J26))","v":0},0,0,null,"",{"$f":"IF('Bin Count Data'!O26=\"\",0,VALUE('Bin Count Data'!O26))","v":0},{"$f":"IF('Bin Count Data'!P26=\"\",0,VALUE('Bin Count Data'!P26))","v":0},0,0,null,"",{"$f":"IF('Bin Count Data'!U26=\"\",0,VALUE('Bin Count Data'!U26))","v":0},{"$f":"IF('Bin Count Data'!V26=\"\",0,VALUE('Bin Count Data'!V26))","v":0},0,0,null,"",{"$f":"IF('Bin Count Data'!AA26=\"\",0,VALUE('Bin Count Data'!AA26))","v":0},{"$f":"IF('Bin Count Data'!AB26=\"\",0,VALUE('Bin Count Data'!AB26))","v":0},0,0,null,"",{"$f":"IF('Bin Count Data'!AG26=\"\",0,VALUE('Bin Count Data'!AG26))","v":0},{"$f":"IF('Bin Count Data'!AH26=\"\",0,VALUE('Bin Count Data'!AH26))","v":0},0,0,null,"",{"$f":"IF('Bin Count Data'!AM26=\"\",0,VALUE('Bin Count Data'!AM26))","v":0},{"$f":"IF('Bin Count Data'!AN26=\"\",0,VALUE('Bin Count Data'!AN26))","v":0},0,0,null,"",{"$f":"IF('Bin Count Data'!AS26=\"\",0,VALUE('Bin Count Data'!AS26))","v":0},{"$f":"IF('Bin Count Data'!AT26=\"\",0,VALUE('Bin Count Data'!AT26))","v":0},0,0,null,"",{"$f":"IF('Bin Count Data'!AY26=\"\",0,VALUE('Bin Count Data'!AY26))","v":0},{"$f":"IF('Bin Count Data'!AZ26=\"\",0,VALUE('Bin Count Data'!AZ26))","v":0},0,0,null,"",{"$f":"IF('Bin Count Data'!BE26=\"\",0,VALUE('Bin Count Data'!BE26))","v":0},{"$f":"IF('Bin Count Data'!BF26=\"\",0,VALUE('Bin Count Data'!BF26))","v":0},0,0,null,"",{"$f":"IF('Bin Count Data'!BK26=\"\",0,VALUE('Bin Count Data'!BK26))","v":0},{"$f":"IF('Bin Count Data'!BL26=\"\",0,VALUE('Bin Count Data'!BL26))","v":0},0,0,null,"",{"$f":"IF('Bin Count Data'!BQ26=\"\",0,VALUE('Bin Count Data'!BQ26))","v":0},{"$f":"IF('Bin Count Data'!BR26=\"\",0,VALUE('Bin Count Data'!BR26))","v":0},0,0,null,"",{"$f":"IF('Bin Count Data'!BW26=\"\",0,VALUE('Bin Count Data'!BW26))","v":0},{"$f":"IF('Bin Count Data'!BX26=\"\",0,VALUE('Bin Count Data'!BX26))","v":0},0,0,null,"",{"$f":"IF('Bin Count Data'!CC26=\"\",0,VALUE('Bin Count Data'!CC26))","v":0},{"$f":"IF('Bin Count Data'!CD26=\"\",0,VALUE('Bin Count Data'!CD26))","v":0},0,0,null,"",{"$f":"IF('Bin Count Data'!CI26=\"\",0,VALUE('Bin Count Data'!CI26))","v":0},{"$f":"IF('Bin Count Data'!CJ26=\"\",0,VALUE('Bin Count Data'!CJ26))","v":0},0,0,null,"",{"$f":"IF('Bin Count Data'!CO26=\"\",0,VALUE('Bin Count Data'!CO26))","v":0},{"$f":"IF('Bin Count Data'!CP26=\"\",0,VALUE('Bin Count Data'!CP26))","v":0},0,0,null,"",{"$f":"IF('Bin Count Data'!CU26=\"\",0,VALUE('Bin Count Data'!CU26))","v":0},{"$f":"IF('Bin Count Data'!CV26=\"\",0,VALUE('Bin Count Data'!CV26))","v":0},0,0,null,"",{"$f":"IF('Bin Count Data'!DA26=\"\",0,VALUE('Bin Count Data'!DA26))","v":0},{"$f":"IF('Bin Count Data'!DB26=\"\",0,VALUE('Bin Count Data'!DB26))","v":0},0,0,null,"",{"$f":"IF('Bin Count Data'!DG26=\"\",0,VALUE('Bin Count Data'!DG26))","v":0},{"$f":"IF('Bin Count Data'!DH26=\"\",0,VALUE('Bin Count Data'!DH26))","v":0},0,0,null,"",{"$f":"IF('Bin Count Data'!DM26=\"\",0,VALUE('Bin Count Data'!DM26))","v":0},{"$f":"IF('Bin Count Data'!DN26=\"\",0,VALUE('Bin Count Data'!DN26))","v":0},0,0]
[null,"",{"$f":"IF('Bin Count Data'!C27=\"\",0,VALUE('Bin Count Data'!C27))","v":0},{"$f":"IF('Bin Count Data'!D27=\"\",0,VALUE('Bin Count Data'!D27))","v":0},0,0,null,"",{"$f":"IF('Bin Count Data'!I27=\"\",0,VALUE('Bin Count Data'!I27))","v":0},{"$f":"IF('Bin Count Data'!J27=\"\",0,VALUE('Bin Count Data'!J27))","v":0},0,0,null,"",{"$f":"IF('Bin Count Data'!O27=\"\",0,VALUE('Bin Count Data'!O27))","v":0},{"$f":"IF('Bin Count Data'!P27=\"\",0,VALUE('Bin Count Data'!P27))","v":0},0,0,null,"",{"$f":"IF('Bin Count Data'!U27=\"\",0,VALUE('Bin Count Data'!U27))","v":0},{"$f":"IF('Bin Count Data'!V27=\"\",0,VALUE('Bin Count Data'!V27))","v":0},0,0,null,"",{"$f":"IF('Bin Count Data'!AA27=\"\",0,VALUE('Bin Count Data'!AA27))","v":0},{"$f":"IF('Bin Count Data'!AB27=\"\",0,VALUE('Bin Count Data'!AB27))","v":0},0,0,null,"",{"$f":"IF('Bin Count Data'!AG27=\"\",0,VALUE('Bin Count Data'!AG27))","v":0},{"$f":"IF('Bin Count Data'!AH27=\"\",0,VALUE('Bin Count Data'!AH27))","v":0},0,0,null,"",{"$f":"IF('Bin Count Data'!AM27=\"\",0,VALUE('Bin Count Data'!AM27))","v":0},{"$f":"IF('Bin Count Data'!AN27=\"\",0,VALUE('Bin Count Data'!AN27))","v":0},0,0,null,"",{"$f":"IF('Bin Count Data'!AS27=\"\",0,VALUE('Bin Count Data'!AS27))","v":0},{"$f":"IF('Bin Count Data'!AT27=\"\",0,VALUE('Bin Count Data'!AT27))","v":0},0,0,null,"",{"$f":"IF('Bin Count Data'!AY27=\"\",0,VALUE('Bin Count Data'!AY27))","v":0},{"$f":"IF('Bin Count Data'!AZ27=\"\",0,VALUE('Bin Count Data'!AZ27))","v":0},0,0,null,"",{"$f":"IF('Bin Count Data'!BE27=\"\",0,VALUE('Bin Count Data'!BE27))","v":0},{"$f":"IF('Bin Count Data'!BF27=\"\",0,VALUE('Bin Count Data'!BF27))","v":0},0,0,null,"",{"$f":"IF('Bin Count Data'!BK27=\"\",0,VALUE('Bin Count Data'!BK27))","v":0},{"$f":"IF('Bin Count Data'!BL27=\"\",0,VALUE('Bin Count Data'!BL27))","v":0},0,0,null,"",{"$f":"IF('Bin Count Data'!BQ27=\"\",0,VALUE('Bin Count Data'!BQ27))","v":0},{"$f":"IF('Bin Count Data'!BR27=\"\",0,VALUE('Bin Count Data'!BR27))","v":0},0,0,null,"",{"$f":"IF('Bin Count Data'!BW27=\"\",0,VALUE('Bin Count Data'!BW27))","v":0},{"$f":"IF('Bin Count Data'!BX27=\"\",0,VALUE('Bin Count Data'!BX27))","v":0},0,0,null,"",{"$f":"IF('Bin Count Data'!CC27=\"\",0,VALUE('Bin Count Data'!CC27))","v":0},{"$f":"IF('Bin Count Data'!CD27=\"\",0,VALUE('Bin Count Data'!CD27))","v":0},0,0,null,"",{"$f":"IF('Bin Count Data'!CI27=\"\",0,VALUE('Bin Count Data'!CI27))","v":0},{"$f":"IF('Bin Count Data'!CJ27=\"\",0,VALUE('Bin Count Data'!CJ27))","v":0},0,0,null,"",{"$f":"IF('Bin Count Data'!CO27=\"\",0,VALUE('Bin Count Data'!CO27))","v":0},{"$f":"IF('Bin Count Data'!CP27=\"\",0,VALUE('Bin Count Data'!CP27))","v":0},0,0,null,"",{"$f":"IF('Bin Count Data'!CU27=\"\",0,VALUE('Bin Count Data'!CU27))","v":0},{"$f":"IF('Bin Count Data'!CV27=\"\",0,VALUE('Bin Count Data'!CV27))","v":0},0,0,null,"",{"$f":"IF('Bin Count Data'!DA27=\"\",0,VALUE('Bin Count Data'!DA27))","v":0},{"$f":"IF('Bin Count Data'!DB27=\"\",0,VALUE('Bin Count Data'!DB27))","v":0},0,0,null,"",{"$f":"IF('Bin Count Data'!DG27=\"\",0,VALUE('Bin Count Data'!DG27))","v":0},{"$f":"IF('Bin Count Data'!DH27=\"\",0,VALUE('Bin Count Data'!DH27))","v":0},0,0,null,"",{"$f":"IF('Bin Count Data'!DM27=\"\",0,VALUE('Bin Count Data'!DM27))","v":0},{"$f":"IF('Bin Count Data'!DN27=\"\",0,VALUE('Bin Count Data'!DN27))","v":0},0,0]
[null,"",{"$f":"IF('Bin Count Data'!C28=\"\",0,VALUE('Bin Count Data'!C28))","v":0},{"$f":"IF('Bin Count Data'!D28=\"\",0,VALUE('Bin Count Data'!D28))","v":0},0,0,null,"",{"$f":"IF('Bin Count Data'!I28=\"\",0,VALUE('Bin Count Data'!I28))","v":0},{"$f":"IF('Bin Count Data'!J28=\"\",0,VALUE('Bin Count Data'!J28))","v":0},0,0,null,"",{"$f":"IF('Bin Count Data'!O28=\"\",0,VALUE('Bin Count Data'!O28))","v":0},{"$f":"IF('Bin Count Data'!P28=\"\",0,VALUE('Bin Count Data'!P28))","v":0},0,0,null,"",{"$f":"IF('Bin Count Data'!U28=\"\",0,VALUE('Bin Count Data'!U28))","v":0},{"$f":"IF('Bin Count Data'!V28=\"\",0,VALUE('Bin Count Data'!V28))","v":0},0,0,null,"",{"$f":"IF('Bin Count Data'!AA28=\"\",0,VALUE('Bin Count Data'!AA28))","v":0},{"$f":"IF('Bin Count Data'!AB28=\"\",0,VALUE('Bin Count Data'!AB28))","v":0},0,0,null,"",{"$f":"IF('Bin Count Data'!AG28=\"\",0,VALUE('Bin Count Data'!AG28))","v":0},{"$f":"IF('Bin Count Data'!AH28=\"\",0,VALUE('Bin Count Data'!AH28))","v":0},0,0,null,"",{"$f":"IF('Bin Count Data'!AM28=\"\",0,VALUE('Bin Count Data'!AM28))","v":0},{"$f":"IF('Bin Count Data'!AN28=\"\",0,VALUE('Bin Count Data'!AN28))","v":0},0,0,null,"",{"$f":"IF('Bin Count Data'!AS28=\"\",0,VALUE('Bin Count Data'!AS28))","v":0},{"$f":"IF('Bin Count Data'!AT28=\"\",0,VALUE('Bin Count Data'!AT28))","v":0},0,0,null,"",{"$f":"IF('Bin Count Data'!AY28=\"\",0,VALUE('Bin Count Data'!AY28))","v":0},{"$f":"IF('Bin Count Data'!AZ28=\"\",0,VALUE('Bin Count Data'!AZ28))","v":0},0,0,null,"",{"$f":"IF('Bin Count Data'!BE28=\"\",0,VALUE('Bin Count Data'!BE28))","v":0},{"$f":"IF('Bin Count Data'!BF28=\"\",0,VALUE('Bin Count Data'!BF28))","v":0},0,0,null,"",{"$f":"IF('Bin Count Data'!BK28=\"\",0,VALUE('Bin Count Data'!BK28))","v":0},{"$f":"IF('Bin Count Data'!BL28=\"\",0,VALUE('Bin Count Data'!BL28))","v":0},0,0,null,"",{"$f":"IF('Bin Count Data'!BQ28=\"\",0,VALUE('Bin Count Data'!BQ28))","v":0},{"$f":"IF('Bin Count Data'!BR28=\"\",0,VALUE('Bin Count Data'!BR28))","v":0},0,0,null,"",{"$f":"IF('Bin Count Data'!BW28=\"\",0,VALUE('Bin Count Data'!BW28))","v":0},{"$f":"IF('Bin Count Data'!BX28=\"\",0,VALUE('Bin Count Data'!BX28))","v":0},0,0,null,"",{"$f":"IF('Bin Count Data'!CC28=\"\",0,VALUE('Bin Count Data'!CC28))","v":0},{"$f":"IF('Bin Count Data'!CD28=\"\",0,VALUE('Bin Count Data'!CD28))","v":0},0,0,null,"",{"$f":"IF('Bin Count Data'!CI28=\"\",0,VALUE('Bin Count Data'!CI28))","v":0},{"$f":"IF('Bin Count Data'!CJ28=\"\",0,VALUE('Bin Count Data'!CJ28))","v":0},0,0,null,"",{"$f":"IF('Bin Count Data'!CO28=\"\",0,VALUE('Bin Count Data'!CO28))","v":0},{"$f":"IF('Bin Count Data'!CP28=\"\",0,VALUE('Bin Count Data'!CP28))","v":0},0,0,null,"",{"$f":"IF('Bin Count Data'!CU28=\"\",0,VALUE('Bin Count Data'!CU28))","v":0},{"$f":"IF('Bin Count Data'!CV28=\"\",0,VALUE('Bin Count Data'!CV28))","v":0},0,0,null,"",{"$f":"IF('Bin Count Data'!DA28=\"\",0,VALUE('Bin Count Data'!DA28))","v":0},{"$f":"IF('Bin Count Data'!DB28=\"\",0,VALUE('Bin Count Data'!DB28))","v":0},0,0,null,"",{"$f":"IF('Bin Count Data'!DG28=\"\",0,VALUE('Bin Count Data'!DG28))","v":0},{"$f":"IF('Bin Count Data'!DH28=\"\",0,VALUE('Bin Count Data'!DH28))","v":0},0,0,null,"",{"$f":"IF('Bin Count Data'!DM28=\"\",0,VALUE('Bin Count Data'!DM28))","v":0},{"$f":"IF('Bin Count Data'!DN28=\"\",0,VALUE('Bin Count Data'!DN28))","v":0},0,0]
[null,"",{"$f":"IF('Bin Count Data'!C29=\"\",0,VALUE('Bin Count Data'!C29))","v":0},{"$f":"IF('Bin Count Data'!D29=\"\",0,VALUE('Bin Count Data'!D29))","v":0},0,0,null,"",{"$f":"IF('Bin Count Data'!I29=\"\",0,VALUE('Bin Count Data'!I29))","v":0},{"$f":"IF('Bin Count Data'!J29=\"\",0,VALUE('Bin Count Data'!J29))","v":0},0,0,null,"",{"$f":"IF('Bin Count Data'!O29=\"\",0,VALUE('Bin Count Data'!O29))","v":0},{"$f":"IF('Bin Count Data'!P29=\"\",0,VALUE('Bin Count Data'!P29))","v":0},0,0,null,"",{"$f":"IF('Bin Count Data'!U29=\"\",0,VALUE('Bin Count Data'!U29))","v":0},{"$f":"IF('Bin Count Data'!V29=\"\",0,VALUE('Bin Count Data'!V29))","v":0},0,0,null,"",{"$f":"IF('Bin Count Data'!AA29=\"\",0,VALUE('Bin Count Data'!AA29))","v":0},{"$f":"IF('Bin Count Data'!AB29=\"\",0,VALUE('Bin Count Data'!AB29))","v":0},0,0,null,"",{"$f":"IF('Bin Count Data'!AG29=\"\",0,VALUE('Bin Count Data'!AG29))","v":0},{"$f":"IF('Bin Count Data'!AH29=\"\",0,VALUE('Bin Count Data'!AH29))","v":0},0,0,null,"",{"$f":"IF('Bin Count Data'!AM29=\"\",0,VALUE('Bin Count Data'!AM29))","v":0},{"$f":"IF('Bin Count Data'!AN29=\"\",0,VALUE('Bin Count Data'!AN29))","v":0},0,0,null,"",{"$f":"IF('Bin Count Data'!AS29=\"\",0,VALUE('Bin Count Data'!AS29))","v":0},{"$f":"IF('Bin Count Data'!AT29=\"\",0,VALUE('Bin Count Data'!AT29))","v":0},0,0,null,"",{"$f":"IF('Bin Count Data'!AY29=\"\",0,VALUE('Bin Count Data'!AY29))","v":0},{"$f":"IF('Bin Count Data'!AZ29=\"\",0,VALUE('Bin Count Data'!AZ29))","v":0},0,0,null,"",{"$f":"IF('Bin Count Data'!BE29=\"\",0,VALUE('Bin Count Data'!BE29))","v":0},{"$f":"IF('Bin Count Data'!BF29=\"\",0,VALUE('Bin Count Data'!BF29))","v":0},0,0,null,"",{"$f":"IF('Bin Count Data'!BK29=\"\",0,VALUE('Bin Count Data'!BK29))","v":0},{"$f":"IF('Bin Count Data'!BL29=\"\",0,VALUE('Bin Count Data'!BL29))","v":0},0,0,null,"",{"$f":"IF('Bin Count Data'!BQ29=\"\",0,VALUE('Bin Count Data'!BQ29))","v":0},{"$f":"IF('Bin Count Data'!BR29=\"\",0,VALUE('Bin Count Data'!BR29))","v":0},0,0,null,"",{"$f":"IF('Bin Count Data'!BW29=\"\",0,VALUE('Bin Count Data'!BW29))","v":0},{"$f":"IF('Bin Count Data'!BX29=\"\",0,VALUE('Bin Count Data'!BX29))","v":0},0,0,null,"",{"$f":"IF('Bin Count Data'!CC29=\"\",0,VALUE('Bin Count Data'!CC29))","v":0},{"$f":"IF('Bin Count Data'!CD29=\"\",0,VALUE('Bin Count Data'!CD29))","v":0},0,0,null,"",{"$f":"IF('Bin Count Data'!CI29=\"\",0,VALUE('Bin Count Data'!CI29))","v":0},{"$f":"IF('Bin Count Data'!CJ29=\"\",0,VALUE('Bin Count Data'!CJ29))","v":0},0,0,null,"",{"$f":"IF('Bin Count Data'!CO29=\"\",0,VALUE('Bin Count Data'!CO29))","v":0},{"$f":"IF('Bin Count Data'!CP29=\"\",0,VALUE('Bin Count Data'!CP29))","v":0},0,0,null,"",{"$f":"IF('Bin Count Data'!CU29=\"\",0,VALUE('Bin Count Data'!CU29))","v":0},{"$f":"IF('Bin Count Data'!CV29=\"\",0,VALUE('Bin Count Data'!CV29))","v":0},0,0,null,"",{"$f":"IF('Bin Count Data'!DA29=\"\",0,VALUE('Bin Count Data'!DA29))","v":0},{"$f":"IF('Bin Count Data'!DB29=\"\",0,VALUE('Bin Count Data'!DB29))","v":0},0,0,null,"",{"$f":"IF('Bin Count Data'!DG29=\"\",0,VALUE('Bin Count Data'!DG29))","v":0},{"$f":"IF('Bin Count Data'!DH29=\"\",0,VALUE('Bin Count Data'!DH29))","v":0},0,0,null,"",{"$f":"IF('Bin Count Data'!DM29=\"\",0,VALUE('Bin Count Data'!DM29))","v":0},{"$f":"IF('Bin Count Data'!DN29=\"\",0,VALUE('Bin Count Data'!DN29))","v":0},0,0]
[null,"",{"$f":"IF('Bin Count Data'!C30=\"\",0,VALUE('Bin Count Data'!C30))","v":0},{"$f":"IF('Bin Count Data'!D30=\"\",0,VALUE('Bin Count Data'!D30))","v":0},0,0,null,"",{"$f":"IF('Bin Count Data'!I30=\"\",0,VALUE('Bin Count Data'!I30))","v":0},{"$f":"IF('Bin Count Data'!J30=\"\",0,VALUE('Bin Count Data'!J30))","v":0},0,0,null,"",{"$f":"IF('Bin Count Data'!O30=\"\",0,VALUE('Bin Count Data'!O30))","v":0},{"$f":"IF('Bin Count Data'!P30=\"\",0,VALUE('Bin Count Data'!P30))","v":0},0,0,null,"",{"$f":"IF('Bin Count Data'!U30=\"\",0,VALUE('Bin Count Data'!U30))","v":0},{"$f":"IF('Bin Count Data'!V30=\"\",0,VALUE('Bin Count Data'!V30))","v":0},0,0,null,"",{"$f":"IF('Bin Count Data'!AA30=\"\",0,VALUE('Bin Count Data'!AA30))","v":0},{"$f":"IF('Bin Count Data'!AB30=\"\",0,VALUE('Bin Count Data'!AB30))","v":0},0,0,null,"",{"$f":"IF('Bin Count Data'!AG30=\"\",0,VALUE('Bin Count Data'!AG30))","v":0},{"$f":"IF('Bin Count Data'!AH30=\"\",0,VALUE('Bin Count Data'!AH30))","v":0},0,0,null,"",{"$f":"IF('Bin Count Data'!AM30=\"\",0,VALUE('Bin Count Data'!AM30))","v":0},{"$f":"IF('Bin Count Data'!AN30=\"\",0,VALUE('Bin Count Data'!AN30))","v":0},0,0,null,"",{"$f":"IF('Bin Count Data'!AS30=\"\",0,VALUE('Bin Count Data'!AS30))","v":0},{"$f":"IF('Bin Count Data'!AT30=\"\",0,VALUE('Bin Count Data'!AT30))","v":0},0,0,null,"",{"$f":"IF('Bin Count Data'!AY30=\"\",0,VALUE('Bin Count Data'!AY30))","v":0},{"$f":"IF('Bin Count Data'!AZ30=\"\",0,VALUE('Bin Count Data'!AZ30))","v":0},0,0,null,"",{"$f":"IF('Bin Count Data'!BE30=\"\",0,VALUE('Bin Count Data'!BE30))","v":0},{"$f":"IF('Bin Count Data'!BF30=\"\",0,VALUE('Bin Count Data'!BF30))","v":0},0,0,null,"",{"$f":"IF('Bin Count Data'!BK30=\"\",0,VALUE('Bin Count Data'!BK30))","v":0},{"$f":"IF('Bin Count Data'!BL30=\"\",0,VALUE('Bin Count Data'!BL30))","v":0},0,0,null,"",{"$f":"IF('Bin Count Data'!BQ30=\"\",0,VALUE('Bin Count Data'!BQ30))","v":0},{"$f":"IF('Bin Count Data'!BR30=\"\",0,VALUE('Bin Count Data'!BR30))","v":0},0,0,null,"",{"$f":"IF('Bin Count Data'!BW30=\"\",0,VALUE('Bin Count Data'!BW30))","v":0},{"$f":"IF('Bin Count Data'!BX30=\"\",0,VALUE('Bin Count Data'!BX30))","v":0},0,0,null,"",{"$f":"IF('Bin Count Data'!CC30=\"\",0,VALUE('Bin Count Data'!CC30))","v":0},{"$f":"IF('Bin Count Data'!CD30=\"\",0,VALUE('Bin Count Data'!CD30))","v":0},0,0,null,"",{"$f":"IF('Bin Count Data'!CI30=\"\",0,VALUE('Bin Count Data'!CI30))","v":0},{"$f":"IF('Bin Count Data'!CJ30=\"\",0,VALUE('Bin Count Data'!CJ30))","v":0},0,0,null,"",{"$f":"IF('Bin Count Data'!CO30=\"\",0,VALUE('Bin Count Data'!CO30))","v":0},{"$f":"IF('Bin Count Data'!CP30=\"\",0,VALUE('Bin Count Data'!CP30))","v":0},0,0,null,"",{"$f":"IF('Bin Count Data'!CU30=\"\",0,VALUE('Bin Count Data'!CU30))","v":0},{"$f":"IF('Bin Count Data'!CV30=\"\",0,VALUE('Bin Count Data'!CV30))","v":0},0,0,null,"",{"$f":"IF('Bin Count Data'!DA30=\"\",0,VALUE('Bin Count Data'!DA30))","v":0},{"$f":"IF('Bin Count Data'!DB30=\"\",0,VALUE('Bin Count Data'!DB30))","v":0},0,0,null,"",{"$f":"IF('Bin Count Data'!DG30=\"\",0,VALUE('Bin Count Data'!DG30))","v":0},{"$f":"IF('Bin Count Data'!DH30=\"\",0,VALUE('Bin Count Data'!DH30))","v":0},0,0,null,"",{"$f":"IF('Bin Count Data'!DM30=\"\",0,VALUE('Bin Count Data'!DM30))","v":0},{"$f":"IF('Bin Count Data'!DN30=\"\",0,VALUE('Bin Count Data'!DN30))","v":0},0,0]
[null,"",{"$f":"IF('Bin Count Data'!C31=\"\",0,VALUE('Bin Count Data'!C31))","v":0},{"$f":"IF('Bin Count Data'!D31=\"\",0,VALUE('Bin Count Data'!D31))","v":0},0,0,null,"",{"$f":"IF('Bin Count Data'!I31=\"\",0,VALUE('Bin Count Data'!I31))","v":0},{"$f":"IF('Bin Count Data'!J31=\"\",0,VALUE('Bin Count Data'!J31))","v":0},0,0,null,"",{"$f":"IF('Bin Count Data'!O31=\"\",0,VALUE('Bin Count Data'!O31))","v":0},{"$f":"IF('Bin Count Data'!P31=\"\",0,VALUE('Bin Count Data'!P31))","v":0},0,0,null,"",{"$f":"IF('Bin Count Data'!U31=\"\",0,VALUE('Bin Count Data'!U31))","v":0},{"$f":"IF('Bin Count Data'!V31=\"\",0,VALUE('Bin Count Data'!V31))","v":0},0,0,null,"",{"$f":"IF('Bin Count Data'!AA31=\"\",0,VALUE('Bin Count Data'!AA31))","v":0},{"$f":"IF('Bin Count Data'!AB31=\"\",0,VALUE('Bin Count Data'!AB31))","v":0},0,0,null,"",{"$f":"IF('Bin Count Data'!AG31=\"\",0,VALUE('Bin Count Data'!AG31))","v":0},{"$f":"IF('Bin Count Data'!AH31=\"\",0,VALUE('Bin Count Data'!AH31))","v":0},0,0,null,"",{"$f":"IF('Bin Count Data'!AM31=\"\",0,VALUE('Bin Count Data'!AM31))","v":0},{"$f":"IF('Bin Count Data'!AN31=\"\",0,VALUE('Bin Count Data'!AN31))","v":0},0,0,null,"",{"$f":"IF('Bin Count Data'!AS31=\"\",0,VALUE('Bin Count Data'!AS31))","v":0},{"$f":"IF('Bin Count Data'!AT31=\"\",0,VALUE('Bin Count Data'!AT31))","v":0},0,0,null,"",{"$f":"IF('Bin Count Data'!AY31=\"\",0,VALUE('Bin Count Data'!AY31))","v":0},{"$f":"IF('Bin Count Data'!AZ31=\"\",0,VALUE('Bin Count Data'!AZ31))","v":0},0,0,null,"",{"$f":"IF('Bin Count Data'!BE31=\"\",0,VALUE('Bin Count Data'!BE31))","v":0},{"$f":"IF('Bin Count Data'!BF31=\"\",0,VALUE('Bin Count Data'!BF31))","v":0},0,0,null,"",{"$f":"IF('Bin Count Data'!BK31=\"\",0,VALUE('Bin Count Data'!BK31))","v":0},{"$f":"IF('Bin Count Data'!BL31=\"\",0,VALUE('Bin Count Data'!BL31))","v":0},0,0,null,"",{"$f":"IF('Bin Count Data'!BQ31=\"\",0,VALUE('Bin Count Data'!BQ31))","v":0},{"$f":"IF('Bin Count Data'!BR31=\"\",0,VALUE('Bin Count Data'!BR31))","v":0},0,0,null,"",{"$f":"IF('Bin Count Data'!BW31=\"\",0,VALUE('Bin Count Data'!BW31))","v":0},{"$f":"IF('Bin Count Data'!BX31=\"\",0,VALUE('Bin Count Data'!BX31))","v":0},0,0,null,"",{"$f":"IF('Bin Count Data'!CC31=\"\",0,VALUE('Bin Count Data'!CC31))","v":0},{"$f":"IF('Bin Count Data'!CD31=\"\",0,VALUE('Bin Count Data'!CD31))","v":0},0,0,null,"",{"$f":"IF('Bin Count Data'!CI31=\"\",0,VALUE('Bin Count Data'!CI31))","v":0},{"$f":"IF('Bin Count Data'!CJ31=\"\",0,VALUE('Bin Count Data'!CJ31))","v":0},0,0,null,"",{"$f":"IF('Bin Count Data'!CO31=\"\",0,VALUE('Bin Count Data'!CO31))","v":0},{"$f":"IF('Bin Count Data'!CP31=\"\",0,VALUE('Bin Count Data'!CP31))","v":0},0,0,null,"",{"$f":"IF('Bin Count Data'!CU31=\"\",0,VALUE('Bin Count Data'!CU31))","v":0},{"$f":"IF('Bin Count Data'!CV31=\"\",0,VALUE('Bin Count Data'!CV31))","v":0},0,0,null,"",{"$f":"IF('Bin Count Data'!DA31=\"\",0,VALUE('Bin Count Data'!DA31))","v":0},{"$f":"IF('Bin Count Data'!DB31=\"\",0,VALUE('Bin Count Data'!DB31))","v":0},0,0,null,"",{"$f":"IF('Bin Count Data'!DG31=\"\",0,VALUE('Bin Count Data'!DG31))","v":0},{"$f":"IF('Bin Count Data'!DH31=\"\",0,VALUE('Bin Count Data'!DH31))","v":0},0,0,null,"",{"$f":"IF('Bin Count Data'!DM31=\"\",0,VALUE('Bin Count Data'!DM31))","v":0},{"$f":"IF('Bin Count Data'!DN31=\"\",0,VALUE('Bin Count Data'!DN31))","v":0},0,0]
[null,"",{"$f":"IF('Bin Count Data'!C32=\"\",0,VALUE('Bin Count Data'!C32))","v":0},{"$f":"IF('Bin Count Data'!D32=\"\",0,VALUE('Bin Count Data'!D32))","v":0},0,0,null,"",{"$f":"IF('Bin Count Data'!I32=\"\",0,VALUE('Bin Count Data'!I32))","v":0},{"$f":"IF('Bin Count Data'!J32=\"\",0,VALUE('Bin Count Data'!J32))","v":0},0,0,null,"",{"$f":"IF('Bin Count Data'!O32=\"\",0,VALUE('Bin Count Data'!O32))","v":0},{"$f":"IF('Bin Count Data'!P32=\"\",0,VALUE('Bin Count Data'!P32))","v":0},0,0,null,"",{"$f":"IF('Bin Count Data'!U32=\"\",0,VALUE('Bin Count Data'!U32))","v":0},{"$f":"IF('Bin Count Data'!V32=\"\",0,VALUE('Bin Count Data'!V32))","v":0},0,0,null,"",{"$f":"IF('Bin Count Data'!AA32=\"\",0,VALUE('Bin Count Data'!AA32))","v":0},{"$f":"IF('Bin Count Data'!AB32=\"\",0,VALUE('Bin Count Data'!AB32))","v":0},0,0,null,"",{"$f":"IF('Bin Count Data'!AG32=\"\",0,VALUE('Bin Count Data'!AG32))","v":0},{"$f":"IF('Bin Count Data'!AH32=\"\",0,VALUE('Bin Count Data'!AH32))","v":0},0,0,null,"",{"$f":"IF('Bin Count Data'!AM32=\"\",0,VALUE('Bin Count Data'!AM32))","v":0},{"$f":"IF('Bin Count Data'!AN32=\"\",0,VALUE('Bin Count Data'!AN32))","v":0},0,0,null,"",{"$f":"IF('Bin Count Data'!AS32=\"\",0,VALUE('Bin Count Data'!AS32))","v":0},{"$f":"IF('Bin Count Data'!AT32=\"\",0,VALUE('Bin Count Data'!AT32))","v":0},0,0,null,"",{"$f":"IF('Bin Count Data'!AY32=\"\",0,VALUE('Bin Count Data'!AY32))","v":0},{"$f":"IF('Bin Count Data'!AZ32=\"\",0,VALUE('Bin Count Data'!AZ32))","v":0},0,0,null,"",{"$f":"IF('Bin Count Data'!BE32=\"\",0,VALUE('Bin Count Data'!BE32))","v":0},{"$f":"IF('Bin Count Data'!BF32=\"\",0,VALUE('Bin Count Data'!BF32))","v":0},0,0,null,"",{"$f":"IF('Bin Count Data'!BK32=\"\",0,VALUE('Bin Count Data'!BK32))","v":0},{"$f":"IF('Bin Count Data'!BL32=\"\",0,VALUE('Bin Count Data'!BL32))","v":0},0,0,null,"",{"$f":"IF('Bin Count Data'!BQ32=\"\",0,VALUE('Bin Count Data'!BQ32))","v":0},{"$f":"IF('Bin Count Data'!BR32=\"\",0,VALUE('Bin Count Data'!BR32))","v":0},0,0,null,"",{"$f":"IF('Bin Count Data'!BW32=\"\",0,VALUE('Bin Count Data'!BW32))","v":0},{"$f":"IF('Bin Count Data'!BX32=\"\",0,VALUE('Bin Count Data'!BX32))","v":0},0,0,null,"",{"$f":"IF('Bin Count Data'!CC32=\"\",0,VALUE('Bin Count Data'!CC32))","v":0},{"$f":"IF('Bin Count Data'!CD32=\"\",0,VALUE('Bin Count Data'!CD32))","v":0},0,0,null,"",{"$f":"IF('Bin Count Data'!CI32=\"\",0,VALUE('Bin Count Data'!CI32))","v":0},{"$f":"IF('Bin Count Data'!CJ32=\"\",0,VALUE('Bin Count Data'!CJ32))","v":0},0,0,null,"",{"$f":"IF('Bin Count Data'!CO32=\"\",0,VALUE('Bin Count Data'!CO32))","v":0},{"$f":"IF('Bin Count Data'!CP32=\"\",0,VALUE('Bin Count Data'!CP32))","v":0},0,0,null,"",{"$f":"IF('Bin Count Data'!CU32=\"\",0,VALUE('Bin Count Data'!CU32))","v":0},{"$f":"IF('Bin Count Data'!CV32=\"\",0,VALUE('Bin Count Data'!CV32))","v":0},0,0,null,"",{"$f":"IF('Bin Count Data'!DA32=\"\",0,VALUE('Bin Count Data'!DA32))","v":0},{"$f":"IF('Bin Count Data'!DB32=\"\",0,VALUE('Bin Count Data'!DB32))","v":0},0,0,null,"",{"$f":"IF('Bin Count Data'!DG32=\"\",0,VALUE('Bin Count Data'!DG32))","v":0},{"$f":"IF('Bin Count Data'!DH32=\"\",0,VALUE('Bin Count Data'!DH32))","v":0},0,0,null,"",{"$f":"IF('Bin Count Data'!DM32=\"\",0,VALUE('Bin Count Data'!DM32))","v":0},{"$f":"IF('Bin Count Data'!DN32=\"\",0,VALUE('Bin Count Data'!DN32))","v":0},0,0]
[null,"",{"$f":"IF('Bin Count Data'!C33=\"\",0,VALUE('Bin Count Data'!C33))","v":0},{"$f":"IF('Bin Count Data'!D33=\"\",0,VALUE('Bin Count Data'!D33))","v":0},0,0,null,"",{"$f":"IF('Bin Count Data'!I33=\"\",0,VALUE('Bin Count Data'!I33))","v":0},{"$f":"IF('Bin Count Data'!J33=\"\",0,VALUE('Bin Count Data'!J33))","v":0},0,0,null,"",{"$f":"IF('Bin Count Data'!O33=\"\",0,VALUE('Bin Count Data'!O33))","v":0},{"$f":"IF('Bin Count Data'!P33=\"\",0,VALUE('Bin Count Data'!P33))","v":0},0,0,null,"",{"$f":"IF('Bin Count Data'!U33=\"\",0,VALUE('Bin Count Data'!U33))","v":0},{"$f":"IF('Bin Count Data'!V33=\"\",0,VALUE('Bin Count Data'!V33))","v":0},0,0,null,"",{"$f":"IF('Bin Count Data'!AA33=\"\",0,VALUE('Bin Count Data'!AA33))","v":0},{"$f":"IF('Bin Count Data'!AB33=\"\",0,VALUE('Bin Count Data'!AB33))","v":0},0,0,null,"",{"$f":"IF('Bin Count Data'!AG33=\"\",0,VALUE('Bin Count Data'!AG33))","v":0},{"$f":"IF('Bin Count Data'!AH33=\"\",0,VALUE('Bin Count Data'!AH33))","v":0},0,0,null,"",{"$f":"IF('Bin Count Data'!AM33=\"\",0,VALUE('Bin Count Data'!AM33))","v":0},{"$f":"IF('Bin Count Data'!AN33=\"\",0,VALUE('Bin Count Data'!AN33))","v":0},0,0,null,"",{"$f":"IF('Bin Count Data'!AS33=\"\",0,VALUE('Bin Count Data'!AS33))","v":0},{"$f":"IF('Bin Count Data'!AT33=\"\",0,VALUE('Bin Count Data'!AT33))","v":0},0,0,null,"",{"$f":"IF('Bin Count Data'!AY33=\"\",0,VALUE('Bin Count Data'!AY33))","v":0},{"$f":"IF('Bin Count Data'!AZ33=\"\",0,VALUE('Bin Count Data'!AZ33))","v":0},0,0,null,"",{"$f":"IF('Bin Count Data'!BE33=\"\",0,VALUE('Bin Count Data'!BE33))","v":0},{"$f":"IF('Bin Count Data'!BF33=\"\",0,VALUE('Bin Count Data'!BF33))","v":0},0,0,null,"",{"$f":"IF('Bin Count Data'!BK33=\"\",0,VALUE('Bin Count Data'!BK33))","v":0},{"$f":"IF('Bin Count Data'!BL33=\"\",0,VALUE('Bin Count Data'!BL33))","v":0},0,0,null,"",{"$f":"IF('Bin Count Data'!BQ33=\"\",0,VALUE('Bin Count Data'!BQ33))","v":0},{"$f":"IF('Bin Count Data'!BR33=\"\",0,VALUE('Bin Count Data'!BR33))","v":0},0,0,null,"",{"$f":"IF('Bin Count Data'!BW33=\"\",0,VALUE('Bin Count Data'!BW33))","v":0},{"$f":"IF('Bin Count Data'!BX33=\"\",0,VALUE('Bin Count Data'!BX33))","v":0},0,0,null,"",{"$f":"IF('Bin Count Data'!CC33=\"\",0,VALUE('Bin Count Data'!CC33))","v":0},{"$f":"IF('Bin Count Data'!CD33=\"\",0,VALUE('Bin Count Data'!CD33))","v":0},0,0,null,"",{"$f":"IF('Bin Count Data'!CI33=\"\",0,VALUE('Bin Count Data'!CI33))","v":0},{"$f":"IF('Bin Count Data'!CJ33=\"\",0,VALUE('Bin Count Data'!CJ33))","v":0},0,0,null,"",{"$f":"IF('Bin Count Data'!CO33=\"\",0,VALUE('Bin Count Data'!CO33))","v":0},{"$f":"IF('Bin Count Data'!CP33=\"\",0,VALUE('Bin Count Data'!CP33))","v":0},0,0,null,"",{"$f":"IF('Bin Count Data'!CU33=\"\",0,VALUE('Bin Count Data'!CU33))","v":0},{"$f":"IF('Bin Count Data'!CV33=\"\",0,VALUE('Bin Count Data'!CV33))","v":0},0,0,null,"",{"$f":"IF('Bin Count Data'!DA33=\"\",0,VALUE('Bin Count Data'!DA33))","v":0},{"$f":"IF('Bin Count Data'!DB33=\"\",0,VALUE('Bin Count Data'!DB33))","v":0},0,0,null,"",{"$f":"IF('Bin Count Data'!DG33=\"\",0,VALUE('Bin Count Data'!DG33))","v":0},{"$f":"IF('Bin Count Data'!DH33=\"\",0,VALUE('Bin Count Data'!DH33))","v":0},0,0,null,"",{"$f":"IF('Bin Count Data'!DM33=\"\",0,VALUE('Bin Count Data'!DM33))","v":0},{"$f":"IF('Bin Count Data'!DN33=\"\",0,VALUE('Bin Count Data'!DN33))","v":0},0,0]
[null,"",{"$f":"IF('Bin Count Data'!C34=\"\",0,VALUE('Bin Count Data'!C34))","v":0},{"$f":"IF('Bin Count Data'!D34=\"\",0,VALUE('Bin Count Data'!D34))","v":0},0,0,null,"",{"$f":"IF('Bin Count Data'!I34=\"\",0,VALUE('Bin Count Data'!I34))","v":0},{"$f":"IF('Bin Count Data'!J34=\"\",0,VALUE('Bin Count Data'!J34))","v":0},0,0,null,"",{"$f":"IF('Bin Count Data'!O34=\"\",0,VALUE('Bin Count Data'!O34))","v":0},{"$f":"IF('Bin Count Data'!P34=\"\",0,VALUE('Bin Count Data'!P34))","v":0},0,0,null,"",{"$f":"IF('Bin Count Data'!U34=\"\",0,VALUE('Bin Count Data'!U34))","v":0},{"$f":"IF('Bin Count Data'!V34=\"\",0,VALUE('Bin Count Data'!V34))","v":0},0,0,null,"",{"$f":"IF('Bin Count Data'!AA34=\"\",0,VALUE('Bin Count Data'!AA34))","v":0},{"$f":"IF('Bin Count Data'!AB34=\"\",0,VALUE('Bin Count Data'!AB34))","v":0},0,0,null,"",{"$f":"IF('Bin Count Data'!AG34=\"\",0,VALUE('Bin Count Data'!AG34))","v":0},{"$f":"IF('Bin Count Data'!AH34=\"\",0,VALUE('Bin Count Data'!AH34))","v":0},0,0,null,"",{"$f":"IF('Bin Count Data'!AM34=\"\",0,VALUE('Bin Count Data'!AM34))","v":0},{"$f":"IF('Bin Count Data'!AN34=\"\",0,VALUE('Bin Count Data'!AN34))","v":0},0,0,null,"",{"$f":"IF('Bin Count Data'!AS34=\"\",0,VALUE('Bin Count Data'!AS34))","v":0},{"$f":"IF('Bin Count Data'!AT34=\"\",0,VALUE('Bin Count Data'!AT34))","v":0},0,0,null,"",{"$f":"IF('Bin Count Data'!AY34=\"\",0,VALUE('Bin Count Data'!AY34))","v":0},{"$f":"IF('Bin Count Data'!AZ34=\"\",0,VALUE('Bin Count Data'!AZ34))","v":0},0,0,null,"",{"$f":"IF('Bin Count Data'!BE34=\"\",0,VALUE('Bin Count Data'!BE34))","v":0},{"$f":"IF('Bin Count Data'!BF34=\"\",0,VALUE('Bin Count Data'!BF34))","v":0},0,0,null,"",{"$f":"IF('Bin Count Data'!BK34=\"\",0,VALUE('Bin Count Data'!BK34))","v":0},{"$f":"IF('Bin Count Data'!BL34=\"\",0,VALUE('Bin Count Data'!BL34))","v":0},0,0,null,"",{"$f":"IF('Bin Count Data'!BQ34=\"\",0,VALUE('Bin Count Data'!BQ34))","v":0},{"$f":"IF('Bin Count Data'!BR34=\"\",0,VALUE('Bin Count Data'!BR34))","v":0},0,0,null,"",{"$f":"IF('Bin Count Data'!BW34=\"\",0,VALUE('Bin Count Data'!BW34))","v":0},{"$f":"IF('Bin Count Data'!BX34=\"\",0,VALUE('Bin Count Data'!BX34))","v":0},0,0,null,"",{"$f":"IF('Bin Count Data'!CC34=\"\",0,VALUE('Bin Count Data'!CC34))","v":0},{"$f":"IF('Bin Count Data'!CD34=\"\",0,VALUE('Bin Count Data'!CD34))","v":0},0,0,null,"",{"$f":"IF('Bin Count Data'!CI34=\"\",0,VALUE('Bin Count Data'!CI34))","v":0},{"$f":"IF('Bin Count Data'!CJ34=\"\",0,VALUE('Bin Count Data'!CJ34))","v":0},0,0,null,"",{"$f":"IF('Bin Count Data'!CO34=\"\",0,VALUE('Bin Count Data'!CO34))","v":0},{"$f":"IF('Bin Count Data'!CP34=\"\",0,VALUE('Bin Count Data'!CP34))","v":0},0,0,null,"",{"$f":"IF('Bin Count Data'!CU34=\"\",0,VALUE('Bin Count Data'!CU34))","v":0},{"$f":"IF('Bin Count Data'!CV34=\"\",0,VALUE('Bin Count Data'!CV34))","v":0},0,0,null,"",{"$f":"IF('Bin Count Data'!DA34=\"\",0,VALUE('Bin Count Data'!DA34))","v":0},{"$f":"IF('Bin Count Data'!DB34=\"\",0,VALUE('Bin Count Data'!DB34))","v":0},0,0,null,"",{"$f":"IF('Bin Count Data'!DG34=\"\",0,VALUE('Bin Count Data'!DG34))","v":0},{"$f":"IF('Bin Count Data'!DH34=\"\",0,VALUE('Bin Count Data'!DH34))","v":0},0,0,null,"",{"$f":"IF('Bin Count Data'!DM34=\"\",0,VALUE('Bin Count Data'!DM34))","v":0},{"$f":"IF('Bin Count Data'!DN34=\"\",0,VALUE('Bin Count Data'!DN34))","v":0},0,0]
[null,"Total collections:",{"$f":"SUM(C4:C34)","v":0},{"$f":"SUM(D4:D34)","v":0},null,null,null,"Total collections:",{"$f":"SUM(I4:I34)","v":0},{"$f":"SUM(J4:J34)","v":0},null,null,null,"Total collections:",{"$f":"SUM(O4:O34)","v":0},{"$f":"SUM(P4:P34)","v":0},null,null,null,"Total collections:",{"$f":"SUM(U4:U34)","v":0},{"$f":"SUM(V4:V34)","v":0},null,null,null,"Total collections:",{"$f":"SUM(AA4:AA34)","v":0},{"$f":"SUM(AB4:AB34)","v":0},null,null,null,"Total collections:",{"$f":"SUM(AG4:AG34)","v":0},{"$f":"SUM(AH4:AH34)","v":0},null,null,null,"Total collections:",{"$f":"SUM(AM4:AM34)","v":0},{"$f":"SUM(AN4:AN34)","v":0},null,null,null,"Total collections:",{"$f":"SUM(AS4:AS34)","v":0},{"$f":"SUM(AT4:AT34)","v":0},null,null,null,"Total collections:",{"$f":"SUM(AY4:AY34)","v":0},{"$f":"SUM(AZ4:AZ34)","v":0},null,null,null,"Total collections:",{"$f":"SUM(BE4:BE34)","v":0},{"$f":"SUM(BF4:BF34)","v":0},null,null,null,"Total collections:",{"$f":"SUM(BK4:BK34)","v":0},{"$f":"SUM(BL4:BL34)","v":0},null,null,null,"Total collections:",{"$f":"SUM(BQ4:BQ34)","v":0},{"$f":"SUM(BR4:BR34)","v":0},null,null,null,"Total collections:",{"$f":"SUM(BW4:BW34)","v":0},{"$f":"SUM(BX4:BX34)","v":0},null,null,null,"Total collections:",{"$f":"SUM(CC4:CC34)","v":0},{"$f":"SUM(CD4:CD34)","v":0},null,null,null,"Total collections:",{"$f":"SUM(CI4:CI34)","v":0},{"$f":"SUM(CJ4:CJ34)","v":0},null,null,null,"Total collections:",{"$f":"SUM(CO4:CO34)","v":0},{"$f":"SUM(CP4:CP34)","v":0},null,null,null,"Total collections:",{"$f":"SUM(CU4:CU34)","v":0},{"$f":"SUM(CV4:CV34)","v":0},null,null,null,"Total collections:",{"$f":"SUM(DA4:DA34)","v":0},{"$f":"SUM(DB4:DB34)","v":0},null,null,null,"Total collections:",{"$f":"SUM(DG4:DG34)","v":0},{"$f":"SUM(DH4:DH34)","v":0},null,null,null,"Total collections:",{"$f":"SUM(DM4:DM34)","v":0},{"$f":"SUM(DN4:DN34)","v":0}]
[null,null,null,null,null,null,null,{"$f":"IFERROR(IF(H34=\"\",\"\",IF(H34=EOMONTH($H$4,0),\"\",H34+1)),\"Define month to check\")","v":""}]

{"sheet":"Document the changes here","index":5,"n_rows":0,"n_cols":0,"rows_kept":0,"cut":false,"hidden":true,"merged":[]}

{"sheet":"drop downs","index":6,"n_rows":65,"n_cols":9,"rows_kept":65,"cut":false,"hidden":true,"merged":[]}
[]
[null,"Material categories","Bin","Material type","Outcome",null,"Unique Material Categories","Unique Material Types","Test validations"]
[null,"Paper/cardboard","Mixed content","Paper sorted by grade","New paper product (for that grade)",null,{"$f":"_xlfn.UNIQUE(_xlfn._xlws.FILTER(B3:B67,B3:B67<>\"\"))","v":"Paper/cardboard"},{"$f":"_xlfn.UNIQUE(_xlfn._xlws.FILTER(D3:D67,D3:D67<>\"\"))","v":"Paper sorted by grade"}]
[null,null,"Pre-sorted bin","Cardboard sorted by grade","New mixed paper grade product",null,"Plastics","Cardboard sorted by grade"]
[null,null,null,"Mixed paper","Used in compost or other organics process",null,"Metals","Mixed paper"]
[null,null,null,"Mixed cardboard","New cardboard product (for that grade)",null,"Glass","Mixed cardboard"]
[null,null,null,"Mixed paper and cardboard","New mixed cardboard grade product",null,"Food waste","Mixed paper and cardboard"]
[null,null,null,"Paper/cardboard fines","New mixed paper & cardboard grade product",null,"Green waste/timber","Paper/cardboard fines"]
[null,null,null,null,"Used in compost or other organics process",null,"E-waste","PET (1)"]
[null,null,null,null,"Burnt",null,"Miscellaneous","HDPE (2)"]
[null,"Plastics","Mixed content","PET (1)","New PET product",null,"Composites","PVC (3) - rigid"]
[null,null,"Pre-sorted bin","HDPE (2)","New HDPE product",null,"Textiles","PVC (3) - flexible"]
[null,null,null,"PVC (3) - rigid","New PVC product",null,null,"LDPE (4) - rigid"]
[null,null,null,"PVC (3) - flexible","New LDPE product",null,null,"LDPE (4) - flexible"]
[null,null,null,"LDPE (4) - rigid","New polypropolene product",null,null,"Polypropolene (5) - rigid"]
[null,null,null,"LDPE (4) - flexible","New polystyrene product",null,null,"Polypropolene (5) - flexible"]
[null,null,null,"Polypropolene (5) - rigid","New soft plastic product",null,null,"Polystyrene (6) - rigid"]
[null,null,null,"Polypropolene (5) - flexible","Downcycled",null,null,"Polystyrene (6) - expanded"]
[null,null,null,"Polystyrene (6) - rigid","Burnt",null,null,"Other (7)"]
[null,null,null,"Polystyrene (6) - expanded",null,null,null,"Rigid plastics - mixed"]
[null,null,null,"Other (7)",null,null,null,"Soft plastic - colour sorted"]
[null,null,null,"Rigid plastics - mixed",null,null,null,"Soft plastic - mixed"]
[null,null,null,"Soft plastic - colour sorted",null,null,null,"Mixed soft and rigid plastics"]
[null,null,null,"Soft plastic - mixed",null,null,null,"Plastic fines"]
[null,null,null,"Mixed soft and rigid plastics",null,null,null,"Aluminium"]
[null,null,null,"Plastic fines",null,null,null,"Ferrous metals"]
[null,"Metals","Mixed content","Aluminium","New aluminium product",null,null,"Metals - other"]
[null,null,"Pre-sorted bin","Ferrous metals","New ferrous metals product",null,null,"Glass containers"]
[null,null,null,"Metals - other","New metals - other product",null,null,"Crushed glass"]
[null,"Glass","Mixed content","Glass containers","New glass container product",null,null,"Mixed food waste"]
[null,null,"Pre-sorted bin","Crushed glass","Crushed for sand replacement",null,null,"Food donations"]
[null,null,null,null,"Re-used",null,null,"Meat and bone"]
[null,"Food waste","Pre-sorted bin","Mixed food waste","Anaerobic digestion",null,null,"Fish waste"]
[null,null,null,"Food donations","Composted",null,null,"Cooking oil"]
[null,null,null,"Meat and bone","Pre-treatment to sewer",null,null,"Certified compostable packaging"]
[null,null,null,"Fish waste","On-site dehydrator then applied to land",null,null,"Mixed garden waste"]
[null,null,null,"Cooking oil","On-site dehydrator then composted",null,null,"Untreated timber waste"]
[null,null,null,"Certified compostable packaging","Consumed by humans or animals. No industrial processing applied.",null,null,"Timber pallets"]
[null,null,null,null,"Collected for meat&bone by-products",null,null,"Batteries"]
[null,null,null,null,"Collected for fish by-products",null,null,"E-waste as a bulk item"]
[null,null,null,null,"Biofuel - burnt",null,null,"Light globes"]
[null,null,null,null,"Stockfeed",null,null,"Printer cartridges"]
[null,null,null,null,"Pre-treament to sewer",null,null,"Liquid paper board"]
[null,null,null,null,"Composted (soil improver)",null,null,"Coffee cups"]
[null,"Green waste/timber","Pre-sorted bin","Mixed garden waste","Composted",null,null,"Whole garment"]
[null,null,null,"Untreated timber waste","Chipped and applied to land",null,null,"Textile scraps"]
[null,null,null,"Timber pallets","Chipped for wood by-products"]
[null,null,null,null,"Burnt"]
[null,null,null,null,"Re-furbished"]
[null,"E-waste","Pre-sorted bin","Batteries","Treated appropriately - licenced facility"]
[null,null,null,"E-waste as a bulk item","Incomplete supply chain information"]
[null,null,null,null,"Re-used/repaired"]
[null,null,null,null,"Re-filled"]
[null,null,null,null,"Downcycled"]
[null,"Miscellaneous","Pre-sorted bin","Light globes","Treated appropriately - licenced facility"]
[null,null,null,"Printer cartridges","Re-filled"]
[null,null,null,null,"Downcycled"]
[null,"Composites","Mixed content","Liquid paper board","New mixed paper & cardboard grade product"]
[null,null,"Pre-sorted bin","Coffee cups","Used in compost or other organics process"]
[null,null,null,null,"Converted to composite plastic product"]
[null,null,null,null,"Burnt"]
[null,"Textiles","Mixed content","Whole garment","Re-sold as whole garment/textile"]
[null,null,"Pre-sorted bin","Textile scraps","Used in compost or other organics process"]
[null,null,null,null,"Shredded"]
[null,null,null,null,"Burnt"]

{"sheet":"MRS scores","index":7,"n_rows":257,"n_cols":6,"rows_kept":257,"cut":false,"hidden":true,"merged":[]}
["Bin","Material categories","Material type","Outcome","Merged","points"]
["Mixed content","Plastic","PET - 1","New PET product",{"$f":"A2&\" \"&B2&\" \"&C2&\" \"&D2","v":"Mixed content Plastic PET - 1 New PET product"},3]
["Mixed content","Plastic","PET - 1","Downcycled","Mixed content Plastic PET - 1 Downcycled",2]
["Mixed content","Plastic","PET - 1","Burnt","Mixed content Plastic PET - 1 Burnt",0]
["Mixed content","Plastic","HDPE - 2","New HDPE product","Mixed content Plastic HDPE - 2 New HDPE product",3]
["Mixed content","Plastic","HDPE - 2","Downcycled","Mixed content Plastic HDPE - 2 Downcycled",2]
["Mixed content","Plastic","HDPE - 2","Burnt","Mixed content Plastic HDPE - 2 Burnt",0]
["Mixed content","Plastic","PVC - 3 - Rigid","New PVC product","Mixed content Plastic PVC - 3 - Rigid New PVC product",3]
["Mixed content","Plastic","PVC - 3 - Rigid","Downcycled","Mixed content Plastic PVC - 3 - Rigid Downcycled",2]
["Mixed content","Plastic","PVC - 3 - Rigid","Burnt","Mixed content Plastic PVC - 3 - Rigid Burnt",0]
["Mixed content","Plastic","PVC - 3- Flexible","New PVC product","Mixed content Plastic PVC - 3- Flexible New PVC product",4]
["Mixed content","Plastic","PVC - 3- Flexible","Downcycled","Mixed content Plastic PVC - 3- Flexible Downcycled",3]
["Mixed content","Plastic","PVC - 3- Flexible","Burnt","Mixed content Plastic PVC - 3- Flexible Burnt",0]
["Mixed content","Plastic","LDPE - 4 - Rigid","New LDPE product","Mixed content Plastic LDPE - 4 - Rigid New LDPE product",3]
["Mixed content","Plastic","LDPE - 4 - Rigid","Downcycled","Mixed content Plastic LDPE - 4 - Rigid Downcycled",2]
["Mixed content","Plastic","LDPE - 4 - Rigid","Burnt","Mixed content Plastic LDPE - 4 - Rigid Burnt",0]
["Mixed content","Plastic","LDPE - 4 - Flexible","New LDPE product","Mixed content Plastic LDPE - 4 - Flexible New LDPE product",4]
["Mixed content","Plastic","LDPE - 4 - Flexible","Downcycled","Mixed content Plastic LDPE - 4 - Flexible Downcycled",3]
["Mixed content","Plastic","LDPE - 4 - Flexible","Burnt","Mixed content Plastic LDPE - 4 - Flexible Burnt",0]
["Mixed content","Plastic","Polypropolene - 5 - Rigid","New Polypropolene product","Mixed content Plastic Polypropolene - 5 - Rigid New Polypropolene product",3]
["Mixed content","Plastic","Polypropolene - 5 - Rigid","Downcycled","Mixed content Plastic Polypropolene - 5 - Rigid Downcycled",2]
["Mixed content","Plastic","Polypropolene - 5 - Rigid","Burnt","Mixed content Plastic Polypropolene - 5 - Rigid Burnt",0]
["Mixed content","Plastic","Polypropolene - 5 - Flexible","New Polypropolene product","Mixed content Plastic Polypropolene - 5 - Flexible New Polypropolene product",4]
["Mixed content","Plastic","Polypropolene - 5 - Flexible","Downcycled","Mixed content Plastic Polypropolene - 5 - Flexible Downcycled",3]
["Mixed content","Plastic","Polypropolene - 5 - Flexible","Burnt","Mixed content Plastic Polypropolene - 5 - Flexible Burnt",0]
["Mixed content","Plastic","Polystyrene - 6 - Rigid","New Polystyrene product","Mixed content Plastic Polystyrene - 6 - Rigid New Polystyrene product",3]
["Mixed content","Plastic","Polystyrene - 6 - Rigid","Downcycled","Mixed content Plastic Polystyrene - 6 - Rigid Downcycled",2]
["Mixed content","Plastic","Polystyrene - 6 - Rigid","Burnt","Mixed content Plastic Polystyrene - 6 - Rigid Burnt",0]
["Mixed content","Plastic","Polystyrene - 6 - Expanded","New Polystyrene product","Mixed content Plastic Polystyrene - 6 - Expanded New Polystyrene product",4]
["Mixed content","Plastic","Polystyrene - 6 - Expanded","Downcycled","Mixed content Plastic Polystyrene - 6 - Expanded Downcycled",3]
["Mixed content","Plastic","Polystyrene - 6 - Expanded","Burnt","Mixed content Plastic Polystyrene - 6 - Expanded Burnt",0]
["Mixed content","Plastic","Other - 7","Downcycled","Mixed content Plastic Other - 7 Downcycled",2]
["Mixed content","Plastic","Other - 7","Burnt","Mixed content Plastic Other - 7 Burnt",0]
["Mixed content","Plastic","Mixed bale","Downcycled","Mixed content Plastic Mixed bale Downcycled",2]
["Mixed content","Plastic","Mixed bale","Burnt","Mixed content Plastic Mixed bale Burnt",0]
["Mixed content","Plastic","Soft plastic - colour sorted","New soft plastic product","Mixed content Plastic Soft plastic - colour sorted New soft plastic product",4]
["Mixed content","Plastic","Soft plastic - colour sorted","Downcycled","Mixed content Plastic Soft plastic - colour sorted Downcycled",3]
["Mixed content","Plastic","Soft plastic - colour sorted","Burnt","Mixed content Plastic Soft plastic - colour sorted Burnt",0]
["Mixed content","Plastic","Soft plastic - mixed","Downcycled","Mixed content Plastic Soft plastic - mixed Downcycled",3]
["Mixed content","Plastic","Soft plastic - mixed","Burnt","Mixed content Plastic Soft plastic - mixed Burnt",0]
["Mixed content","Plastic","Rigid plastic - mixed","Downcycled","Mixed content Plastic Rigid plastic - mixed Downcycled",2]
["Mixed content","Plastic","Rigid plastic - mixed","Burnt","Mixed content Plastic Rigid plastic - mixed Burnt",0]
["Mixed content","Glass","Containers","New glass container product","Mixed content Glass Containers New glass container product",3]
["Mixed content","Glass","Containers","Crushed for sand replacement","Mixed content Glass Containers Crushed for sand replacement",2]
["Mixed content","Glass","Crushed","Crushed for sand replacement","Mixed content Glass Crushed Crushed for sand replacement",2]
["Mixed content","Metals","Aluminium","New Aluminium product","Mixed content Metals Aluminium New Aluminium product",3]
["Mixed content","Metals","Ferrous metals","New Ferrous metals product","Mixed content Metals Ferrous metals New Ferrous metals product",3]
["Mixed content","Metals","Metals - other","New Metals - other product","Mixed content Metals Metals - other New Metals - other product",3]
["Mixed content","Paper/cardboard","Paper sorted by grade","New paper product (for that grade)","Mixed content Paper/cardboard Paper sorted by grade New paper product (for that grade)",4]
["Mixed content","Paper/cardboard","Paper sorted by grade","New mixed paper grade product","Mixed content Paper/cardboard Paper sorted by grade New mixed paper grade product",4]
["Mixed content","Paper/cardboard","Paper sorted by grade","used in compost or other organics process","Mixed content Paper/cardboard Paper sorted by grade used in compost or other organics process",4]
["Mixed content","Paper/cardboard","Paper sorted by grade","Burnt","Mixed content Paper/cardboard Paper sorted by grade Burnt",0]
["Mixed content","Paper/cardboard","Cardboard sorted by grade","New cardboard product (for that grade)","Mixed content Paper/cardboard Cardboard sorted by grade New cardboard product (for that grade)",4]
["Mixed content","Paper/cardboard","Cardboard sorted by grade","New mixed cardboard grade product","Mixed content Paper/cardboard Cardboard sorted by grade New mixed cardboard grade product",4]
["Mixed content","Paper/cardboard","cardboard sorted by grade","used in compost or other organics process","Mixed content Paper/cardboard cardboard sorted by grade used in compost or other organics process",4]
["Mixed content","Paper/cardboard","cardboard sorted by grade","Burnt","Mixed content Paper/cardboard cardboard sorted by grade Burnt",0]
["Mixed content","Paper/cardboard","mixed paper bale","New mixed paper grade product","Mixed content Paper/cardboard mixed paper bale New mixed paper grade product",4]
["Mixed content","Paper/cardboard","mixed paper bale","used in compost or other organics process","Mixed content Paper/cardboard mixed paper bale used in compost or other organics process",4]
["Mixed content","Paper/cardboard","mixed paper bale","Burnt","Mixed content Paper/cardboard mixed paper bale Burnt",0]
["Mixed content","Paper/cardboard","Mixed cardboard bale","New mixed cardboard grade product","Mixed content Paper/cardboard Mixed cardboard bale New mixed cardboard grade product",4]
["Mixed content","Paper/cardboard","mixed cardboard bale","used in compost or other organics process","Mixed content Paper/cardboard mixed cardboard bale used in compost or other organics process",4]
["Mixed content","Paper/cardboard","mixed cardboard bale","Burnt","Mixed content Paper/cardboard mixed cardboard bale Burnt",0]
["Mixed content","Paper/cardboard","Mixed paper and cardboard bale","New mixed paper & cardboard grade product","Mixed content Paper/cardboard Mixed paper and cardboard bale New mixed paper & cardboard grade product",4]
["Mixed content","Paper/cardboard","mixed paper and cardboard bale","used in compost or other organics process","Mixed content Paper/cardboard mixed paper and cardboard bale used in compost or other organics process",4]
["Mixed content","Paper/cardboard","mixed paper and cardboard bale","Burnt","Mixed content Paper/cardboard mixed paper and cardboard bale Burnt",0]
["Mixed content","Composites","Liquid paper board","New mixed paper & cardboard grade product",{"$f":"A66&\" \"&B66&\" \"&C66&\" \"&D66","v":"Mixed content Composites Liquid paper board New mixed paper & cardboard grade product"},3]
["Mixed content","Composites","Liquid paper board","used in compost or other organics process","Mixed content Composites Liquid paper board used in compost or other organics process",2]
["Mixed content","Composites","Liquid paper board","Converted to composite plastic product","Mixed content Composites Liquid paper board Converted to composite plastic product",2]
["Mixed content","Composites","Liquid paper board","Burnt","Mixed content Composites Liquid paper board Burnt",0]
["Mixed content","Composites","coffee cups","New mixed paper & cardboard grade product","Mixed content Composites coffee cups New mixed paper & cardboard grade product",4]
["Mixed content","Composites","coffee cups","used in compost or other organics process","Mixed content Composites coffee cups used in compost or other organics process",2]
["Mixed content","Composites","coffee cups","Converted to composite plastic product","Mixed content Composites coffee cups Converted to composite plastic product",3]
["Mixed content","Composites","coffee cups","Burnt","Mixed content Composites coffee cups Burnt",0]
["Mixed content","Textiles","Whole garment","re-sold as whole garment/textile","Mixed content Textiles Whole garment re-sold as whole garment/textile",4]
["Mixed content","Textiles","Whole garment","used in compost or other organics process","Mixed content Textiles Whole garment used in compost or other organics process",3]
["Mixed content","Textiles","Whole garment","shredded","Mixed content Textiles Whole garment shredded",2]
["Mixed content","Textiles","Off-cuts","shredded","Mixed content Textiles Off-cuts shredded",2]
["Mixed content","Textiles","Off-cuts","used in compost or other organics process","Mixed content Textiles Off-cuts used in compost or other organics process",3]
["Mixed content","Textiles","Off-cuts","Burnt","Mixed content Textiles Off-cuts Burnt",0]
["Pre-sorted bin","Plastic","PET - 1","New PET product","Pre-sorted bin Plastic PET - 1 New PET product",4]
["Pre-sorted bin","Plastic","PET - 1","Downcycled","Pre-sorted bin Plastic PET - 1 Downcycled",3]
["Pre-sorted bin","Plastic","PET - 1","Burnt","Pre-sorted bin Plastic PET - 1 Burnt",0]
["Pre-sorted bin","Plastic","HDPE - 2","New HDPE product","Pre-sorted bin Plastic HDPE - 2 New HDPE product",4]
["Pre-sorted bin","Plastic","HDPE - 2","Downcycled","Pre-sorted bin Plastic HDPE - 2 Downcycled",3]
["Pre-sorted bin","Plastic","HDPE - 2","Burnt","Pre-sorted bin Plastic HDPE - 2 Burnt",0]
["Pre-sorted bin","Plastic","PVC - 3 - Rigid","New PVC product","Pre-sorted bin Plastic PVC - 3 - Rigid New PVC product",4]
["Pre-sorted bin","Plastic","PVC - 3 - Rigid","Downcycled","Pre-sorted bin Plastic PVC - 3 - Rigid Downcycled",3]
["Pre-sorted bin","Plastic","PVC - 3 - Rigid","Burnt","Pre-sorted bin Plastic PVC - 3 - Rigid Burnt",0]
["Pre-sorted bin","Plastic","PVC - 3- Flexible","New PVC product","Pre-sorted bin Plastic PVC - 3- Flexible New PVC product",5]
["Pre-sorted bin","Plastic","PVC - 3- Flexible","Downcycled","Pre-sorted bin Plastic PVC - 3- Flexible Downcycled",4]
["Pre-sorted bin","Plastic","PVC - 3- Flexible","Burnt","Pre-sorted bin Plastic PVC - 3- Flexible Burnt",0]
["Pre-sorted bin","Plastic","LDPE - 4 - Rigid","New LDPE product","Pre-sorted bin Plastic LDPE - 4 - Rigid New LDPE product",4]
["Pre-sorted bin","Plastic","LDPE - 4 - Rigid","Downcycled","Pre-sorted bin Plastic LDPE - 4 - Rigid Downcycled",3]
["Pre-sorted bin","Plastic","LDPE - 4 - Rigid","Burnt","Pre-sorted bin Plastic LDPE - 4 - Rigid Burnt",0]
["Pre-sorted bin","Plastic","LDPE - 4 - Flexible","New LDPE product","Pre-sorted bin Plastic LDPE - 4 - Flexible New LDPE product",5]
["Pre-sorted bin","Plastic","LDPE - 4 - Flexible","Downcycled","Pre-sorted bin Plastic LDPE - 4 - Flexible Downcycled",4]
["Pre-sorted bin","Plastic","LDPE - 4 - Flexible","Burnt","Pre-sorted bin Plastic LDPE - 4 - Flexible Burnt",0]
["Pre-sorted bin","Plastic","Polypropolene - 5 - Rigid","New Polypropolene product","Pre-sorted bin Plastic Polypropolene - 5 - Rigid New Polypropolene product",4]
["Pre-sorted bin","Plastic","Polypropolene - 5 - Rigid","Downcycled","Pre-sorted bin Plastic Polypropolene - 5 - Rigid Downcycled",3]
["Pre-sorted bin","Plastic","Polypropolene - 5 - Rigid","Burnt","Pre-sorted bin Plastic Polypropolene - 5 - Rigid Burnt",0]
["Pre-sorted bin","Plastic","Polypropolene - 5 - Flexible","New Polypropolene product","Pre-sorted bin Plastic Polypropolene - 5 - Flexible New Polypropolene product",5]
["Pre-sorted bin","Plastic","Polypropolene - 5 - Flexible","Downcycled","Pre-sorted bin Plastic Polypropolene - 5 - Flexible Downcycled",4]
["Pre-sorted bin","Plastic","Polypropolene - 5 - Flexible","Burnt","Pre-sorted bin Plastic Polypropolene - 5 - Flexible Burnt",0]
["Pre-sorted bin","Plastic","Polystyrene - 6 - Rigid","New Polystyrene product","Pre-sorted bin Plastic Polystyrene - 6 - Rigid New Polystyrene product",4]
["Pre-sorted bin","Plastic","Polystyrene - 6 - Rigid","Downcycled","Pre-sorted bin Plastic Polystyrene - 6 - Rigid Downcycled",3]
["Pre-sorted bin","Plastic","Polystyrene - 6 - Rigid","Burnt","Pre-sorted bin Plastic Polystyrene - 6 - Rigid Burnt",0]
["Pre-sorted bin","Plastic","Polystyrene - 6 - Expanded","New Polystyrene product","Pre-sorted bin Plastic Polystyrene - 6 - Expanded New Polystyrene product",5]
["Pre-sorted bin","Plastic","Polystyrene - 6 - Expanded","Downcycled","Pre-sorted bin Plastic Polystyrene - 6 - Expanded Downcycled",4]
["Pre-sorted bin","Plastic","Polystyrene - 6 - Expanded","Burnt","Pre-sorted bin Plastic Polystyrene - 6 - Expanded Burnt",0]
["Pre-sorted bin","Plastic","Other - 7","Downcycled","Pre-sorted bin Plastic Other - 7 Downcycled",3]
["Pre-sorted bin","Plastic","Other - 7","Burnt","Pre-sorted bin Plastic Other - 7 Burnt",0]
["Pre-sorted bin","Plastic","Mixed bale","Downcycled","Pre-sorted bin Plastic Mixed bale Downcycled",3]
["Pre-sorted bin","Plastic","Mixed bale","Burnt","Pre-sorted bin Plastic Mixed bale Burnt",0]
["Pre-sorted bin","Plastic","Soft plastic - colour sorted","New soft plastic product","Pre-sorted bin Plastic Soft plastic - colour sorted New soft plastic product",5]
["Pre-sorted bin","Plastic","Soft plastic - colour sorted","Downcycled","Pre-sorted bin Plastic Soft plastic - colour sorted Downcycled",4]
["Pre-sorted bin","Plastic","Soft plastic - colour sorted","Burnt","Pre-sorted bin Plastic Soft plastic - colour sorted Burnt",0]
["Pre-sorted bin","Plastic","Soft plastic - mixed","Downcycled","Pre-sorted bin Plastic Soft plastic - mixed Downcycled",4]
["Pre-sorted bin","Plastic","Soft plastic - mixed","Burnt","Pre-sorted bin Plastic Soft plastic - mixed Burnt",0]
["Pre-sorted bin","Plastic","Rigid plastic - mixed","Downcycled","Pre-sorted bin Plastic Rigid plastic - mixed Downcycled",3]
["Pre-sorted bin","Plastic","Rigid plastic - mixed","Burnt","Pre-sorted bin Plastic Rigid plastic - mixed Burnt",0]
["Pre-sorted bin","Glass","Containers","re-used","Pre-sorted bin Glass Containers re-used",5]
["Pre-sorted bin","Glass","Containers","New glass container product","Pre-sorted bin Glass Containers New glass container product",4]
["Pre-sorted bin","Glass","Containers","Crushed for sand replacement","Pre-sorted bin Glass Containers Crushed for sand replacement",3]
["Pre-sorted bin","Glass","Crushed","Crushed for sand replacement","Pre-sorted bin Glass Crushed Crushed for sand replacement",3]
["Pre-sorted bin","Metals","Aluminium","New Aluminium product","Pre-sorted bin Metals Aluminium New Aluminium product",4]
["Pre-sorted bin","Metals","Ferrous metals","New Ferrous metals product","Pre-sorted bin Metals Ferrous metals New Ferrous metals product",4]
["Pre-sorted bin","Metals","Metals - other","New Metals - other product","Pre-sorted bin Metals Metals - other New Metals - other product",4]
["Pre-sorted bin","Paper/cardboard","Paper sorted by grade","New paper product (for that grade)","Pre-sorted bin Paper/cardboard Paper sorted by grade New paper product (for that grade)",5]
["Pre-sorted bin","Paper/cardboard","Paper sorted by grade","New mixed paper grade product","Pre-sorted bin Paper/cardboard Paper sorted by grade New mixed paper grade product",5]
["Pre-sorted bin","Paper/cardboard","Paper sorted by grade","used in compost or other organics process",{"$f":"A130&\" \"&B130&\" \"&C130&\" \"&D130","v":"Pre-sorted bin Paper/cardboard Paper sorted by grade used in compost or other organics process"},5]
["Pre-sorted bin","Paper/cardboard","Paper sorted by grade","Burnt","Pre-sorted bin Paper/cardboard Paper sorted by grade Burnt",0]
["Pre-sorted bin","Paper/cardboard","Cardboard sorted by grade","New cardboard product (for that grade)","Pre-sorted bin Paper/cardboard Cardboard sorted by grade New cardboard product (for that grade)",5]
["Pre-sorted bin","Paper/cardboard","Cardboard sorted by grade","New mixed cardboard grade product","Pre-sorted bin Paper/cardboard Cardboard sorted by grade New mixed cardboard grade product",5]
["Pre-sorted bin","Paper/cardboard","cardboard sorted by grade","used in compost or other organics process","Pre-sorted bin Paper/cardboard cardboard sorted by grade used in compost or other organics process",5]
["Pre-sorted bin","Paper/cardboard","cardboard sorted by grade","Burnt","Pre-sorted bin Paper/cardboard cardboard sorted by grade Burnt",0]
["Pre-sorted bin","Paper/cardboard","mixed paper bale","New mixed paper grade product","Pre-sorted bin Paper/cardboard mixed paper bale New mixed paper grade product",5]
["Pre-sorted bin","Paper/cardboard","mixed paper bale","used in compost or other organics process","Pre-sorted bin Paper/cardboard mixed paper bale used in compost or other organics process",5]
["Pre-sorted bin","Paper/cardboard","mixed paper bale","Burnt","Pre-sorted bin Paper/cardboard mixed paper bale Burnt",0]
["Pre-sorted bin","Paper/cardboard","Mixed cardboard bale","New mixed cardboard grade product","Pre-sorted bin Paper/cardboard Mixed cardboard bale New mixed cardboard grade product",5]
["Pre-sorted bin","Paper/cardboard","mixed cardboard bale","used in compost or other organics process","Pre-sorted bin Paper/cardboard mixed cardboard bale used in compost or other organics process",5]
["Pre-sorted bin","Paper/cardboard","mixed cardboard bale","Burnt","Pre-sorted bin Paper/cardboard mixed cardboard bale Burnt",0]
["Pre-sorted bin","Paper/cardboard","Mixed paper and cardboard bale","New mixed paper & cardboard grade product","Pre-sorted bin Paper/cardboard Mixed paper and cardboard bale New mixed paper & cardboard grade product",5]
["Pre-sorted bin","Paper/cardboard","mixed paper and cardboard bale","used in compost or other organics process","Pre-sorted bin Paper/cardboard mixed paper and cardboard bale used in compost or other organics process",5]
["Pre-sorted bin","Paper/cardboard","mixed paper and cardboard bale","Burnt","Pre-sorted bin Paper/cardboard mixed paper and cardboard bale Burnt",0]
["Pre-sorted bin","Food waste","mixed food waste","Anaerobic digestion","Pre-sorted bin Food waste mixed food waste Anaerobic digestion",6]
["Pre-sorted bin","Food waste","mixed food waste","Composted","Pre-sorted bin Food waste mixed food waste Composted",5]
["Pre-sorted bin","Food waste","mixed food waste","Pre-treatment to sewer","Pre-sorted bin Food waste mixed food waste Pre-treatment to sewer",5]
["Pre-sorted bin","Food waste","mixed food waste","On-site dehydrator then applied to land","Pre-sorted bin Food waste mixed food waste On-site dehydrator then applied to land",5]
["Pre-sorted bin","Food waste","mixed food waste","On-site dehydrator then composted","Pre-sorted bin Food waste mixed food waste On-site dehydrator then composted",5]
["Pre-sorted bin","Food waste","mixed food waste","Composted (soil improver/low-quality)","Pre-sorted bin Food waste mixed food waste Composted (soil improver/low-quality)",3]
["Pre-sorted bin","Food waste","food donation service","consumed by humans or animals. No industrial processing applied.","Pre-sorted bin Food waste food donation service consumed by humans or animals. No industrial processing applied.",6]
["Pre-sorted bin","Food waste","meat and bone","collected for meat&bone by-products","Pre-sorted bin Food waste meat and bone collected for meat&bone by-products",5]
["Pre-sorted bin","Food waste","meat and bone","Composted","Pre-sorted bin Food waste meat and bone Composted",5]
["Pre-sorted bin","Food waste","fish waste","collected for fish by-products","Pre-sorted bin Food waste fish waste collected for fish by-products",5]
["Pre-sorted bin","Food waste","fish waste","Composted","Pre-sorted bin Food waste fish waste Composted",5]
["Pre-sorted bin","Food waste","Cooking oil","Biofuel - burnt","Pre-sorted bin Food waste Cooking oil Biofuel - burnt",1]
["Pre-sorted bin","Food waste","Cooking oil","Stockfeed","Pre-sorted bin Food waste Cooking oil Stockfeed",5]
["Pre-sorted bin","Green waste/timber","mixed garden and timber waste","Composted","Pre-sorted bin Green waste/timber mixed garden and timber waste Composted",5]
["Pre-sorted bin","Green waste/timber","mixed garden and timber waste","Chipped and applied to land","Pre-sorted bin Green waste/timber mixed garden and timber waste Chipped and applied to land",4]
["Pre-sorted bin","Green waste/timber","mixed garden and timber waste","Chipped for wood by-products","Pre-sorted bin Green waste/timber mixed garden and timber waste Chipped for wood by-products",4]
["Pre-sorted bin","Green waste/timber","mixed garden and timber waste","Burnt","Pre-sorted bin Green waste/timber mixed garden and timber waste Burnt",0]
["Pre-sorted bin","Green waste/timber","timber pallets","Re-furbished","Pre-sorted bin Green waste/timber timber pallets Re-furbished",6]
["Pre-sorted bin","Green waste/timber","timber pallets","Chipped and applied to land","Pre-sorted bin Green waste/timber timber pallets Chipped and applied to land",4]
["Pre-sorted bin","Green waste/timber","timber pallets","Chipped for wood by-products","Pre-sorted bin Green waste/timber timber pallets Chipped for wood by-products",4]
["Pre-sorted bin","Green waste/timber","timber pallets","Burnt","Pre-sorted bin Green waste/timber timber pallets Burnt",0]
["Pre-sorted bin","Composites","Liquid paper board","New mixed paper & cardboard grade product","Pre-sorted bin Composites Liquid paper board New mixed paper & cardboard grade product",4]
["Pre-sorted bin","Composites","Liquid paper board","used in compost or other organics process","Pre-sorted bin Composites Liquid paper board used in compost or other organics process",4]
["Pre-sorted bin","Composites","Liquid paper board","Converted to composite plastic product","Pre-sorted bin Composites Liquid paper board Converted to composite plastic product",3]
["Pre-sorted bin","Composites","Liquid paper board","Burnt","Pre-sorted bin Composites Liquid paper board Burnt",0]
["Pre-sorted bin","Composites","coffee cups","New mixed paper & cardboard grade product","Pre-sorted bin Composites coffee cups New mixed paper & cardboard grade product",5]
["Pre-sorted bin","Composites","coffee cups","used in compost or other organics process","Pre-sorted bin Composites coffee cups used in compost or other organics process",4]
["Pre-sorted bin","Composites","coffee cups","Converted to composite plastic product","Pre-sorted bin Composites coffee cups Converted to composite plastic product",4]
["Pre-sorted bin","Composites","coffee cups","Burnt","Pre-sorted bin Composites coffee cups Burnt",0]
["Pre-sorted bin","miscellaneous","light globes","Treated appropriately - licenced facility","Pre-sorted bin miscellaneous light globes Treated appropriately - licenced facility",5]
["Pre-sorted bin","e-waste","batteries","Treated appropriately - licenced facility","Pre-sorted bin e-waste batteries Treated appropriately - licenced facility",5]
["Pre-sorted bin","e-waste","batteries","Incomplete supply chain information","Pre-sorted bin e-waste batteries Incomplete supply chain information",2]
["Pre-sorted bin","e-waste","e-waste as a bulk item","Treated appropriately - licenced facility","Pre-sorted bin e-waste e-waste as a bulk item Treated appropriately - licenced facility",5]
["Pre-sorted bin","e-waste","e-waste as a bulk item","Re-used/repaired","Pre-sorted bin e-waste e-waste as a bulk item Re-used/repaired",6]
["Pre-sorted bin","e-waste","e-waste as a bulk item","Incomplete supply chain information","Pre-sorted bin e-waste e-waste as a bulk item Incomplete supply chain information",2]
["Pre-sorted bin","Miscellaneous","printer cartridges","re-filled","Pre-sorted bin Miscellaneous printer cartridges re-filled",5]
["Pre-sorted bin","Miscellaneous","printer cartridges","downcycled","Pre-sorted bin Miscellaneous printer cartridges downcycled",4]
["Pre-sorted bin","Textiles","Whole garment","re-sold as whole garment/textile","Pre-sorted bin Textiles Whole garment re-sold as whole garment/textile",5]
["Pre-sorted bin","Textiles","Whole garment","used in compost or other organics process","Pre-sorted bin Textiles Whole garment used in compost or other organics process",4]
["Pre-sorted bin","Textiles","Whole garment","shredded","Pre-sorted bin Textiles Whole garment shredded",3]
["Pre-sorted bin","Textiles","Off-cuts","shredded","Pre-sorted bin Textiles Off-cuts shredded",3]
["Pre-sorted bin","Textiles","Off-cuts","used in compost or other organics process","Pre-sorted bin Textiles Off-cuts used in compost or other organics process",4]
["AWT or similar","Plastic","PET - 1","New PET product","AWT or similar Plastic PET - 1 New PET product",2]
["AWT or similar","Plastic","PET - 1","Downcycled","AWT or similar Plastic PET - 1 Downcycled",1]
["AWT or similar","Plastic","PET - 1","Burnt","AWT or similar Plastic PET - 1 Burnt",0]
["AWT or similar","Plastic","HDPE - 2","New HDPE product","AWT or similar Plastic HDPE - 2 New HDPE product",2]
["AWT or similar","Plastic","HDPE - 2","Downcycled","AWT or similar Plastic HDPE - 2 Downcycled",1]
["AWT or similar","Plastic","HDPE - 2","Burnt","AWT or similar Plastic HDPE - 2 Burnt",0]
["AWT or similar","Plastic","PVC - 3 - Rigid","New PVC product","AWT or similar Plastic PVC - 3 - Rigid New PVC product",2]
["AWT or similar","Plastic","PVC - 3 - Rigid","Downcycled",{"$f":"A194&\" \"&B194&\" \"&C194&\" \"&D194","v":"AWT or similar Plastic PVC - 3 - Rigid Downcycled"},1]
["AWT or similar","Plastic","PVC - 3 - Rigid","Burnt","AWT or similar Plastic PVC - 3 - Rigid Burnt",0]
["AWT or similar","Plastic","PVC - 3- Flexible","New PVC product","AWT or similar Plastic PVC - 3- Flexible New PVC product",3]
["AWT or similar","Plastic","PVC - 3- Flexible","Downcycled","AWT or similar Plastic PVC - 3- Flexible Downcycled",2]
["AWT or similar","Plastic","PVC - 3- Flexible","Burnt","AWT or similar Plastic PVC - 3- Flexible Burnt",0]
["AWT or similar","Plastic","LDPE - 4 - Rigid","New LDPE product","AWT or similar Plastic LDPE - 4 - Rigid New LDPE product",2]
["AWT or similar","Plastic","LDPE - 4 - Rigid","Downcycled","AWT or similar Plastic LDPE - 4 - Rigid Downcycled",1]
["AWT or similar","Plastic","LDPE - 4 - Rigid","Burnt","AWT or similar Plastic LDPE - 4 - Rigid Burnt",0]
["AWT or similar","Plastic","LDPE - 4 - Flexible","New LDPE product","AWT or similar Plastic LDPE - 4 - Flexible New LDPE product",3]
["AWT or similar","Plastic","LDPE - 4 - Flexible","Downcycled","AWT or similar Plastic LDPE - 4 - Flexible Downcycled",2]
["AWT or similar","Plastic","LDPE - 4 - Flexible","Burnt","AWT or similar Plastic LDPE - 4 - Flexible Burnt",0]
["AWT or similar","Plastic","Polypropolene - 5 - Rigid","New Polypropolene product","AWT or similar Plastic Polypropolene - 5 - Rigid New Polypropolene product",2]
["AWT or similar","Plastic","Polypropolene - 5 - Rigid","Downcycled","AWT or similar Plastic Polypropolene - 5 - Rigid Downcycled",1]
["AWT or similar","Plastic","Polypropolene - 5 - Rigid","Burnt","AWT or similar Plastic Polypropolene - 5 - Rigid Burnt",0]
["AWT or similar","Plastic","Polypropolene - 5 - Flexible","New Polypropolene product","AWT or similar Plastic Polypropolene - 5 - Flexible New Polypropolene product",3]
["AWT or similar","Plastic","Polypropolene - 5 - Flexible","Downcycled","AWT or similar Plastic Polypropolene - 5 - Flexible Downcycled",2]
["AWT or similar","Plastic","Polypropolene - 5 - Flexible","Burnt","AWT or similar Plastic Polypropolene - 5 - Flexible Burnt",0]
["AWT or similar","Plastic","Polystyrene - 6 - Rigid","New Polystyrene product","AWT or similar Plastic Polystyrene - 6 - Rigid New Polystyrene product",2]
["AWT or similar","Plastic","Polystyrene - 6 - Rigid","Downcycled","AWT or similar Plastic Polystyrene - 6 - Rigid Downcycled",1]
["AWT or similar","Plastic","Polystyrene - 6 - Rigid","Burnt","AWT or similar Plastic Polystyrene - 6 - Rigid Burnt",0]
["AWT or similar","Plastic","Polystyrene - 6 - Expanded","New Polystyrene product","AWT or similar Plastic Polystyrene - 6 - Expanded New Polystyrene product",3]
["AWT or similar","Plastic","Polystyrene - 6 - Expanded","Downcycled","AWT or similar Plastic Polystyrene - 6 - Expanded Downcycled",2]
["AWT or similar","Plastic","Polystyrene - 6 - Expanded","Burnt","AWT or similar Plastic Polystyrene - 6 - Expanded Burnt",0]
["AWT or similar","Plastic","Other - 7","Downcycled","AWT or similar Plastic Other - 7 Downcycled",1]
["AWT or similar","Plastic","Other - 7","Burnt","AWT or similar Plastic Other - 7 Burnt",0]
["AWT or similar","Plastic","Mixed bale","Downcycled","AWT or similar Plastic Mixed bale Downcycled",1]
["AWT or similar","Plastic","Mixed bale","Burnt","AWT or similar Plastic Mixed bale Burnt",0]
["AWT or similar","Plastic","Soft plastic - colour sorted","New soft plastic product","AWT or similar Plastic Soft plastic - colour sorted New soft plastic product",3]
["AWT or similar","Plastic","Soft plastic - colour sorted","Downcycled","AWT or similar Plastic Soft plastic - colour sorted Downcycled",2]
["AWT or similar","Plastic","Soft plastic - colour sorted","Burnt","AWT or similar Plastic Soft plastic - colour sorted Burnt",0]
["AWT or similar","Plastic","Soft plastic - mixed","Downcycled","AWT or similar Plastic Soft plastic - mixed Downcycled",2]
["AWT or similar","Plastic","Soft plastic - mixed","Burnt","AWT or similar Plastic Soft plastic - mixed Burnt",0]
["AWT or similar","Plastic","Rigid plastic - mixed","Downcycled","AWT or similar Plastic Rigid plastic - mixed Downcycled",1]
["AWT or similar","Plastic","Rigid plastic - mixed","Burnt","AWT or similar Plastic Rigid plastic - mixed Burnt",0]
["AWT or similar","Glass","Containers","New glass container product","AWT or similar Glass Containers New glass container product",2]
["AWT or similar","Glass","Containers","Crushed for sand replacement","AWT or similar Glass Containers Crushed for sand replacement",1]
["AWT or similar","Glass","Crushed","Crushed for sand replacement","AWT or similar Glass Crushed Crushed for sand replacement",1]
["AWT or similar","Metals","Aluminium","New Aluminium product","AWT or similar Metals Aluminium New Aluminium product",2]
["AWT or similar","Metals","Ferrous metals","New Ferrous metals product","AWT or similar Metals Ferrous metals New Ferrous metals product",2]
["AWT or similar","Metals","Metals - other","New Metals - other product","AWT or similar Metals Metals - other New Metals - other product",2]
["AWT or similar","Paper/cardboard","Mixed paper and cardboard bale","New mixed paper & cardboard grade product","AWT or similar Paper/cardboard Mixed paper and cardboard bale New mixed paper & cardboard grade product",3]
["AWT or similar","Paper/cardboard","mixed paper and cardboard bale","used in compost or other organics process","AWT or similar Paper/cardboard mixed paper and cardboard bale used in compost or other organics process",3]
["AWT or similar","Paper/cardboard","mixed paper and cardboard bale","Burnt","AWT or similar Paper/cardboard mixed paper and cardboard bale Burnt",0]
["AWT or similar","Food waste","mixed food waste","Anaerobic digestion","AWT or similar Food waste mixed food waste Anaerobic digestion",4]
["AWT or similar","Food waste","mixed food waste","Composted (soil improver/low-quality)","AWT or similar Food waste mixed food waste Composted (soil improver/low-quality)",1]
["AWT or similar","Green waste/timber","mixed garden and timber waste","Chipped and applied to land","AWT or similar Green waste/timber mixed garden and timber waste Chipped and applied to land",2]
["AWT or similar","Green waste/timber","mixed garden and timber waste","Chipped for wood by-products","AWT or similar Green waste/timber mixed garden and timber waste Chipped for wood by-products",2]
["AWT or similar","Green waste/timber","mixed garden and timber waste","Burnt","AWT or similar Green waste/timber mixed garden and timber waste Burnt",0]
["AWT or similar","Green waste/timber","timber pallets","Re-furbished","AWT or similar Green waste/timber timber pallets Re-furbished",4]
["AWT or similar","Green waste/timber","timber pallets","Chipped and applied to land","AWT or similar Green waste/timber timber pallets Chipped and applied to land",0]
["AWT or similar","Green waste/timber","timber pallets","Chipped for wood by-products","AWT or similar Green waste/timber timber pallets Chipped for wood by-products",2]
["AWT or similar","Green waste/timber","timber pallets","Burnt","AWT or similar Green waste/timber timber pallets Burnt",0]
["AWT or similar","Composites","Liquid paper board","New mixed paper & cardboard grade product","AWT or similar Composites Liquid paper board New mixed paper & cardboard grade product",2]
["AWT or similar","Composites","Liquid paper board","used in compost or other organics process","AWT or similar Composites Liquid paper board used in compost or other organics process",1]
["AWT or similar","Composites","Liquid paper board","Converted to composite plastic product","AWT or similar Composites Liquid paper board Converted to composite plastic product",1]
["AWT or similar","Composites","Liquid paper board","Burnt","AWT or similar Composites Liquid paper board Burnt",0]
["AWT or similar","Composites","coffee cups","New mixed paper & cardboard grade product","AWT or similar Composites coffee cups New mixed paper & cardboard grade product",3]
["AWT or similar","Composites","coffee cups","used in compost or other organics process","AWT or similar Composites coffee cups used in compost or other organics process",1]
["AWT or similar","Composites","coffee cups","Converted to composite plastic product","AWT or similar Composites coffee cups Converted to composite plastic product",2]
["AWT or similar","Composites","coffee cups","Burnt","AWT or similar Composites coffee cups Burnt",0]
["Pre-sorted bin","Food waste","compostable packaging","Anaerobic digestion","Pre-sorted bin Food waste compostable packaging Anaerobic digestion",6]
["Pre-sorted bin","Food waste","compostable packaging","Composted","Pre-sorted bin Food waste compostable packaging Composted",5]
["Pre-sorted bin","Food waste","compostable packaging","Pre-treament to sewer","Pre-sorted bin Food waste compostable packaging Pre-treament to sewer",5]
["Pre-sorted bin","Food waste","compostable packaging","Composted (soil improver)","Pre-sorted bin Food waste compostable packaging Composted (soil improver)",3]

{"sheet":"Support","index":8,"n_rows":16,"n_cols":9,"rows_kept":16,"cut":false,"hidden":true,"merged":[]}
[]
[null,"Threshold ",0.2]
[]
[]
[null,"January",null,"General waste",null,null,"Mobile bin",null,"m³"]
[null,"February",null,"Mixed recycling",null,null,"Compactor",null,"L"]
[null,"March",null,"Paper & Cardboard",null,null,"Bags"]
[null,"April",null,"Cardboard (compacted)",null,null,"Bales"]
[null,"May",null,"Dry waste",null,null,"Cage"]
[null,"June",null,"Paper",null,null,"Crate"]
[null,"July",null,"Cardboard",null,null,"Vessel"]
[null,"August",null,"Organics"]
[null,"September",null,"Glass"]
[null,"October"]
[null,"November"]
[null,"December"]